Workbook

Sheet DISCLAIMER
A1: DISCLAIMER / DESCARGO DE RESPONABILIDAD
A2: El objeto de esta herramienta es efectuar un estudio preliminar sobre el impacto de la rehabilitación en un edificio de viviendas.
A3: No es pues una herramienta para ser utilizada en fase de proyecto definitivo de rehabilitación y tampoco una herramienta para efectuar las verificaciones reglamentarias que puedan ser legalmente exigibles
A4: La información proporcionada por la herramienta se ofrece a título estimativo como ayuda al usuario o propietario del edificio o vivienda, pero ni es ni puede sustituir al conjunto de cálculos y comprobaciones que la dirección técnica del proyecto de rehabilitación energética deberá llevar a cabo para justificar el cumplimiento de la reglamentación técnica vigente y de aplicación al proyecto, como puede ser la reglamentaria certificación energética del edificio o vivienda.
A5: Los diferentes niveles de rehabilitación ("mínima", "estándar" y "elevada") sirven para realizar cálculos orientativos, pero no implican el cumplimiento con el Código Técnico de Edificación que deberá ser siempre evaluado por la dirección técnica del proyecto.
A6: El estudio proporcionado sobre el cumplimiento con las subvenciones es orientativo y se deberá verificar en cada Comunidad Autónoma por un técnico designado a tal fin.

Sheet Instrucciones
B1: INSTRUCCIONES HERRAMIENTA ESTUDIO PRELIMINAR REHABILITACION
B299: EN 13790 EN 52016
B387: HIPÓTESIS
B388: Temperaturas de consigna | C388: Se ha considerado 19ºC para invierno y 26ºC para verano durante todas las horas del día
B389: Ganancias internas | C389: Se ha considerado un valor de 2,1 W/m2 que corresponden al uso vivienda
B390: Ventilación nocturna | C390: Durante los meses de verano se ha considerado un aumento de la ventilación nocturna con el fin de eliminar el sobre-calentamiento
B391: Factor solar de protección estacional | C391: Se ha incluido un factor de protección adicional durante los meses de verano (efecto persianas) para evitar el exceso de ganancias solares
C392: © Josep Sole

Sheet DATOS
B2: ESTUDIO PRELIMINAR REHABILITACIÓN ENERGÉTICA VIVIENDAS
B3: Nombre del proyecto | C3: Edificio plurifamiliar entre medianeras
C4: Información del edificio
B5: Ciudad referencia | F5: Zona Climática | G5: =INDEX(LOCALIDADES!BV3:BV59,'Calculo(rehabilitado)'!C2) -> C2
B6: Superficie Útil | C6: =159*4 -> 636 | D6: m2 | E6: Número Viviendas | F6: 8
B7: Altura entre plantas | C7: 3 | D7: m
B8: Situación Inicial | C8: 1
C9: Fachada Sur | D9: Fachada Sur Este | E9: Fachada Este | F9: Fachada Norte | G9: Fachada Oeste | H9: Fachada Sur Oeste | I9: Azoteas Tejados | J9: Cerramientos exteriores No soleados
B10: Superficie (bruta) | C10: 145.5 | F10: 145.5 | I10: 15.16 | J10: 297.6 | K10: m2
B11: % huecos | C11: 20 | F11: 20 | I11: (--) | J11: 20 | K11: (0-30) | L11: =IF(MAX(C11:J11)>30,"mayor de 30%"," ") -> 
B12: Dispone Refrigeración ? | C12: 2
C13: Lectura Facturas
B14: Calefacción € /año | C14: -- | D14: Si no se disponen estos datos se usará una estimación efectuada por la herramienta
B15: Refrigeración € /año | C15: --
C16: Escenario de Rehabilitación
B17: Rehabilitación opaco | C17: 2 | D17: 1 | E17: 1 | F17: 2 | G17: 1 | H17: 1 | I17: 2 | J17: 2
B18: Rehabilitación hueco | C18: 2 | D18: 1 | E18: 1 | F18: 2 | G18: 1 | H18: 1 | I18: (--) | J18: 2
B19: Protección solar huecos | C19: 1 | D19: 1 | E19: 1 | F19: 1 | G19: 1 | H19: 1 | I19: (--) | J19: (--)
B20: Tipo Intervención | C20: 2 | D20: 1 | E20: 1 | F20: 2 | G20: 1 | H20: 1 | I20: 2 | J20: 2
B21: Puentes Térmicos | C21: 1
B22: Hermeticidad | C22: 1
B24: Presupuesto total de rehabilitación € | D24: -- | E24: Si no se dispone de este dato se usará una estimación efectuada por la herramienta
C25: Listado coeficientes antes y después de rehabilitar
B26: Coeficientes Edificio Sin Rehabilitar
B27: Uopaco | C27: =INDEX(LIMITES!$B$4:$B$6,$C$8) -> 1.8 | D27: =INDEX(LIMITES!$B$4:$B$6,$C$8) -> 1.8 | E27: =INDEX(LIMITES!$B$4:$B$6,$C$8) -> 1.8 | F27: =INDEX(LIMITES!$B$4:$B$6,$C$8) -> 1.8 | G27: =INDEX(LIMITES!$B$4:$B$6,$C$8) -> 1.8 | H27: =INDEX(LIMITES!$B$4:$B$6,$C$8) -> 1.8 | I27: =INDEX(LIMITES!C4:C6,C8) -> 2.5 | J27: =INDEX(LIMITES!$B$4:$B$6,$C$8) -> 1.8 | K27: W/m2·K
B28: Uhuecos | C28: =INDEX(LIMITES!$D$4:$D$6,$C$8) -> 5.7 | D28: =INDEX(LIMITES!$D$4:$D$6,$C$8) -> 5.7 | E28: =INDEX(LIMITES!$D$4:$D$6,$C$8) -> 5.7 | F28: =INDEX(LIMITES!$D$4:$D$6,$C$8) -> 5.7 | G28: =INDEX(LIMITES!$D$4:$D$6,$C$8) -> 5.7 | H28: =INDEX(LIMITES!$D$4:$D$6,$C$8) -> 5.7 | I28: (--) | J28: =INDEX(LIMITES!$D$4:$D$6,$C$8) -> 5.7 | K28: W/m2·K
B29: F.solar | C29: =INDEX(LIMITES!$F$4:$F$5,$C$8,0) -> 0.75 | D29: =INDEX(LIMITES!$F$4:$F$5,$C$8,0) -> 0.75 | E29: =INDEX(LIMITES!$F$4:$F$5,$C$8,0) -> 0.75 | F29: =INDEX(LIMITES!$F$4:$F$5,$C$8,0) -> 0.75 | G29: =INDEX(LIMITES!$F$4:$F$5,$C$8,0) -> 0.75 | H29: =INDEX(LIMITES!$F$4:$F$5,$C$8,0) -> 0.75 | J29: =INDEX(LIMITES!$F$4:$F$5,$C$8,0) -> 0.75
B30: Factor PT | C30: =LIMITES!J8 -> 1.3 | K30: (-)
B31: Hermeticidad | C31: =INDEX(LIMITES!E4:E6,C8) -> 2 | K31: ren/h
B32: Coeficientes Edificio Rehabilitado
B33: Uopaco | C33: =IF(C17=1,C27,VLOOKUP(LEFT($G$5,1),LIMITES!$A$10:$D$14,C17,0)) -> 0.49 | D33: =IF(D17=1,D27,VLOOKUP(LEFT($G$5,1),LIMITES!$A$10:$D$14,D17,0)) -> 1.8 | E33: =IF(E17=1,E27,VLOOKUP(LEFT($G$5,1),LIMITES!$A$10:$D$14,E17,0)) -> 1.8 | F33: =IF(F17=1,F27,VLOOKUP(LEFT($G$5,1),LIMITES!$A$10:$D$14,F17,0)) -> 0.49 | G33: =IF(G17=1,G27,VLOOKUP(LEFT($G$5,1),LIMITES!$A$10:$D$14,G17,0)) -> 1.8 | H33: =IF(H17=1,H27,VLOOKUP(LEFT($G$5,1),LIMITES!$A$10:$D$14,H17,0)) -> 1.8 | I33: =IF(I17=1,I27,VLOOKUP(LEFT($G$5,1),LIMITES!$E$10:$H$14,I17,0)) -> 0.4 | J33: =IF(J17=1,J27,VLOOKUP(LEFT($G$5,1),LIMITES!$A$10:$D$14,J17,0)) -> 0.49 | K33: W/m2·K
B34: Uhuecos | C34: =IF(C18=1,C28,IF(C18=2,(VLOOKUP(LEFT($G$5,1),LIMITES!$A$17:$D$21,2)),IF(C18=3,(VLOOKUP(LEFT($G$5,1),LIMITES!$A$17:$D$21,3)),VLOOKUP(LEFT($G$5,1),LIMITES!$A$17:$D$21,4)))) -> 2.1 | D34: =IF(D18=1,D28,IF(D18=2,(VLOOKUP(LEFT($G$5,1),LIMITES!$A$17:$D$21,2)),IF(D18=3,(VLOOKUP(LEFT($G$5,1),LIMITES!$A$17:$D$21,3)),VLOOKUP(LEFT($G$5,1),LIMITES!$A$17:$D$21,4)))) -> 5.7 | E34: =IF(E18=1,E28,IF(E18=2,(VLOOKUP(LEFT($G$5,1),LIMITES!$A$17:$D$21,2)),IF(E18=3,(VLOOKUP(LEFT($G$5,1),LIMITES!$A$17:$D$21,3)),VLOOKUP(LEFT($G$5,1),LIMITES!$A$17:$D$21,4)))) -> 5.7 | F34: =IF(F18=1,F28,IF(F18=2,(VLOOKUP(LEFT($G$5,1),LIMITES!$A$17:$D$21,2)),IF(F18=3,(VLOOKUP(LEFT($G$5,1),LIMITES!$A$17:$D$21,3)),VLOOKUP(LEFT($G$5,1),LIMITES!$A$17:$D$21,4)))) -> 2.1 | G34: =IF(G18=1,G28,IF(G18=2,(VLOOKUP(LEFT($G$5,1),LIMITES!$A$17:$D$21,2)),IF(G18=3,(VLOOKUP(LEFT($G$5,1),LIMITES!$A$17:$D$21,3)),VLOOKUP(LEFT($G$5,1),LIMITES!$A$17:$D$21,4)))) -> 5.7 | H34: =IF(H18=1,H28,IF(H18=2,(VLOOKUP(LEFT($G$5,1),LIMITES!$A$17:$D$21,2)),IF(H18=3,(VLOOKUP(LEFT($G$5,1),LIMITES!$A$17:$D$21,3)),VLOOKUP(LEFT($G$5,1),LIMITES!$A$17:$D$21,4)))) -> 5.7 | I34: (--) | J34: =IF(J18=1,J28,IF(J18=2,(VLOOKUP(LEFT($G$5,1),LIMITES!$A$17:$D$21,2)),IF(J18=3,(VLOOKUP(LEFT($G$5,1),LIMITES!$A$17:$D$21,3)),VLOOKUP(LEFT($G$5,1),LIMITES!$A$17:$D$21,4)))) -> 2.1 | K34: W/m2·K
B35: F.Solar | C35: =IF(C19=1,C29,INDEX(LIMITES!$B$24:$B$25,C19,0)) -> 0.75 | D35: =IF(D19=1,D29,INDEX(LIMITES!$B$24:$B$25,D19,0)) -> 0.75 | E35: =IF(E19=1,E29,INDEX(LIMITES!$B$24:$B$25,E19,0)) -> 0.75 | F35: =IF(F19=1,F29,INDEX(LIMITES!$B$24:$B$25,F19,0)) -> 0.75 | G35: =IF(G19=1,G29,INDEX(LIMITES!$B$24:$B$25,G19,0)) -> 0.75 | H35: =IF(H19=1,H29,INDEX(LIMITES!$B$24:$B$25,H19,0)) -> 0.75 | I35: (--) | J35: (--)
B36: R.térmica aislante | C36: =1/C33-1/C27 -> 1.485260771 | D36: 0 | E36: 0 | F36: 1.485260771 | G36: 0 | H36: 0 | I36: 2.1 | J36: 1.485260771 | K36: m2·K/W
B37: Factor PT | C37: =INDEX(LIMITES!J8:J10,C21) -> 1.3 | K37: (-)
B38: Hermeticidad | C38: =IF(C22=1,C31,INDEX(LIMITES!J4:J6,DATOS!C22)) -> 2 | K38: ren/h
C40: DEMANDA ENERGÉTICA PROBABLE
D41: Estado inicial | E41: Edificio rehabilitado | G41: Estado inicial | H41: Edificio rehabilitado
C42: Calefacción | D42: ='Calculo(inicial)'!B108 -> 99097.30619 | E42: ='Calculo(rehabilitado)'!B108 -> 52189.07175 | F42: kWh/año | G42: =D42/$C$6 -> 155.8133745 | H42: 82.05828891 | I42: kWh/m2/año
C43: Refrigeración | D43: ='Calculo(inicial)'!B109 -> 3557.386256 | E43: ='Calculo(rehabilitado)'!B109 -> 2426.546478 | F43: kWh/año | G43: 5.593374616 | H43: 3.815324652 | I43: kWh/m2/año
C44: TOTAL | D44: =SUM(D42:D43) -> 102654.6924 | E44: =SUM(E42:E43) -> 54615.61823 | F44: kWh/año | G44: 161.4067491 | H44: 85.87361356 | I44: kWh/m2/año
C45: %ahorro | E45: =100*(D44-E44)/D44 -> 46.79676406 | F45: % | H45: =100*(G44-H44)/G44 -> 46.79676406 | I45: %
B47: Rendimiento estacional | D47: Coef paso a EPnr
B48: Calefacción | C48: =LIMITES!B29 -> 0.85 | D48: =LIMITES!D29 -> 1.195
B49: Refrigeración | C49: =LIMITES!B30 -> 3 | D49: =LIMITES!D30 -> 1.954
C51: CONSUMO PROBABLE E. Final | I51: Energía Primaria nr
D52: Estado inicial | E52: Edificio rehabilitado | G52: Estado inicial | H52: Edificio rehabilitado | I52: Inicial | J52: Rehabilitado
C53: Calefacción | D53: =D42/C48 -> 116585.0661 | E53: =E42/C48 -> 61398.90794 | F53: kWh/año | G53: =D53/$C$6 -> 183.3098524 | H53: 96.53916343 | I53: =G53*$D$48 -> 219.0552736 | J53: =H53*$D$48 -> 115.3643003
C54: Refrigeración | D54: =IF(C12=1,D43/C49,0) -> 0 | E54: =IF(C12=1,E43/C49,0) -> 0 | F54: kWh/año | G54: 0 | H54: 0 | I54: =G54*$D$49 -> 0 | J54: =H54*$D$49 -> 0
C55: TOTAL | D55: =SUM(D53:D54) -> 116585.0661 | E55: =SUM(E53:E54) -> 61398.90794 | F55: kWh/año | G55: 183.3098524 | H55: 96.53916343 | I55: =I53+I54 -> 219.0552736 | J55: =J53+J54 -> 115.3643003
C56: %ahorro | E56: =100*(D55-E55)/D55 -> 47.33552933 | F56: % | H56: =100*(G55-H55)/G55 -> 47.33552933 | J56: =100*(I55-J55)/I55 -> 47.33552933
B58: Coste Energético
B59: Calefacción | C59: =LIMITES!C29 -> 0.0605 | D59: €/kwH
B60: Refrigeración | C60: =LIMITES!C30 -> 0.2057 | D60: €/kwH
C62: COSTE ENERGETICO PROBABLE
D63: Estado inicial | E63: Edificio rehabilitado | G63: Estado inicial | H63: Edificio rehabilitado
C64: Calefacción | D64: =D53*C59 -> 7053.396499 | E64: =E53*C59 -> 3714.63393 | F64: €/año | G64: =D64/$C$6 -> 11.09024607 | H64: 5.840619387 | I64: €/m2/año
C65: Refrigeración | D65: =D54*C60 -> 0 | E65: =E54*C60 -> 0 | F65: €/año | G65: 0 | H65: 0 | I65: €/m2/año
C66: TOTAL | D66: =SUM(D64:D65) -> 7053.396499 | E66: =SUM(E64:E65) -> 3714.63393 | F66: €/año | G66: 11.09024607 | H66: 5.840619387 | I66: €/m2/año
C67: %ahorro | E67: =100*(D66-E66)/D66 -> 47.33552933 | F67: % | H67: =100*(G66-H66)/G66 -> 47.33552933 | I67: %
B69: Costes unitarios | C69: Opacos
B70: Coste Intervención €/m2 | C70: =INDEX(LIMITES!$C$36:$C$40,C20) -> 90.75 | D70: =INDEX(LIMITES!$C$36:$C$40,D20) -> 0 | E70: =INDEX(LIMITES!$C$36:$C$40,E20) -> 0 | F70: =INDEX(LIMITES!$C$36:$C$40,F20) -> 90.75 | G70: =INDEX(LIMITES!$C$36:$C$40,G20) -> 0 | H70: =INDEX(LIMITES!$C$36:$C$40,H20) -> 0 | I70: =INDEX(LIMITES!C42:C44,I20) -> 102.85 | J70: =INDEX(LIMITES!$C$36:$C$40,J20) -> 90.75
B71: Coste Aislamiento €/m2 | C71: =IF(C20=1,0,IF(C20=2,9.7643*C36+6.65,IF(C20=3,4.9286*C36+6,IF(C20=4,5.7143*C36+5,IF(C20=5,5.5714*C36+7.5,"nd"))))) -> 21.15253175 | D71: 0 | E71: 0 | F71: 21.15253175 | G71: 0 | H71: 0 | I71: =IF(I20=1,0,IF(I20=2,10.357*I36,IF(I20=3,4.9286*I36+6,"nd"))) -> 21.7497 | J71: =IF(J20=1,0,IF(J20=2,9.7643*J36+6.65,IF(J20=3,4.9286*J36+6,IF(J20=4,5.7143*J36+5,IF(J20=5,5.5714*J36+7.5,"nd"))))) -> 21.15253175
B72: Coste TOTAL €/m2 | C72: =C70+C71 -> 111.9025317 | D72: =D70+D71 -> 0 | E72: 0 | F72: 111.9025317 | G72: 0 | H72: 0 | I72: 124.5997 | J72: 111.9025317
B73: Costes Unitarios | C73: Huecos
B74: Coste TOTAL €/m2 | C74: =INDEX(LIMITES!$B$48:$E$48,C18) -> 491.26 | D74: =INDEX(LIMITES!$B$48:$E$48,D18) -> 0 | E74: =INDEX(LIMITES!$B$48:$E$48,E18) -> 0 | F74: =INDEX(LIMITES!$B$48:$E$48,F18) -> 491.26 | G74: =INDEX(LIMITES!$B$48:$E$48,G18) -> 0 | H74: =INDEX(LIMITES!$B$48:$E$48,H18) -> 0 | I74: (--) | J74: =INDEX(LIMITES!$B$48:$E$48,J18) -> 491.26
B75: Coste Prot. solar €/m2 | C75: =IF(C19=1,0,LIMITES!$C$52) -> 0 | D75: =IF(D19=1,0,LIMITES!$C$52) -> 0 | E75: =IF(E19=1,0,LIMITES!$C$52) -> 0 | F75: =IF(F19=1,0,LIMITES!$C$52) -> 0 | G75: =IF(G19=1,0,LIMITES!$C$52) -> 0 | H75: =IF(H19=1,0,LIMITES!$C$52) -> 0 | I75: (--) | J75: 0
B77: Estimación coste rehabilitación | K77: Total
B78: Elementos opacos (m2) | C78: =IF(C17=1,0,C10*(100-C11)/100) -> 116.4 | D78: 0 | E78: 0 | F78: 116.4 | G78: 0 | H78: 0 | I78: =IF(I17=1,0,I10*(100)/100) -> 15.16 | J78: =IF(J17=1,0,J10*(100-J11)/100) -> 238.08
B79: Coste (€) | C79: =C78*C72 -> 13025.4547 | D79: 0 | E79: 0 | F79: 13025.4547 | G79: 0 | H79: 0 | I79: 1888.931452 | J79: 26641.75476 | K79: =SUM(C79:J79) -> 54581.5956
B80: Coste Aislamiento(€) | C80: =C78*C71 -> 2462.154695 | D80: 0 | E80: 0 | F80: 2462.154695 | G80: 0 | H80: 0 | I80: 329.725452 | J80: 5035.994758 | K80: =SUM(C80:J80) -> 10290.0296
B81: Elementos huecos (m2) | C81: =IF(C18=1,0,C10*(C11)/100) -> 29.1 | D81: 0 | E81: 0 | F81: 29.1 | G81: 0 | H81: 0 | I81: (--) | J81: =IF(J18=1,0,J10*(J11)/100) -> 59.52
B82: Coste (€) | C82: =C81*(C74+C75) -> 14295.666 | D82: 0 | E82: 0 | F82: 14295.666 | G82: 0 | H82: 0 | I82: (--) | J82: =J81*(J74+J75) -> 29239.7952 | K82: =SUM(C82:J82) -> 57831.1272
B83: Sobre Coste (€) | C83: =C82 -> 14295.666 | D83: =D82 -> 0 | E83: 0 | F83: 14295.666 | G83: 0 | H83: 0 | I83: (--) | J83: 29239.7952 | K83: =SUM(C83:J83) -> 57831.1272
B85: RESULTADOS ENERGETICOS
C86: Reducción anual Demanda | F86: =H45 -> 46.79676406 | G86: % kWh/año
C87: Reducción Anual Energía Primaria no renovable | F87: =J56 -> 47.33552933 | G87: % kWh/año
B89: RESULTADOS ECONOMICOS
D90: Ahorro porcentual probable | E90: Calefacción | F90: =IF(D64=0,0,100*(D64-E64)/D64) -> 47.33552933 | G90: % de €/año
E91: Refrigeración | F91: =IF(C12=2,0,IF(D65=0,0,100*(D65-E65)/D65)) -> 0 | G91: % de €/año
E92: TOTAL | F92: =100*(D66-E66)/D66 -> 47.33552933 | G92: % de €/año
F93: COSTES REALES | H93: Estimación coste debido solo al aislamiento de la envolvente | I93: Estimación coste total rehabilitación
B94: Coste Operacional | C94: Sin Rehabilitar | D94: Rehabilitado | E94: Rehabilitación | F94: =IF(ISNUMBER(D24),D24,I94) -> 112412.7228 | G94: € | H94: =K80 -> 10290.0296 | I94: =K79+K82 -> 112412.7228
B95: Calefacción €/año | C95: =D64 -> 7053.396499 | D95: =E64 -> 3714.63393 | E95: Coste calefacción | F95: =IF(ISNUMBER(C14),C14,C95) -> 7053.396499 | G95: €/año
B96: Refrigeración €/año | C96: =D65 -> 0 | D96: =E65 -> 0 | E96: Coste Refrigeración | F96: =IF(ISNUMBER(C15),C15,C96) -> 0 | G96: €/año
B97: TOTAL | C97: =C95+C96 -> 7053.396499 | D97: =D95+D96 -> 3714.63393 | E97: Ahorro anual | F97: =F95+F96-F95*(1-F90/100)-F96*(1-F91/100) -> 3338.762569 | G97: €/año
B98: POSIBILIDAD SUBVENCIONES
B99: Zona | C99: =LEFT(G5,1) -> C | E99: Numero viviendas | F99: =F6 -> 8
B100: ¿Cumple el requisito de reducción de la demanda | D100: =IF(C99="a",0,IF(C99="B",0,IF(C99="C",25,IF(C99="D",35,IF(C99="E",35,"ND"))))) -> 25 | E100: % ? | F100: =IF(F86>=D100,"SI","NO") -> SI | G100: =IF(F100="no",0,1) -> 1
B101: ¿Cumple el requisito de reducción CEP,nr | D101: 30 | E101: % ? | F101: =IF(F87>D101,"SI","NO") -> SI | G101: =IF(F101="no",0,1) -> 1
B102: Aplicación RD de subvenciones | D102: La cantidad máxima subvencionable es de: | F102: =$G$100*$G$101*IF($F$87<30,0,IF($F$87<45,MIN(8100*$F$99,0.4*F94),IF($F$87<60,MIN(14500*$F$99,0.65*F94),MIN(21400*$F$99,0.8*F94)))) -> 73068.26982
D103: El porcentaje máximo subvencionable es: | F103: =F102/F94 -> 0.65
D104: En relación al coste de actuación de : | F104: =F94 -> 112412.7228
B105: ANALISIS VIABILIDAD SIN SUBVENCIONES
E106: Recuperación | F106: =IF(F94=0,"--",IF(AND(F90=0,F91=0),"--",IF(AND(F90=0,F91<>0),F94/F97,IF(AND(F91=0,F90<>0),F94/F97,F94/F97)))) -> 33.6689778 | G106: años
D107: Tasa Interna de Retorno de la inversión (horizonte 50 años) | E107: =CONCATENATE("TIR_",'Flujo de caja'!A54 ) -> TIR_50 | F107: ='Flujo de caja'!I5 -> 0.01676966707
D108: Valor Actual Neto de la inversión (horizonte 50 años, tasa interés 1%) | E108: =CONCATENATE("VAN_",'Flujo de caja'!A54,"_",'Flujo de caja'!I2) -> VAN_50_1 | F108: ='Flujo de caja'!I6 -> 18453.80726
B110: ANALISIS VIABILIDAD CON SUBVENCIONES
E111: Recuperación | F111: =IF(F94-F102=0,"--",IF(AND(F90=0,F91=0),"--",IF(AND(F90=0,F91<>0),(F94-F102)/(F97),IF(AND(F91=0,F90<>0),(F94-F102)/(F97),(F94-F102)/(F97))))) -> 11.78414223 | G111: años
D112: Tasa Interna de Retorno de la inversión (horizonte 50 años) | E112: =CONCATENATE("TIR_",'Flujo de caja'!A54 ) -> TIR_50 | F112: ='Flujo de caja'!I8 -> 0.08330696954
D113: Valor Actual Neto de la inversión (horizonte 50 años, tasa interés 1%) | E113: =CONCATENATE("VAN_",'Flujo de caja'!A54,"_",'Flujo de caja'!I2) -> VAN_50_1 | F113: ='Flujo de caja'!I9 -> 91522.07708
C116: Esta herramienta ha sido desarrollada por J.Sole de URSA y ha sido cedida a ANDIMAT para su difusión
B119: © Josep Sole | C119: Actualización marzo 2022 con apoyo del Grupo de Trabajo de Eficiencia Energética de ANDIMAT
B121: DISCLAIMER / DESCARGO DE RESPONABILIDAD
B122: El objeto de esta herramienta es efectuar un estudio preliminar sobre el impacto de la rehabilitación en un edificio de viviendas.
B123: No es pues una herramienta para ser utilizada en fase de proyecto definitivo de rehabilitación y tampoco una herramienta para efectuar las verificaciones reglamentarias que puedan ser legalmente exigibles
B124: La información proporcionada por la herramienta se ofrece a título estimativo como ayuda al usuario o propietario del edificio o vivienda, pero ni es ni puede sustituir al conjunto de cálculos y comprobaciones que la dirección técnica del proyecto de rehabilitación energética deberá llevar a cabo para justificar el cumplimiento de la reglamentación técnica vigente y de aplicación al proyecto, como puede ser la reglamentaria certificación energética del edificio o vivienda.
B125: Los diferentes niveles de rehabilitación ("mínima", "estándar" y "elevada") sirven para realizar cálculos orientativos, pero no implican el cumplimiento con el Código Técnico de Edificación que deberá ser siempre evaluado por la dirección técnica del proyecto.
B126: El estudio proporcionado sobre el cumplimiento con las subvenciones es orientativo y se deberá verificar en cada Comunidad Autónoma por un técnico designado a tal fin.

Sheet Flujo de caja (hidden)
H1: Periodo | I1: 50 | J1: años
B2: Sin subvenciones | E2: Con Subvenciones | H2: Interes referencia | I2: 1 | J2: %
A3: años | B3: reales | C3: aislamiento | D3: estimado | E3: reales | F3: aislamiento | G3: estimado | I3: =I2/100 -> 0.01 | J3: (0-1)
A4: 0 | B4: =-DATOS!F94 -> -112412.7228 | C4: =-DATOS!H94 -> -10290.0296 | D4: =-DATOS!I94 -> -112412.7228 | E4: =B4+DATOS!F102 -> -39344.45298 | F4: =C4+DATOS!H102 -> -10290.0296 | G4: =D4+DATOS!I102 -> -112412.7228 | H4: Sin subvencion
A5: 1 | B5: =DATOS!F97 -> 3338.762569 | C5: =DATOS!F97 -> 3338.762569 | D5: =DATOS!F97 -> 3338.762569 | E5: =DATOS!F97 -> 3338.762569 | F5: =DATOS!F97 -> 3338.762569 | G5: =DATOS!F97 -> 3338.762569 | H5: TIR | I5: =IRR(B4:B54,0.01) -> 0.01676966707 | J5: =IRR(C4:C54,0.01) -> 0.3244655321 | K5: =IRR(D4:D54,0.01) -> 0.01676966707
A6: 2 | B6: =B5 -> 3338.762569 | C6: 3338.762569 | D6: 3338.762569 | E6: 3338.762569 | F6: 3338.762569 | G6: 3338.762569 | H6: VAN | I6: =NPV(I3,B5:B54)+B4 -> 18453.80726 | J6: =NPV(I3,C5:C54)+C4 -> 120576.5005 | K6: =NPV(I3,D5:D54)+D4 -> 18453.80726
A7: 3 | B7: =B6 -> 3338.762569 | C7: =C6 -> 3338.762569 | D7: =D6 -> 3338.762569 | E7: 3338.762569 | F7: 3338.762569 | G7: 3338.762569 | H7: Con Subvencion
A8: 4 | B8: 3338.762569 | C8: 3338.762569 | D8: 3338.762569 | E8: 3338.762569 | F8: 3338.762569 | G8: 3338.762569 | H8: TIR | I8: =IRR(E4:E54,0.01) -> 0.08330696954 | J8: =IRR(F4:F54,0.01) -> 0.3244655321 | K8: =IRR(G4:G54,0.01) -> 0.01676966707
A9: 5 | B9: 3338.762569 | C9: 3338.762569 | D9: 3338.762569 | E9: 3338.762569 | F9: 3338.762569 | G9: 3338.762569 | H9: VAN | I9: =NPV($I$3,E5:E54)+E4 -> 91522.07708 | J9: =NPV($I$3,F5:F54)-F4 -> 141156.5597 | K9: =NPV($I$3,G5:G54)+G4 -> 18453.80726
A10: 6 | B10: 3338.762569 | C10: 3338.762569 | D10: 3338.762569 | E10: 3338.762569 | F10: 3338.762569 | G10: 3338.762569
A11: 7 | B11: 3338.762569 | C11: 3338.762569 | D11: 3338.762569 | E11: 3338.762569 | F11: 3338.762569 | G11: 3338.762569
A12: 8 | B12: 3338.762569 | C12: 3338.762569 | D12: 3338.762569 | E12: 3338.762569 | F12: 3338.762569 | G12: 3338.762569
A13: 9 | B13: 3338.762569 | C13: 3338.762569 | D13: 3338.762569 | E13: 3338.762569 | F13: 3338.762569 | G13: 3338.762569
A14: 10 | B14: 3338.762569 | C14: 3338.762569 | D14: 3338.762569 | E14: 3338.762569 | F14: 3338.762569 | G14: 3338.762569
A15: 11 | B15: 3338.762569 | C15: 3338.762569 | D15: 3338.762569 | E15: 3338.762569 | F15: 3338.762569 | G15: 3338.762569
A16: 12 | B16: 3338.762569 | C16: 3338.762569 | D16: 3338.762569 | E16: 3338.762569 | F16: 3338.762569 | G16: 3338.762569
A17: 13 | B17: 3338.762569 | C17: 3338.762569 | D17: 3338.762569 | E17: 3338.762569 | F17: 3338.762569 | G17: 3338.762569
A18: 14 | B18: 3338.762569 | C18: 3338.762569 | D18: 3338.762569 | E18: 3338.762569 | F18: 3338.762569 | G18: 3338.762569
A19: 15 | B19: 3338.762569 | C19: 3338.762569 | D19: 3338.762569 | E19: 3338.762569 | F19: 3338.762569 | G19: 3338.762569
A20: 16 | B20: 3338.762569 | C20: 3338.762569 | D20: 3338.762569 | E20: 3338.762569 | F20: 3338.762569 | G20: 3338.762569
A21: 17 | B21: 3338.762569 | C21: 3338.762569 | D21: 3338.762569 | E21: 3338.762569 | F21: 3338.762569 | G21: 3338.762569
A22: 18 | B22: 3338.762569 | C22: 3338.762569 | D22: 3338.762569 | E22: 3338.762569 | F22: 3338.762569 | G22: 3338.762569
A23: 19 | B23: 3338.762569 | C23: 3338.762569 | D23: 3338.762569 | E23: 3338.762569 | F23: 3338.762569 | G23: 3338.762569
A24: 20 | B24: 3338.762569 | C24: 3338.762569 | D24: 3338.762569 | E24: 3338.762569 | F24: 3338.762569 | G24: 3338.762569
A25: 21 | B25: 3338.762569 | C25: 3338.762569 | D25: 3338.762569 | E25: 3338.762569 | F25: 3338.762569 | G25: 3338.762569
A26: 22 | B26: 3338.762569 | C26: 3338.762569 | D26: 3338.762569 | E26: 3338.762569 | F26: 3338.762569 | G26: 3338.762569
A27: 23 | B27: 3338.762569 | C27: 3338.762569 | D27: 3338.762569 | E27: 3338.762569 | F27: 3338.762569 | G27: 3338.762569
A28: 24 | B28: 3338.762569 | C28: 3338.762569 | D28: 3338.762569 | E28: 3338.762569 | F28: 3338.762569 | G28: 3338.762569
A29: 25 | B29: 3338.762569 | C29: 3338.762569 | D29: 3338.762569 | E29: 3338.762569 | F29: 3338.762569 | G29: 3338.762569
A30: 26 | B30: 3338.762569 | C30: 3338.762569 | D30: 3338.762569 | E30: 3338.762569 | F30: 3338.762569 | G30: 3338.762569
A31: 27 | B31: 3338.762569 | C31: 3338.762569 | D31: 3338.762569 | E31: 3338.762569 | F31: 3338.762569 | G31: 3338.762569
A32: 28 | B32: 3338.762569 | C32: 3338.762569 | D32: 3338.762569 | E32: 3338.762569 | F32: 3338.762569 | G32: 3338.762569
A33: 29 | B33: 3338.762569 | C33: 3338.762569 | D33: 3338.762569 | E33: 3338.762569 | F33: 3338.762569 | G33: 3338.762569
A34: 30 | B34: 3338.762569 | C34: 3338.762569 | D34: 3338.762569 | E34: 3338.762569 | F34: 3338.762569 | G34: 3338.762569
A35: 31 | B35: 3338.762569 | C35: 3338.762569 | D35: 3338.762569 | E35: 3338.762569 | F35: 3338.762569 | G35: 3338.762569
A36: 32 | B36: 3338.762569 | C36: 3338.762569 | D36: 3338.762569 | E36: 3338.762569 | F36: 3338.762569 | G36: 3338.762569
A37: 33 | B37: 3338.762569 | C37: 3338.762569 | D37: 3338.762569 | E37: 3338.762569 | F37: 3338.762569 | G37: 3338.762569
A38: 34 | B38: 3338.762569 | C38: 3338.762569 | D38: 3338.762569 | E38: 3338.762569 | F38: 3338.762569 | G38: 3338.762569
A39: 35 | B39: 3338.762569 | C39: 3338.762569 | D39: 3338.762569 | E39: 3338.762569 | F39: 3338.762569 | G39: 3338.762569
A40: 36 | B40: 3338.762569 | C40: 3338.762569 | D40: 3338.762569 | E40: 3338.762569 | F40: 3338.762569 | G40: 3338.762569
A41: 37 | B41: 3338.762569 | C41: 3338.762569 | D41: 3338.762569 | E41: 3338.762569 | F41: 3338.762569 | G41: 3338.762569
A42: 38 | B42: 3338.762569 | C42: 3338.762569 | D42: 3338.762569 | E42: 3338.762569 | F42: 3338.762569 | G42: 3338.762569
A43: 39 | B43: 3338.762569 | C43: 3338.762569 | D43: 3338.762569 | E43: 3338.762569 | F43: 3338.762569 | G43: 3338.762569
A44: 40 | B44: 3338.762569 | C44: 3338.762569 | D44: 3338.762569 | E44: 3338.762569 | F44: 3338.762569 | G44: 3338.762569
A45: 41 | B45: 3338.762569 | C45: 3338.762569 | D45: 3338.762569 | E45: 3338.762569 | F45: 3338.762569 | G45: 3338.762569
A46: 42 | B46: 3338.762569 | C46: 3338.762569 | D46: 3338.762569 | E46: 3338.762569 | F46: 3338.762569 | G46: 3338.762569
A47: 43 | B47: 3338.762569 | C47: 3338.762569 | D47: 3338.762569 | E47: 3338.762569 | F47: 3338.762569 | G47: 3338.762569
A48: 44 | B48: 3338.762569 | C48: 3338.762569 | D48: 3338.762569 | E48: 3338.762569 | F48: 3338.762569 | G48: 3338.762569
A49: 45 | B49: 3338.762569 | C49: 3338.762569 | D49: 3338.762569 | E49: 3338.762569 | F49: 3338.762569 | G49: 3338.762569
A50: 46 | B50: 3338.762569 | C50: 3338.762569 | D50: 3338.762569 | E50: 3338.762569 | F50: 3338.762569 | G50: 3338.762569
A51: 47 | B51: 3338.762569 | C51: 3338.762569 | D51: 3338.762569 | E51: 3338.762569 | F51: 3338.762569 | G51: 3338.762569
A52: 48 | B52: 3338.762569 | C52: 3338.762569 | D52: 3338.762569 | E52: 3338.762569 | F52: 3338.762569 | G52: 3338.762569
A53: 49 | B53: 3338.762569 | C53: 3338.762569 | D53: 3338.762569 | E53: 3338.762569 | F53: 3338.762569 | G53: 3338.762569
A54: 50 | B54: 3338.762569 | C54: 3338.762569 | D54: 3338.762569 | E54: 3338.762569 | F54: 3338.762569 | G54: 3338.762569

Sheet Calculo(rehabilitado) (hidden)
B2: Emplazamiento | C2: 6
B3: Sup util | C3: m2 | D3: =DATOS!C6 -> 636
B4: Inercia termica | C4: kJ/m2·K | D4: 200 | E4: =IF(D4<=100,"muy baja",IF(D4<=150,"baja",IF(D4<400,"alta",IF(D4<=400,"alta","muy alta")))) -> alta
B5: Renovación de aire | C5: n (invierno) | D5: =DATOS!C38 -> 2
C6: n (verano) | D6: 5
B7: Altura plantas | C7: m | D7: =DATOS!C7 -> 3
A8: T.Consigna | B8: Calefacción | C8: ºC | D8: 19
B9: Refrigeración | C9: ºC | D9: 26
B10: Ganacias Internas | C10: W/m2 | D10: 2.1
D11: EXTERIOR | L11: INTERIORES
D12: Fachadas | J12: Cubiertas | K12: Exterior
D13: F.Sur | E13: F.SurEste | F13: F.Este | G13: F.Norte | H13: F.Oeste | I13: F.SurOeste | J13: Cubiertas | K13: No soleados | L13: A.Vivendas | M13: Z.Comunes | N13: A.Locales | O13: Techos | P13: Suelos | Q13: Total
A14: Geometria | B14: Sup | C14: m2 | D14: =DATOS!C10 -> 145.5 | E14: =DATOS!D10 -> 0 | F14: =DATOS!E10 -> 0 | G14: =DATOS!F10 -> 145.5 | H14: =DATOS!G10 -> 0 | I14: =DATOS!H10 -> 0 | J14: =DATOS!I10 -> 15.16 | K14: =DATOS!J10 -> 297.6
B15: % ventanas | C15: (--) (0 a 1) | D15: =DATOS!C11/100 -> 0.2 | E15: =DATOS!D11/100 -> 0 | F15: =DATOS!E11/100 -> 0 | G15: =DATOS!F11/100 -> 0.2 | H15: =DATOS!G11/100 -> 0 | I15: =DATOS!H11/100 -> 0 | J15: 0 | K15: =DATOS!J11/100 -> 0.2
A16: Carac Constructivas | B16: U opac | C16: W/m2·K | D16: =DATOS!C33 -> 0.49 | E16: =DATOS!D33 -> 1.8 | F16: =DATOS!E33 -> 1.8 | G16: =DATOS!F33 -> 0.49 | H16: =DATOS!G33 -> 1.8 | I16: =DATOS!H33 -> 1.8 | J16: =DATOS!I33 -> 0.4 | K16: =DATOS!J33 -> 0.49
B17: U ventanas | C17: W/m2·K | D17: =DATOS!C34 -> 2.1 | E17: =DATOS!D34 -> 5.7 | F17: =DATOS!E34 -> 5.7 | G17: =DATOS!F34 -> 2.1 | H17: =DATOS!G34 -> 5.7 | I17: =DATOS!H34 -> 5.7 | K17: =DATOS!J34 -> 2.1
B18: Transp. Ventana | C18: (--) (0 a 1) | D18: =DATOS!C35 -> 0.75 | E18: =DATOS!D35 -> 0.75 | F18: =DATOS!E35 -> 0.75 | G18: =DATOS!F35 -> 0.75 | H18: =DATOS!G35 -> 0.75 | I18: =DATOS!H35 -> 0.75 | K18: =DATOS!J35 -> (--)
B19: Coef.Exposición t | C19: (--) (0 a 1) | D19: 1 | E19: 1 | F19: 1 | G19: 1 | H19: 1 | I19: 1 | J19: 1 | K19: 1
A20: Sombras | B20: F.Sombra Horizonte (Fsh) | C20: (--) (0 a 1) | D20: 1 | E20: 1 | F20: 1 | G20: 1 | H20: 1 | I20: 1 | J20: 1 | K20: 1
B21: F.Carpinteria (Fc) | C21: (--) (0 a 1) | D21: 0.7 | E21: 0.7 | F21: 0.7 | G21: 0.7 | H21: 0.7 | I21: 0.7 | K21: 0.7
B22: F.Persianas (Calefacc.) (Fp.Cal) | C22: (--) (0 a 1) | D22: 1 | E22: 1 | F22: 1 | G22: 1 | H22: 1 | I22: 1 | K22: 1
B23: F.Persianas (Refrig) (Fp.Refrig) | C23: (--) (0 a 1) | D23: 0.7 | E23: 0.7 | F23: 0.7 | G23: 0.7 | H23: 0.7 | I23: 0.7 | K23: 0.7
B24: F.Cornisas (Fsc) | C24: (--) (0 a 1) | D24: 1 | E24: 1 | F24: 1 | G24: 1 | H24: 1 | I24: 1 | K24: 1
B25: F.Pantallas (Fsp) | C25: (--) (0 a 1) | D25: 1 | E25: 1 | F25: 1 | G25: 1 | H25: 1 | I25: 1 | K25: 1
A26: Frentes forjado | B26: Y F.forjado Cubierta | C26: W/m·K
B27: L F.forjado Cubierta | C27: m
B28: Y Fforjaado Intermedio | C28: W/m·K
B29: L F.forjado Intermedio | C29: m
B30: Y Fforjado Inferior | C30: W/m·K
B31: L F.forjado Inferior | C31: m
B32: Factor PT | C32: (--) | D32: =DATOS!C37 -> 1.3
A33: U medio | B33: (Sf*Uf+Sv*Uv)/S | C33: W/m2·K | D33: =IF(D14=0,0,(D14*(1-D15)*D16+D14*D15*D17)/D14) -> 0.812 | E33: =IF(E14=0,0,(E14*(1-E15)*E16+E14*E15*E17)/E14) -> 0 | F33: =IF(F14=0,0,(F14*(1-F15)*F16+F14*F15*F17)/F14) -> 0 | G33: 0.812 | H33: 0 | I33: =IF(I14=0,0,(I14*(1-I15)*I16+I14*I15*I17)/I14) -> 0 | J33: 0.4 | K33: 0.812 | L33: 0 | M33: 0 | N33: 0 | O33: =IF(O14=0,0,(O14*(1-O15)*O16+O14*O15*O17)/O14) -> 0 | P33: =IF(P14=0,0,(P14*(1-P15)*P16+P14*P15*P17)/P14) -> 0
A34: Transmission Termica | B34: S*U*t +Y*l | C34: W/K | D34: =D14*D33*D19*$D$32 -> 153.5898 | E34: 0 | F34: 0 | G34: 153.5898 | H34: 0 | I34: 0 | J34: =J14*J33*J19 -> 6.064 | K34: 314.14656 | L34: =L14*L33*L19+L26*L27*L19+L28*L29*L19+L30*L31*L19 -> 0 | M34: =M14*M33*M19+M26*M27*M19+M28*M29*M19+M30*M31*M19 -> 0 | N34: =N14*N33*N19+N26*N27*N19+N28*N29*N19+N30*N31*N19 -> 0 | O34: =O14*O33*O19+O26*O27*O19+O28*O29*O19+O30*O31*O19 -> 0 | P34: =P14*P33*P19+P26*P27*P19+P28*P29*P19+P30*P31*P19 -> 0 | Q34: =SUM(D34:P34) -> 627.39016
A35: Transmissión Ventilacion | B35: n(invierno)*V*0,34 | C35: W/K | Q35: =0.34*D3*D7*D5 -> 1297.44
B36: n(verano)*V*0,34 | C36: W/K | Q36: =0.34*D3*D7*D6 -> 3243.6
A37: F. Sombras (Calefac.) | B37: Fsh*Fc*Fp.Cal*Fsc*Fsp | C37: (--) (0 a 1) | D37: =D20*D21*D22*D24*D25 -> 0.7 | E37: =E20*E21*E22*E24*E25 -> 0.7 | F37: 0.7 | G37: 0.7 | H37: 0.7 | I37: =I20*I21*I22*I24*I25 -> 0.7 | J37: 0
A38: F. Sombras (Refrig.) | B38: Fsh*Fc*Fp.Refr*Fsc*Fsp | C38: (--) (0 a 1) | D38: =D20*D21*D23*D24*D25 -> 0.49 | E38: =E20*E21*E23*E24*E25 -> 0.49 | F38: 0.49 | G38: 0.49 | H38: 0.49 | I38: =I20*I21*I23*I24*I25 -> 0.49 | J38: 0
A39: Area solar (Calefac) | B39: Fs.Cal*tr*S | C39: m2 | D39: =D37*D14*D15*D18 -> 15.2775 | E39: 0 | F39: 0 | G39: 15.2775 | H39: 0 | I39: 0 | J39: 0 | K39: 0
A40: Area solar (Refrig.) | B40: Fs.Refr*tr*S | C40: m2 | D40: =D38*D14*D15*D18+0.045*(1-D15)*D14*D16*D20 -> 13.26087 | E40: 0 | F40: 0 | G40: 13.26087 | H40: 0 | I40: 0 | J40: 0.27288 | K40: 0
D41: F.Sur | E41: F.Sureste | F41: F.Este | G41: F.Norte | H41: F.Oeste | I41: F.Suroeste | J41: Cubierta | K41: Suelo
A42: TOTAL KWh/año | D42: Enero | E42: Febrero | F42: Marzo | G42: Abril | H42: Mayo | I42: Junio | J42: Julio | K42: Agosto | L42: Septiembre | M42: Octubre | N42: Noviembre | O42: Diciembre
A43: =SUM(D43:O43) -> 52189.07175 | B43: Ql-(Qi+Qs)*h | C43: CALEFACCION | D43: =IF(D76-D103*D95<0,0,D76-D103*D95) -> 12542.48201 | E43: 9230.547779 | F43: 8051.188963 | G43: 4726.35955 | H43: 893.9415913 | I43: 0 | J43: 0 | K43: 0 | L43: 0 | M43: 611.0590806 | N43: 6309.814561 | O43: 9823.678214
A44: =SUM(D44:O44) -> 2426.546478 | B44: Ql*h-(Q+Qs) | C44: REFRIGERACION | D44: =IF(D43>0,0,IF(D96-D104*D77<0,0,D96-D104*D77)) -> 0 | E44: =IF(E43>0,0,IF(E96-E104*E77<0,0,E96-E104*E77)) -> 0 | F44: 0 | G44: 0 | H44: 0 | I44: 382.0391747 | J44: 747.9950236 | K44: 859.3181472 | L44: 437.1941329 | M44: 0 | N44: 0 | O44: 0
D45: Enero | E45: Febrero | F45: Marzo | G45: Abril | H45: Mayo | I45: Junio | J45: Julio | K45: Agosto | L45: Septiembre | M45: Octubre | N45: Noviembre | O45: Diciembre
A46: Clima | B46: Dias | D46: 31 | E46: 28 | F46: 31 | G46: 30 | H46: 31 | I46: 30 | J46: 31 | K46: 31 | L46: 30 | M46: 31 | N46: 30 | O46: 31
B47: qe | C47: ºC | D47: =INDEX(LOCALIDADES!$B$3:$M$59,$C$2,1) -> 8.4 | E47: =INDEX(LOCALIDADES!$B$3:$M$59,$C$2,2) -> 10.1 | F47: =INDEX(LOCALIDADES!$B$3:$M$59,$C$2,3) -> 11.7 | G47: =INDEX(LOCALIDADES!$B$3:$M$59,$C$2,4) -> 14.1 | H47: =INDEX(LOCALIDADES!$B$3:$M$59,$C$2,5) -> 17.5 | I47: =INDEX(LOCALIDADES!$B$3:$M$59,$C$2,6) -> 19.9 | J47: =INDEX(LOCALIDADES!$B$3:$M$59,$C$2,7) -> 23.1 | K47: =INDEX(LOCALIDADES!$B$3:$M$59,$C$2,8) -> 23.6 | L47: =INDEX(LOCALIDADES!$B$3:$M$59,$C$2,9) -> 20.8 | M47: =INDEX(LOCALIDADES!$B$3:$M$59,$C$2,10) -> 17.8 | N47: =INDEX(LOCALIDADES!$B$3:$M$59,$C$2,11) -> 12.9 | O47: =INDEX(LOCALIDADES!$B$3:$M$59,$C$2,12) -> 10.6
B48: qi (Calef) | C48: ºC | D48: =$D$8 -> 19 | E48: =$D$8 -> 19 | F48: =$D$8 -> 19 | G48: =$D$8 -> 19 | H48: =$D$8 -> 19 | I48: =$D$8 -> 19 | J48: 19 | K48: 19 | L48: 19 | M48: 19 | N48: 19 | O48: 19
B49: qi (Refig) | C49: ºC | D49: =$D$9 -> 26 | E49: =$D$9 -> 26 | F49: 26 | G49: 26 | H49: 26 | I49: 26 | J49: 26 | K49: 26 | L49: 26 | M49: 26 | N49: 26 | O49: 26
B50: Is(Horitz) | C50: W/m2 dia | D50: =INDEX(LOCALIDADES!$N$3:$Y$59,$C$2,1) -> 2173.055556 | E50: =INDEX(LOCALIDADES!$N$3:$Y$59,$C$2,2) -> 2823.888889 | F50: =INDEX(LOCALIDADES!$N$3:$Y$59,$C$2,3) -> 3744.166667 | G50: =INDEX(LOCALIDADES!$N$3:$Y$59,$C$2,4) -> 4805.555556 | H50: =INDEX(LOCALIDADES!$N$3:$Y$59,$C$2,5) -> 5470 | I50: =INDEX(LOCALIDADES!$N$3:$Y$59,$C$2,6) -> 6162.5 | J50: =INDEX(LOCALIDADES!$N$3:$Y$59,$C$2,7) -> 6446.111111 | K50: =INDEX(LOCALIDADES!$N$3:$Y$59,$C$2,8) -> 5550.555556 | L50: =INDEX(LOCALIDADES!$N$3:$Y$59,$C$2,9) -> 4139.166667 | M50: =INDEX(LOCALIDADES!$N$3:$Y$59,$C$2,10) -> 3067.222222 | N50: =INDEX(LOCALIDADES!$N$3:$Y$59,$C$2,11) -> 2152.777778 | O50: =INDEX(LOCALIDADES!$N$3:$Y$59,$C$2,12) -> 1643.333333
B51: Is(Sur) | C51: W/m2 dia | D51: =INDEX(LOCALIDADES!$Z$3:$AK$59,$C$2,1) -> 4040.369106 | E51: =INDEX(LOCALIDADES!$Z$3:$AK$59,$C$2,2) -> 3728.474127 | F51: =INDEX(LOCALIDADES!$Z$3:$AK$59,$C$2,3) -> 3362.427292 | G51: =INDEX(LOCALIDADES!$Z$3:$AK$59,$C$2,4) -> 2909.635817 | H51: =INDEX(LOCALIDADES!$Z$3:$AK$59,$C$2,5) -> 2554.185008 | I51: =INDEX(LOCALIDADES!$Z$3:$AK$59,$C$2,6) -> 2535.331242 | J51: =INDEX(LOCALIDADES!$Z$3:$AK$59,$C$2,7) -> 2717.717283 | K51: =INDEX(LOCALIDADES!$Z$3:$AK$59,$C$2,8) -> 2959.706782 | L51: =INDEX(LOCALIDADES!$Z$3:$AK$59,$C$2,9) -> 3162.573039 | M51: =INDEX(LOCALIDADES!$Z$3:$AK$59,$C$2,10) -> 3560.559429 | N51: =INDEX(LOCALIDADES!$Z$3:$AK$59,$C$2,11) -> 3527.154522 | O51: =INDEX(LOCALIDADES!$Z$3:$AK$59,$C$2,12) -> 3090.376618
B52: Is(Sureste) | C52: W/m2 dia | D52: =INDEX(LOCALIDADES!$AK$3:$AW$59,$C$2,1) -> 3090.376618 | E52: =INDEX(LOCALIDADES!$AK$3:$AW$59,$C$2,2) -> 3145.48424 | F52: =INDEX(LOCALIDADES!$AK$3:$AW$59,$C$2,3) -> 3142.031452 | G52: =INDEX(LOCALIDADES!$AK$3:$AW$59,$C$2,4) -> 3235.636022 | H52: =INDEX(LOCALIDADES!$AK$3:$AW$59,$C$2,5) -> 3311.402385 | I52: =INDEX(LOCALIDADES!$AK$3:$AW$59,$C$2,6) -> 3196.907332 | J52: =INDEX(LOCALIDADES!$AK$3:$AW$59,$C$2,7) -> 3326.281136 | K52: =INDEX(LOCALIDADES!$AK$3:$AW$59,$C$2,8) -> 3586.470449 | L52: =INDEX(LOCALIDADES!$AK$3:$AW$59,$C$2,9) -> 3575.582125 | M52: =INDEX(LOCALIDADES!$AK$3:$AW$59,$C$2,10) -> 3263.000133 | N52: =INDEX(LOCALIDADES!$AK$3:$AW$59,$C$2,11) -> 3119.010821 | O52: =INDEX(LOCALIDADES!$AK$3:$AW$59,$C$2,12) -> 2810.128479
B53: Is(Este) | C53: W/m2 dia | D53: =INDEX(LOCALIDADES!$AX$3:$BI$59,$C$2,1) -> 1773.566265 | E53: =INDEX(LOCALIDADES!$AX$3:$BI$59,$C$2,2) -> 2137.515832 | F53: =INDEX(LOCALIDADES!$AX$3:$BI$59,$C$2,3) -> 2648.400548 | G53: =INDEX(LOCALIDADES!$AX$3:$BI$59,$C$2,4) -> 3209.266526 | H53: =INDEX(LOCALIDADES!$AX$3:$BI$59,$C$2,5) -> 3503.808997 | I53: =INDEX(LOCALIDADES!$AX$3:$BI$59,$C$2,6) -> 3886.963607 | J53: =INDEX(LOCALIDADES!$AX$3:$BI$59,$C$2,7) -> 4113.649169 | K53: =INDEX(LOCALIDADES!$AX$3:$BI$59,$C$2,8) -> 3662.655836 | L53: =INDEX(LOCALIDADES!$AX$3:$BI$59,$C$2,9) -> 2860.34422 | M53: =INDEX(LOCALIDADES!$AX$3:$BI$59,$C$2,10) -> 2264.764643 | N53: =INDEX(LOCALIDADES!$AX$3:$BI$59,$C$2,11) -> 1697.211286 | O53: =INDEX(LOCALIDADES!$AX$3:$BI$59,$C$2,12) -> 1327.217157
B54: Is(Norte) | C54: W/m2 dia | D54: =INDEX(LOCALIDADES!$BJ$3:$BU$59,$C$2,1) -> 598.1622046 | E54: =INDEX(LOCALIDADES!$BJ$3:$BU$59,$C$2,2) -> 821.3103438 | F54: =INDEX(LOCALIDADES!$BJ$3:$BU$59,$C$2,3) -> 1123.365646 | G54: =INDEX(LOCALIDADES!$BJ$3:$BU$59,$C$2,4) -> 1458.913157 | H54: =INDEX(LOCALIDADES!$BJ$3:$BU$59,$C$2,5) -> 1701.912236 | I54: =INDEX(LOCALIDADES!$BJ$3:$BU$59,$C$2,6) -> 1833.502358 | J54: =INDEX(LOCALIDADES!$BJ$3:$BU$59,$C$2,7) -> 1795.964619 | K54: =INDEX(LOCALIDADES!$BJ$3:$BU$59,$C$2,8) -> 1579.324145 | L54: =INDEX(LOCALIDADES!$BJ$3:$BU$59,$C$2,9) -> 1243.609091 | M54: =INDEX(LOCALIDADES!$BJ$3:$BU$59,$C$2,10) -> 906.6962095 | N54: =INDEX(LOCALIDADES!$BJ$3:$BU$59,$C$2,11) -> 637.991352 | O54: =INDEX(LOCALIDADES!$BJ$3:$BU$59,$C$2,12) -> 511.5648215
B55: Is(Oeste) | C55: W/m2 dia | D55: =INDEX(LOCALIDADES!$N$3:$Y$59,$C$2,1) -> 2173.055556 | E55: =INDEX(LOCALIDADES!$N$3:$Y$59,$C$2,2) -> 2823.888889 | F55: =INDEX(LOCALIDADES!$N$3:$Y$59,$C$2,3) -> 3744.166667 | G55: =INDEX(LOCALIDADES!$N$3:$Y$59,$C$2,4) -> 4805.555556 | H55: =INDEX(LOCALIDADES!$N$3:$Y$59,$C$2,5) -> 5470 | I55: =INDEX(LOCALIDADES!$N$3:$Y$59,$C$2,6) -> 6162.5 | J55: =INDEX(LOCALIDADES!$N$3:$Y$59,$C$2,7) -> 6446.111111 | K55: =INDEX(LOCALIDADES!$N$3:$Y$59,$C$2,8) -> 5550.555556 | L55: =INDEX(LOCALIDADES!$N$3:$Y$59,$C$2,9) -> 4139.166667 | M55: =INDEX(LOCALIDADES!$N$3:$Y$59,$C$2,10) -> 3067.222222 | N55: =INDEX(LOCALIDADES!$N$3:$Y$59,$C$2,11) -> 2152.777778 | O55: =INDEX(LOCALIDADES!$N$3:$Y$59,$C$2,12) -> 1643.333333
B56: Is(Suroeste) | C56: W/m2 dia | D56: =INDEX(LOCALIDADES!$AK$3:$AW$59,$C$2,1) -> 3090.376618 | E56: =INDEX(LOCALIDADES!$AK$3:$AW$59,$C$2,2) -> 3145.48424 | F56: =INDEX(LOCALIDADES!$AK$3:$AW$59,$C$2,3) -> 3142.031452 | G56: =INDEX(LOCALIDADES!$AK$3:$AW$59,$C$2,4) -> 3235.636022 | H56: =INDEX(LOCALIDADES!$AK$3:$AW$59,$C$2,5) -> 3311.402385 | I56: =INDEX(LOCALIDADES!$AK$3:$AW$59,$C$2,6) -> 3196.907332 | J56: =INDEX(LOCALIDADES!$AK$3:$AW$59,$C$2,7) -> 3326.281136 | K56: =INDEX(LOCALIDADES!$AK$3:$AW$59,$C$2,8) -> 3586.470449 | L56: =INDEX(LOCALIDADES!$AK$3:$AW$59,$C$2,9) -> 3575.582125 | M56: =INDEX(LOCALIDADES!$AK$3:$AW$59,$C$2,10) -> 3263.000133 | N56: =INDEX(LOCALIDADES!$AK$3:$AW$59,$C$2,11) -> 3119.010821 | O56: =INDEX(LOCALIDADES!$AK$3:$AW$59,$C$2,12) -> 2810.128479
A57: EDIFICIO | B57: HT | C57: W/K | D57: =$Q$34 -> 627.39016 | E57: =$Q$34 -> 627.39016 | F57: 627.39016 | G57: 627.39016 | H57: 627.39016 | I57: 627.39016 | J57: 627.39016 | K57: 627.39016 | L57: 627.39016 | M57: 627.39016 | N57: 627.39016 | O57: 627.39016
B58: HV (Invierno) | C58: W/K | D58: =$Q$35 -> 1297.44 | E58: =$Q$35 -> 1297.44 | F58: 1297.44 | G58: 1297.44 | H58: 1297.44 | I58: 1297.44 | J58: 1297.44 | K58: 1297.44 | L58: 1297.44 | M58: 1297.44 | N58: 1297.44 | O58: 1297.44
B59: HV (verano) | C59: W/K | D59: =$Q$36 -> 3243.6 | E59: =$Q$36 -> 3243.6 | F59: 3243.6 | G59: 3243.6 | H59: 3243.6 | I59: 3243.6 | J59: 3243.6 | K59: 3243.6 | L59: 3243.6 | M59: 3243.6 | N59: 3243.6 | O59: 3243.6
B60: As(Horitz) (Calefac) | C60: m2 | D60: =$K$39 -> 0 | E60: =$K$39 -> 0 | F60: 0 | G60: 0 | H60: 0 | I60: 0 | J60: 0 | K60: 0 | L60: 0 | M60: 0 | N60: 0 | O60: 0
B61: As (Sur) (Calefac) | C61: m2 | D61: =$D$39 -> 15.2775 | E61: =$D$39 -> 15.2775 | F61: 15.2775 | G61: 15.2775 | H61: 15.2775 | I61: 15.2775 | J61: 15.2775 | K61: 15.2775 | L61: 15.2775 | M61: 15.2775 | N61: 15.2775 | O61: 15.2775
B62: As (Sureste) (Calefac) | C62: m2 | D62: =$E$39 -> 0 | E62: =$E$39 -> 0 | F62: 0 | G62: 0 | H62: 0 | I62: 0 | J62: 0 | K62: 0 | L62: 0 | M62: 0 | N62: 0 | O62: 0
B63: As (Este) (Calefac) | C63: m2 | D63: =$F$39 -> 0 | E63: =$F$39 -> 0 | F63: 0 | G63: 0 | H63: 0 | I63: 0 | J63: 0 | K63: 0 | L63: 0 | M63: 0 | N63: 0 | O63: 0
B64: As (Norte) (Calefac) | C64: m2 | D64: =$G$39 -> 15.2775 | E64: =$G$39 -> 15.2775 | F64: 15.2775 | G64: 15.2775 | H64: 15.2775 | I64: 15.2775 | J64: 15.2775 | K64: 15.2775 | L64: 15.2775 | M64: 15.2775 | N64: 15.2775 | O64: 15.2775
B65: As (Oeste) (Calefac) | C65: m2 | D65: =$H$39 -> 0 | E65: =$H$39 -> 0 | F65: 0 | G65: 0 | H65: 0 | I65: 0 | J65: 0 | K65: 0 | L65: 0 | M65: 0 | N65: 0 | O65: 0
B66: As (Suroeste) (Calefac) | C66: m2 | D66: =$I$39 -> 0 | E66: =$I$39 -> 0 | F66: 0 | G66: 0 | H66: 0 | I66: 0 | J66: 0 | K66: 0 | L66: 0 | M66: 0 | N66: 0 | O66: 0
B67: As(Horitz) (Refrig) | C67: m2 | D67: =$J$40 -> 0.27288 | E67: =$J$40 -> 0.27288 | F67: 0.27288 | G67: 0.27288 | H67: 0.27288 | I67: 0.27288 | J67: 0.27288 | K67: 0.27288 | L67: 0.27288 | M67: 0.27288 | N67: 0.27288 | O67: 0.27288
B68: As (Sur) (Refrig) | C68: m2 | D68: =$D$40 -> 13.26087 | E68: =$D$40 -> 13.26087 | F68: 13.26087 | G68: 13.26087 | H68: 13.26087 | I68: 13.26087 | J68: 13.26087 | K68: 13.26087 | L68: 13.26087 | M68: 13.26087 | N68: 13.26087 | O68: 13.26087
B69: As (Sureste) (Refrig) | C69: m2 | D69: =$E$40 -> 0 | E69: =$E$40 -> 0 | F69: 0 | G69: 0 | H69: 0 | I69: 0 | J69: 0 | K69: 0 | L69: 0 | M69: 0 | N69: 0 | O69: 0
B70: As (Este) (Refrig) | C70: m2 | D70: =$F$40 -> 0 | E70: =$F$40 -> 0 | F70: 0 | G70: 0 | H70: 0 | I70: 0 | J70: 0 | K70: 0 | L70: 0 | M70: 0 | N70: 0 | O70: 0
B71: As (Norte) (refrig) | C71: m2 | D71: =$G$40 -> 13.26087 | E71: =$G$40 -> 13.26087 | F71: 13.26087 | G71: 13.26087 | H71: 13.26087 | I71: 13.26087 | J71: 13.26087 | K71: 13.26087 | L71: 13.26087 | M71: 13.26087 | N71: 13.26087 | O71: 13.26087
B72: As (Oeste) (refrig) | C72: m2 | D72: =$H$40 -> 0 | E72: =$H$40 -> 0 | F72: 0 | G72: 0 | H72: 0 | I72: 0 | J72: 0 | K72: 0 | L72: 0 | M72: 0 | N72: 0 | O72: 0
B73: As (Suroeste) (refrig) | C73: m2 | D73: =$I$40 -> 0 | E73: =$I$40 -> 0 | F73: 0 | G73: 0 | H73: 0 | I73: 0 | J73: 0 | K73: 0 | L73: 0 | M73: 0 | N73: 0 | O73: 0
B74: gi | C74: W | D74: =$D$10*$D$3 -> 1335.6 | E74: =$D$10*$D$3 -> 1335.6 | F74: 1335.6 | G74: 1335.6 | H74: 1335.6 | I74: 1335.6 | J74: 1335.6 | K74: 1335.6 | L74: 1335.6 | M74: 1335.6 | N74: 1335.6 | O74: 1335.6
B75: C | C75: J/K | D75: =$D$3*$D$4 -> 127200 | E75: =$D$3*$D$4 -> 127200 | F75: 127200 | G75: 127200 | H75: 127200 | I75: 127200 | J75: 127200 | K75: 127200 | L75: 127200 | M75: 127200 | N75: 127200 | O75: 127200
A76: CALCULO | B76: Ql (Calef) | C76: (HT+HV)(qi-qe)dias 24/1000 | D76: =IF(D48-D47=0,0.01,(D57+D58)*(D48-D47)*24*D46/1000) -> 15179.98057 | E76: =IF(E48-E47=0,0.01,(E57+E58)*(E48-E47)*24*E46/1000) -> 11512.02422 | F76: 10454.13756 | G76: 6790.800804 | H76: 2148.110459 | I76: -1247.289944 | J76: -5871.50192 | K76: -6587.53874 | L76: -2494.579887 | M76: 1718.488367 | N76: 8453.854063 | O76: 12029.41857
B77: Ql (Refrig) | C77: (HT+HV)(qi-qe)dias 24/1000 | D77: =IF(D49-D47=0,0.01,(D57+D59)*(D49-D47)*D46*24/1000) -> 50688.29355 | E77: =IF(E49-E47=0,0.01,(E57+E59)*(E49-E47)*E46*24/1000) -> 41360.75566 | F77: 41184.23851 | G77: 33166.64369 | H77: 24480.14177 | I77: 17001.38878 | J77: 8352.048369 | K77: 6912.04003 | L77: 14492.98716 | M77: 23616.13677 | N77: 36511.17919 | O77: =IF(O49-O47=0,0.01,(O57+O59)*(O49-O47)*O46*24/1000) -> 44352.25686
B78: Qi | C78: gi*24*dias/1000 | D78: =D74*24*D46/1000 -> 993.6864 | E78: 897.5232 | F78: 993.6864 | G78: 961.632 | H78: 993.6864 | I78: 961.632 | J78: 993.6864 | K78: 993.6864 | L78: 961.632 | M78: 993.6864 | N78: 961.632 | O78: 993.6864
B79: Qs(horitz) (Calefac) | C79: As*Is*dias/1000 | D79: =D50*D60*D46/1000 -> 0 | E79: 0 | F79: 0 | G79: 0 | H79: 0 | I79: 0 | J79: 0 | K79: 0 | L79: 0 | M79: 0 | N79: 0 | O79: 0
B80: Qs(Sur) (Calefac) | C80: As*Is*dias/1000 | D80: =D46*D51*D61/1000 -> 1913.52891 | E80: 1594.929377 | F80: 1592.453971 | G80: 1333.558836 | H80: 1209.668405 | I80: 1162.005691 | J80: 1287.1177 | K80: 1401.724531 | L80: 1449.486288 | M80: 1686.289847 | N80: 1616.583097 | O80: 1463.610092
B81: Qs(Sureste) (Calefac) | C81: As*Is*dias/1000 | D81: =D46*D52*D62/1000 -> 0 | E81: =E46*E52*E62/1000 -> 0 | F81: 0 | G81: 0 | H81: 0 | I81: 0 | J81: 0 | K81: 0 | L81: 0 | M81: 0 | N81: 0 | O81: 0
B82: Qs(Este) (Calefac) | C82: As*Is*dias/1000 | D82: =D46*D53*D63/1000 -> 0 | E82: 0 | F82: 0 | G82: 0 | H82: 0 | I82: 0 | J82: 0 | K82: 0 | L82: 0 | M82: 0 | N82: 0 | O82: 0
B83: Qs(Norte) (Calefac) | C83: As*Is*dias/1000 | D83: =D46*D54*D64/1000 -> 283.2911155 | E83: 351.3319258 | F83: 532.0287786 | G83: 668.6563725 | H83: 806.0298896 | I83: 840.3399684 | J83: 850.5733335 | K83: 747.9718635 | L83: 569.9771366 | M83: 429.4135915 | N83: 292.4073864 | O83: 242.2783784
B84: Qs(Oeste) (Calefac) | C84: As*Is*dias/1000 | D84: =D46*D55*D65/1000 -> 0 | E84: =E46*E55*E65/1000 -> 0 | F84: 0 | G84: 0 | H84: 0 | I84: 0 | J84: 0 | K84: 0 | L84: 0 | M84: 0 | N84: 0 | O84: 0
B85: Qs(Suroeste) (Calefac) | C85: As*Is*dias/1000 | D85: =D46*D56*D66/1000 -> 0 | E85: =E46*E56*E66/1000 -> 0 | F85: 0 | G85: 0 | H85: 0 | I85: 0 | J85: 0 | K85: 0 | L85: 0 | M85: 0 | N85: 0 | O85: 0
B86: Qs (Calefac) | C86: S Qs(i) | D86: =SUM(D79:D85) -> 2196.820025 | E86: =SUM(E79:E85) -> 1946.261303 | F86: 2124.48275 | G86: 2002.215208 | H86: 2015.698295 | I86: 2002.34566 | J86: 2137.691033 | K86: 2149.696395 | L86: 2019.463425 | M86: 2115.703439 | N86: 1908.990483 | O86: 1705.888471
B87: Qs(horitz) (Refrig) | C87: As*Is*dias/1000 | D87: =D67*D50*D46/1000 -> 18.3824854 | E87: 21.5763184 | F87: 31.6729542 | G87: 39.3402 | H87: 46.2722616 | I87: 50.44869 | J87: 54.5294588 | K87: 46.9537036 | L87: 33.884874 | M87: 25.9464916 | N87: 17.6235 | O87: 13.9014168
B88: Qs(Sur) (Refrig) | C88: As*Is*dias/1000 | D88: =D51*D46*D68/1000 -> 1660.943094 | E88: 1384.398699 | F88: 1382.250047 | G88: 1157.52907 | H88: 1049.992176 | I88: 1008.62094 | J88: 1117.218163 | K88: 1216.696893 | L88: 1258.154098 | M88: 1463.699587 | N88: 1403.194128 | O88: 1270.41356
B89: Qs(Sureste) (Refrig) | C89: As*Is*dias/1000 | D89: =D46*D52*D69/1000 -> 0 | E89: =E46*E52*E69/1000 -> 0 | F89: 0 | G89: 0 | H89: 0 | I89: 0 | J89: 0 | K89: 0 | L89: 0 | M89: 0 | N89: 0 | O89: 0
B90: Qs(Este) (Refrig) | C90: As*Is*dias/1000 | D90: =D70*D53*D46/1000 -> 0 | E90: 0 | F90: 0 | G90: 0 | H90: 0 | I90: 0 | J90: 0 | K90: 0 | L90: 0 | M90: 0 | N90: 0 | O90: 0
B91: Qs(Norte) (Refrig) | C91: As*Is*dias/1000 | D91: =D71*D54*D46/1000 -> 245.8966883 | E91: 304.9561116 | F91: 461.8009798 | G91: 580.3937313 | H91: 699.6339442 | I91: 729.4150926 | J91: 738.2976535 | K91: 649.2395775 | L91: 494.7401546 | M91: 372.7309975 | N91: 253.8096114 | O91: 210.2976324
B92: Qs(Oeste) (Refrig) | C92: As*Is*dias/1000 | D92: =D72*D55*D46/1000 -> 0 | E92: 0 | F92: 0 | G92: 0 | H92: 0 | I92: 0 | J92: 0 | K92: 0 | L92: 0 | M92: 0 | N92: 0 | O92: 0
B93: Qs(Suroeste) (Refrig) | C93: As*Is*dias/1000 | D93: =D46*D56*D73/1000 -> 0 | E93: =E46*E56*E73/1000 -> 0 | F93: 0 | G93: 0 | H93: 0 | I93: 0 | J93: 0 | K93: 0 | L93: 0 | M93: 0 | N93: 0 | O93: 0
B94: Qs (Refrig) | C94: S Qs(i) | D94: =SUM(D87:D93) -> 1925.222267 | E94: =SUM(E87:E93) -> 1710.931129 | F94: 1875.723981 | G94: 1777.263001 | H94: 1795.898381 | I94: 1788.484723 | J94: 1910.045276 | K94: 1912.890174 | L94: 1786.779127 | M94: 1862.377076 | N94: 1674.627239 | O94: 1494.612609
B95: Qi+Qs (Calefac) | C95: Qi+Qs | D95: =D78+D86 -> 3190.506425 | E95: =E78+E86 -> 2843.784503 | F95: 3118.16915 | G95: 2963.847208 | H95: 3009.384695 | I95: =I78+I86 -> 2963.97766 | J95: =J78+J86 -> 3131.377433 | K95: =K78+K86 -> 3143.382795 | L95: =L78+L86 -> 2981.095425 | M95: 3109.389839 | N95: 2870.622483 | O95: 2699.574871
B96: Qi+Qs (Refrig) | C96: Qi+Qs | D96: =D94+D78 -> 2918.908667 | E96: =E94+E78 -> 2608.454329 | F96: 2869.410381 | G96: 2738.895001 | H96: 2789.584781 | I96: 2750.116723 | J96: 2903.731676 | K96: 2906.576574 | L96: 2748.411127 | M96: 2856.063476 | N96: 2636.259239 | O96: 2488.299009
B97: g (calefac) | C97: (Qs+Qi)/Ql | D97: =IF(D76=0,1,ABS(D95/D76)) -> 0.2101785578 | E97: =IF(E76=0,1,ABS(E95/E76)) -> 0.247027321 | F97: 0.298271295 | G97: 0.4364503236 | H97: 1.400945041 | I97: 2.376334127 | J97: 0.5333179612 | K97: 0.4771710526 | L97: 1.195029047 | M97: 1.809374971 | N97: 0.3395637613 | O97: 0.22441441
B98: l (Refrig) | C98: (Qs+Qi)/Ql | D98: =D96/D77 -> 0.05758545934 | E98: =E96/E77 -> 0.06306592536 | F98: 0.069672537 | G98: 0.08257980597 | H98: 0.1139529668 | I98: 0.1617583574 | J98: 0.347667009 | K98: 0.4205092218 | L98: 0.1896373119 | M98: 0.1209369468 | N98: 0.07220416589 | O98: 0.05610309792
B99: t (calefaccion) | C99: C/(HT+HV)/60/60 | D99: =D75/(D57+D58)/60/60 -> 0.01835659793 | E99: =E75/(E57+E58)/60/60 -> 0.01835659793 | F99: 0.01835659793 | G99: 0.01835659793 | H99: 0.01835659793 | I99: =I75/(I57+I58)/60/60 -> 0.01835659793 | J99: =J75/(J57+J58)/60/60 -> 0.01835659793 | K99: =K75/(K57+K58)/60/60 -> 0.01835659793 | L99: =L75/(L57+L58)/60/60 -> 0.01835659793 | M99: 0.01835659793 | N99: 0.01835659793 | O99: 0.01835659793
B100: t (refrigeracion) | C100: C/(HT+HV)/60/60 | D100: =D75/(D57+D59)/60/60 -> 0.009127724916 | E100: =E75/(E57+E59)/60/60 -> 0.009127724916 | F100: 0.009127724916 | G100: 0.009127724916 | H100: 0.009127724916 | I100: 0.009127724916 | J100: 0.009127724916 | K100: 0.009127724916 | L100: 0.009127724916 | M100: 0.009127724916 | N100: 0.009127724916 | O100: 0.009127724916
B101: a (Calef) | C101: 1+t/15 | D101: =1+D99/15 -> 1.001223773 | E101: =1+E99/15 -> 1.001223773 | F101: 1.001223773 | G101: 1.001223773 | H101: 1.001223773 | I101: 1.001223773 | J101: 1.001223773 | K101: 1.001223773 | L101: 1.001223773 | M101: 1.001223773 | N101: 1.001223773 | O101: 1.001223773
B102: a (Refig) | C102: 1+t/15 | D102: =1+D100/15 -> 1.000608515 | E102: =1+E99/15 -> 1.001223773 | F102: 1.001223773 | G102: 1.001223773 | H102: 1.001223773 | I102: 1.001223773 | J102: 1.001223773 | K102: 1.001223773 | L102: 1.001223773 | M102: 1.001223773 | N102: 1.001223773 | O102: 1.001223773
B103: h (Calef) | C103: (1-ga)/(1-g(a+1)) | D103: =IF(D76=1,D101/(D101+1),(1-D97^D101)/(1-D97^(D101+1))) -> 0.8266708207 | E103: =IF(E76=1,E101/(E101+1),(1-E97^E101)/(1-E97^(E101+1))) -> 0.8022676963 | F103: 0.7706280469 | G103: 0.6965410526 | H103: 0.4167525905 | I103: 0.2963395279 | J103: 0.6525541333 | K103: 0.677348115 | L103: 0.4558519563 | M103: 0.3561564627 | N103: 0.746890096 | O103: 0.8170695237
B104: h (Refrig) | C104: (1-la)/(1-l(a+1)) | D104: =IF(D98<0,1,IF(D98=1,D102/(D102+1),(1-D98^(-D102))/(1-D98^(-(D102+1))))) -> 0.05445539457 | E104: =IF(E98<0,1,IF(E98=1,E102/(E102+1),(1-E98^(-E102))/(1-E98^(-(E102+1))))) -> 0.0593372488 | F104: 0.06514929651 | G104: 0.07629989906 | H104: 0.1023273795 | I104: 0.1392873005 | J104: 0.2581087365 | K104: 0.2961872932 | L104: 0.1594714028 | M104: 0.1079233474 | N104: 0.06735750259 | O104: 0.05313326793
B107: Demanda
A108: Calefaccion | B108: =A43 -> 52189.07175
A109: Refrigeracion | B109: =A44 -> 2426.546478

Sheet Calculo(inicial) (hidden)
B2: Emplazamiento | C2: ='Calculo(rehabilitado)'!C2 -> 6
B3: Sup util | C3: m2 | D3: =DATOS!C6 -> 636
B4: Inercia termica | C4: kJ/m2·K | D4: 200 | E4: =IF(D4<=100,"muy baja",IF(D4<=150,"baja",IF(D4<400,"alta",IF(D4<=400,"alta","muy alta")))) -> alta
B5: Renovación de aire | C5: n (invierno) | D5: =DATOS!C31 -> 2
C6: n (verano) | D6: 5
B7: Altura plantas | C7: m | D7: =DATOS!C7 -> 3
A8: T.Consigna | B8: Calefacción | C8: ºC | D8: 19
B9: Refrigeración | C9: ºC | D9: 26
B10: Ganacias Internas | C10: W/m2 | D10: 2.1
D11: EXTERIOR | L11: INTERIORES
D12: Fachadas | J12: Cubiertas | K12: Exterior
D13: F.Sur | E13: F.SurEste | F13: F.Este | G13: F.Norte | H13: F.Oeste | I13: F.SurOeste | J13: Cubiertas | K13: No soleados | L13: A.Vivendas | M13: Z.Comunes | N13: A.Locales | O13: Techos | P13: Suelos | Q13: Total
A14: Geometria | B14: Sup | C14: m2 | D14: =DATOS!C10 -> 145.5 | E14: =DATOS!D10 -> 0 | F14: =DATOS!E10 -> 0 | G14: =DATOS!F10 -> 145.5 | H14: =DATOS!G10 -> 0 | I14: =DATOS!H10 -> 0 | J14: =DATOS!I10 -> 15.16 | K14: =DATOS!J10 -> 297.6
B15: % ventanas | C15: (--) (0 a 1) | D15: =DATOS!C11/100 -> 0.2 | E15: =DATOS!D11/100 -> 0 | F15: =DATOS!E11/100 -> 0 | G15: =DATOS!F11/100 -> 0.2 | H15: =DATOS!G11/100 -> 0 | I15: =DATOS!H11/100 -> 0 | J15: 0 | K15: =DATOS!J11/100 -> 0.2
A16: Carac Constructivas | B16: U opac | C16: W/m2·K | D16: =DATOS!C27 -> 1.8 | E16: =DATOS!D27 -> 1.8 | F16: =DATOS!E27 -> 1.8 | G16: =DATOS!F27 -> 1.8 | H16: =DATOS!G27 -> 1.8 | I16: =DATOS!H27 -> 1.8 | J16: =DATOS!I27 -> 2.5 | K16: =DATOS!J27 -> 1.8
B17: U ventanas | C17: W/m2·K | D17: =DATOS!C28 -> 5.7 | E17: =DATOS!D28 -> 5.7 | F17: =DATOS!E28 -> 5.7 | G17: =DATOS!F28 -> 5.7 | H17: =DATOS!G28 -> 5.7 | I17: =DATOS!H28 -> 5.7 | K17: =DATOS!J28 -> 5.7
B18: Transp. Ventana | C18: (--) (0 a 1) | D18: =DATOS!C29 -> 0.75 | E18: =DATOS!D29 -> 0.75 | F18: =DATOS!E29 -> 0.75 | G18: =DATOS!F29 -> 0.75 | H18: =DATOS!G29 -> 0.75 | I18: =DATOS!H29 -> 0.75 | K18: =DATOS!J29 -> 0.75
B19: Coef.Exposición t | C19: (--) (0 a 1) | D19: 1 | E19: 1 | F19: 1 | G19: 1 | H19: 1 | I19: 1 | J19: 1 | K19: 1
A20: Sombras | B20: F.Sombra Horizonte (Fsh) | C20: (--) (0 a 1) | D20: 1 | E20: 1 | F20: 1 | G20: 1 | H20: 1 | I20: 1 | J20: 1 | K20: 1
B21: F.Carpinteria (Fc) | C21: (--) (0 a 1) | D21: 0.7 | E21: 0.7 | F21: 0.7 | G21: 0.7 | H21: 0.7 | I21: 0.7 | K21: 0.7
B22: F.Persianas (Calefacc.) (Fp.Cal) | C22: (--) (0 a 1) | D22: 1 | E22: 1 | F22: 1 | G22: 1 | H22: 1 | I22: 1 | K22: 1
B23: F.Persianas (Refrig) (Fp.Refrig) | C23: (--) (0 a 1) | D23: 0.7 | E23: 0.7 | F23: 0.7 | G23: 0.7 | H23: 0.7 | I23: 0.7 | K23: 0.7
B24: F.Cornisas (Fsc) | C24: (--) (0 a 1) | D24: 1 | E24: 1 | F24: 1 | G24: 1 | H24: 1 | I24: 1 | K24: 1
B25: F.Pantallas (Fsp) | C25: (--) (0 a 1) | D25: 1 | E25: 1 | F25: 1 | G25: 1 | H25: 1 | I25: 1 | K25: 1
A26: Frentes forjado | B26: Y F.forjado Cubierta | C26: W/m·K
B27: L F.forjado Cubierta | C27: m
B28: Y Fforjaado Intermedio | C28: W/m·K
B29: L F.forjado Intermedio | C29: m
B30: Y Fforjado Inferior | C30: W/m·K
B31: L F.forjado Inferior | C31: m
B32: Factor PT | C32: (--) | D32: =DATOS!C30 -> 1.3
A33: U medio | B33: (Sf*Uf+Sv*Uv)/S | C33: W/m2·K | D33: =IF(D14=0,0,(D14*(1-D15)*D16+D14*D15*D17)/D14) -> 2.58 | E33: =IF(E14=0,0,(E14*(1-E15)*E16+E14*E15*E17)/E14) -> 0 | F33: =IF(F14=0,0,(F14*(1-F15)*F16+F14*F15*F17)/F14) -> 0 | G33: 2.58 | H33: 0 | I33: =IF(I14=0,0,(I14*(1-I15)*I16+I14*I15*I17)/I14) -> 0 | J33: 2.5 | K33: 2.58 | L33: 0 | M33: 0 | N33: 0 | O33: =IF(O14=0,0,(O14*(1-O15)*O16+O14*O15*O17)/O14) -> 0 | P33: =IF(P14=0,0,(P14*(1-P15)*P16+P14*P15*P17)/P14) -> 0
A34: Transmission Termica | B34: S*U*t +Y*l | C34: W/K | D34: =D14*D33*D19*$D$32 -> 488.007 | E34: 0 | F34: 0 | G34: 488.007 | H34: 0 | I34: 0 | J34: =J14*J33*J19 -> 37.9 | K34: 998.1504 | L34: =L14*L33*L19+L26*L27*L19+L28*L29*L19+L30*L31*L19 -> 0 | M34: =M14*M33*M19+M26*M27*M19+M28*M29*M19+M30*M31*M19 -> 0 | N34: =N14*N33*N19+N26*N27*N19+N28*N29*N19+N30*N31*N19 -> 0 | O34: =O14*O33*O19+O26*O27*O19+O28*O29*O19+O30*O31*O19 -> 0 | P34: =P14*P33*P19+P26*P27*P19+P28*P29*P19+P30*P31*P19 -> 0 | Q34: =SUM(D34:P34) -> 2012.0644
A35: Transmissión Ventilacion | B35: n(invierno)*V*0,34 | C35: W/K | Q35: =0.34*D3*D7*D5 -> 1297.44
B36: n(verano)*V*0,34 | C36: W/K | Q36: =0.34*D3*D7*D6 -> 3243.6
A37: F. Sombras (Calefac.) | B37: Fsh*Fc*Fp.Cal*Fsc*Fsp | C37: (--) (0 a 1) | D37: =D20*D21*D22*D24*D25 -> 0.7 | E37: =E20*E21*E22*E24*E25 -> 0.7 | F37: 0.7 | G37: 0.7 | H37: 0.7 | I37: =I20*I21*I22*I24*I25 -> 0.7 | J37: 0
A38: F. Sombras (Refrig.) | B38: Fsh*Fc*Fp.Refr*Fsc*Fsp | C38: (--) (0 a 1) | D38: =D20*D21*D23*D24*D25 -> 0.49 | E38: =E20*E21*E23*E24*E25 -> 0.49 | F38: 0.49 | G38: 0.49 | H38: 0.49 | I38: =I20*I21*I23*I24*I25 -> 0.49 | J38: 0
A39: Area solar (Calefac) | B39: Fs.Cal*tr*S | C39: m2 | D39: =D37*D14*D15*D18 -> 15.2775 | E39: 0 | F39: 0 | G39: 15.2775 | H39: 0 | I39: 0 | J39: 0 | K39: 0
A40: Area solar (Refrig.) | B40: Fs.Refr*tr*S | C40: m2 | D40: =D38*D14*D15*D18+0.045*(1-D15)*D14*D16*D20 -> 20.12265 | E40: 0 | F40: 0 | G40: 20.12265 | H40: 0 | I40: 0 | J40: 1.7055 | K40: 0
D41: F.Sur | E41: F.Sureste | F41: F.Este | G41: F.Norte | H41: F.Oeste | I41: F.Suroeste | J41: Cubierta | K41: Suelo
A42: TOTAL KWh/año | D42: Enero | E42: Febrero | F42: Marzo | G42: Abril | H42: Mayo | I42: Junio | J42: Julio | K42: Agosto | L42: Septiembre | M42: Octubre | N42: Noviembre | O42: Diciembre
A43: =SUM(D43:O43) -> 99097.30619 | B43: Ql-(Qi+Qs)*h | C43: CALEFACCION | D43: =IF(D76-D103*D95<0,0,D76-D103*D95) -> 23256.57087 | E43: 17306.44365 | F43: 15316.78207 | G43: 9311.494519 | H43: 2034.57437 | I43: 0 | J43: 0 | K43: 0 | L43: 0 | M43: 1439.144115 | N43: 12137.58054 | O43: 18294.71605
A44: =SUM(D44:O44) -> 3557.386256 | B44: Ql*h-(Q+Qs) | C44: REFRIGERACION | D44: =IF(D43>0,0,IF(D96-D104*D77<0,0,D96-D104*D77)) -> 0 | E44: =IF(E43>0,0,IF(E96-E104*E77<0,0,E96-E104*E77)) -> 0 | F44: 0 | G44: 0 | H44: 0 | I44: 566.7969433 | J44: 1111.020369 | K44: 1255.309394 | L44: 624.2595498 | M44: 0 | N44: 0 | O44: 0
D45: Enero | E45: Febrero | F45: Marzo | G45: Abril | H45: Mayo | I45: Junio | J45: Julio | K45: Agosto | L45: Septiembre | M45: Octubre | N45: Noviembre | O45: Diciembre
A46: Clima | B46: Dias | D46: 31 | E46: 28 | F46: 31 | G46: 30 | H46: 31 | I46: 30 | J46: 31 | K46: 31 | L46: 30 | M46: 31 | N46: 30 | O46: 31
B47: qe | C47: ºC | D47: =INDEX(LOCALIDADES!$B$3:$M$59,$C$2,1) -> 8.4 | E47: =INDEX(LOCALIDADES!$B$3:$M$59,$C$2,2) -> 10.1 | F47: =INDEX(LOCALIDADES!$B$3:$M$59,$C$2,3) -> 11.7 | G47: =INDEX(LOCALIDADES!$B$3:$M$59,$C$2,4) -> 14.1 | H47: =INDEX(LOCALIDADES!$B$3:$M$59,$C$2,5) -> 17.5 | I47: =INDEX(LOCALIDADES!$B$3:$M$59,$C$2,6) -> 19.9 | J47: =INDEX(LOCALIDADES!$B$3:$M$59,$C$2,7) -> 23.1 | K47: =INDEX(LOCALIDADES!$B$3:$M$59,$C$2,8) -> 23.6 | L47: =INDEX(LOCALIDADES!$B$3:$M$59,$C$2,9) -> 20.8 | M47: =INDEX(LOCALIDADES!$B$3:$M$59,$C$2,10) -> 17.8 | N47: =INDEX(LOCALIDADES!$B$3:$M$59,$C$2,11) -> 12.9 | O47: =INDEX(LOCALIDADES!$B$3:$M$59,$C$2,12) -> 10.6
B48: qi (Calef) | C48: ºC | D48: =$D$8 -> 19 | E48: =$D$8 -> 19 | F48: =$D$8 -> 19 | G48: =$D$8 -> 19 | H48: =$D$8 -> 19 | I48: =$D$8 -> 19 | J48: 19 | K48: 19 | L48: 19 | M48: 19 | N48: 19 | O48: 19
B49: qi (Refig) | C49: ºC | D49: =$D$9 -> 26 | E49: =$D$9 -> 26 | F49: 26 | G49: 26 | H49: 26 | I49: 26 | J49: 26 | K49: 26 | L49: 26 | M49: 26 | N49: 26 | O49: 26
B50: Is(Horitz) | C50: W/m2 dia | D50: =INDEX(LOCALIDADES!$N$3:$Y$59,$C$2,1) -> 2173.055556 | E50: =INDEX(LOCALIDADES!$N$3:$Y$59,$C$2,2) -> 2823.888889 | F50: =INDEX(LOCALIDADES!$N$3:$Y$59,$C$2,3) -> 3744.166667 | G50: =INDEX(LOCALIDADES!$N$3:$Y$59,$C$2,4) -> 4805.555556 | H50: =INDEX(LOCALIDADES!$N$3:$Y$59,$C$2,5) -> 5470 | I50: =INDEX(LOCALIDADES!$N$3:$Y$59,$C$2,6) -> 6162.5 | J50: =INDEX(LOCALIDADES!$N$3:$Y$59,$C$2,7) -> 6446.111111 | K50: =INDEX(LOCALIDADES!$N$3:$Y$59,$C$2,8) -> 5550.555556 | L50: =INDEX(LOCALIDADES!$N$3:$Y$59,$C$2,9) -> 4139.166667 | M50: =INDEX(LOCALIDADES!$N$3:$Y$59,$C$2,10) -> 3067.222222 | N50: =INDEX(LOCALIDADES!$N$3:$Y$59,$C$2,11) -> 2152.777778 | O50: =INDEX(LOCALIDADES!$N$3:$Y$59,$C$2,12) -> 1643.333333
B51: Is(Sur) | C51: W/m2 dia | D51: =INDEX(LOCALIDADES!$Z$3:$AK$59,$C$2,1) -> 4040.369106 | E51: =INDEX(LOCALIDADES!$Z$3:$AK$59,$C$2,2) -> 3728.474127 | F51: =INDEX(LOCALIDADES!$Z$3:$AK$59,$C$2,3) -> 3362.427292 | G51: =INDEX(LOCALIDADES!$Z$3:$AK$59,$C$2,4) -> 2909.635817 | H51: =INDEX(LOCALIDADES!$Z$3:$AK$59,$C$2,5) -> 2554.185008 | I51: =INDEX(LOCALIDADES!$Z$3:$AK$59,$C$2,6) -> 2535.331242 | J51: =INDEX(LOCALIDADES!$Z$3:$AK$59,$C$2,7) -> 2717.717283 | K51: =INDEX(LOCALIDADES!$Z$3:$AK$59,$C$2,8) -> 2959.706782 | L51: =INDEX(LOCALIDADES!$Z$3:$AK$59,$C$2,9) -> 3162.573039 | M51: =INDEX(LOCALIDADES!$Z$3:$AK$59,$C$2,10) -> 3560.559429 | N51: =INDEX(LOCALIDADES!$Z$3:$AK$59,$C$2,11) -> 3527.154522 | O51: =INDEX(LOCALIDADES!$Z$3:$AK$59,$C$2,12) -> 3090.376618
B52: Is(Sureste) | C52: W/m2 dia | D52: =INDEX(LOCALIDADES!$AK$3:$AW$59,$C$2,1) -> 3090.376618 | E52: =INDEX(LOCALIDADES!$AK$3:$AW$59,$C$2,2) -> 3145.48424 | F52: =INDEX(LOCALIDADES!$AK$3:$AW$59,$C$2,3) -> 3142.031452 | G52: =INDEX(LOCALIDADES!$AK$3:$AW$59,$C$2,4) -> 3235.636022 | H52: =INDEX(LOCALIDADES!$AK$3:$AW$59,$C$2,5) -> 3311.402385 | I52: =INDEX(LOCALIDADES!$AK$3:$AW$59,$C$2,6) -> 3196.907332 | J52: =INDEX(LOCALIDADES!$AK$3:$AW$59,$C$2,7) -> 3326.281136 | K52: =INDEX(LOCALIDADES!$AK$3:$AW$59,$C$2,8) -> 3586.470449 | L52: =INDEX(LOCALIDADES!$AK$3:$AW$59,$C$2,9) -> 3575.582125 | M52: =INDEX(LOCALIDADES!$AK$3:$AW$59,$C$2,10) -> 3263.000133 | N52: =INDEX(LOCALIDADES!$AK$3:$AW$59,$C$2,11) -> 3119.010821 | O52: =INDEX(LOCALIDADES!$AK$3:$AW$59,$C$2,12) -> 2810.128479
B53: Is(Este) | C53: W/m2 dia | D53: =INDEX(LOCALIDADES!$AX$3:$BI$59,$C$2,1) -> 1773.566265 | E53: =INDEX(LOCALIDADES!$AX$3:$BI$59,$C$2,2) -> 2137.515832 | F53: =INDEX(LOCALIDADES!$AX$3:$BI$59,$C$2,3) -> 2648.400548 | G53: =INDEX(LOCALIDADES!$AX$3:$BI$59,$C$2,4) -> 3209.266526 | H53: =INDEX(LOCALIDADES!$AX$3:$BI$59,$C$2,5) -> 3503.808997 | I53: =INDEX(LOCALIDADES!$AX$3:$BI$59,$C$2,6) -> 3886.963607 | J53: =INDEX(LOCALIDADES!$AX$3:$BI$59,$C$2,7) -> 4113.649169 | K53: =INDEX(LOCALIDADES!$AX$3:$BI$59,$C$2,8) -> 3662.655836 | L53: =INDEX(LOCALIDADES!$AX$3:$BI$59,$C$2,9) -> 2860.34422 | M53: =INDEX(LOCALIDADES!$AX$3:$BI$59,$C$2,10) -> 2264.764643 | N53: =INDEX(LOCALIDADES!$AX$3:$BI$59,$C$2,11) -> 1697.211286 | O53: =INDEX(LOCALIDADES!$AX$3:$BI$59,$C$2,12) -> 1327.217157
B54: Is(Norte) | C54: W/m2 dia | D54: =INDEX(LOCALIDADES!$BJ$3:$BU$59,$C$2,1) -> 598.1622046 | E54: =INDEX(LOCALIDADES!$BJ$3:$BU$59,$C$2,2) -> 821.3103438 | F54: =INDEX(LOCALIDADES!$BJ$3:$BU$59,$C$2,3) -> 1123.365646 | G54: =INDEX(LOCALIDADES!$BJ$3:$BU$59,$C$2,4) -> 1458.913157 | H54: =INDEX(LOCALIDADES!$BJ$3:$BU$59,$C$2,5) -> 1701.912236 | I54: =INDEX(LOCALIDADES!$BJ$3:$BU$59,$C$2,6) -> 1833.502358 | J54: =INDEX(LOCALIDADES!$BJ$3:$BU$59,$C$2,7) -> 1795.964619 | K54: =INDEX(LOCALIDADES!$BJ$3:$BU$59,$C$2,8) -> 1579.324145 | L54: =INDEX(LOCALIDADES!$BJ$3:$BU$59,$C$2,9) -> 1243.609091 | M54: =INDEX(LOCALIDADES!$BJ$3:$BU$59,$C$2,10) -> 906.6962095 | N54: =INDEX(LOCALIDADES!$BJ$3:$BU$59,$C$2,11) -> 637.991352 | O54: =INDEX(LOCALIDADES!$BJ$3:$BU$59,$C$2,12) -> 511.5648215
B55: Is(Oeste) | C55: W/m2 dia | D55: =INDEX(LOCALIDADES!$N$3:$Y$59,$C$2,1) -> 2173.055556 | E55: =INDEX(LOCALIDADES!$N$3:$Y$59,$C$2,2) -> 2823.888889 | F55: =INDEX(LOCALIDADES!$N$3:$Y$59,$C$2,3) -> 3744.166667 | G55: =INDEX(LOCALIDADES!$N$3:$Y$59,$C$2,4) -> 4805.555556 | H55: =INDEX(LOCALIDADES!$N$3:$Y$59,$C$2,5) -> 5470 | I55: =INDEX(LOCALIDADES!$N$3:$Y$59,$C$2,6) -> 6162.5 | J55: =INDEX(LOCALIDADES!$N$3:$Y$59,$C$2,7) -> 6446.111111 | K55: =INDEX(LOCALIDADES!$N$3:$Y$59,$C$2,8) -> 5550.555556 | L55: =INDEX(LOCALIDADES!$N$3:$Y$59,$C$2,9) -> 4139.166667 | M55: =INDEX(LOCALIDADES!$N$3:$Y$59,$C$2,10) -> 3067.222222 | N55: =INDEX(LOCALIDADES!$N$3:$Y$59,$C$2,11) -> 2152.777778 | O55: =INDEX(LOCALIDADES!$N$3:$Y$59,$C$2,12) -> 1643.333333
B56: Is(Suroeste) | C56: W/m2 dia | D56: =INDEX(LOCALIDADES!$AK$3:$AW$59,$C$2,1) -> 3090.376618 | E56: =INDEX(LOCALIDADES!$AK$3:$AW$59,$C$2,2) -> 3145.48424 | F56: =INDEX(LOCALIDADES!$AK$3:$AW$59,$C$2,3) -> 3142.031452 | G56: =INDEX(LOCALIDADES!$AK$3:$AW$59,$C$2,4) -> 3235.636022 | H56: =INDEX(LOCALIDADES!$AK$3:$AW$59,$C$2,5) -> 3311.402385 | I56: =INDEX(LOCALIDADES!$AK$3:$AW$59,$C$2,6) -> 3196.907332 | J56: =INDEX(LOCALIDADES!$AK$3:$AW$59,$C$2,7) -> 3326.281136 | K56: =INDEX(LOCALIDADES!$AK$3:$AW$59,$C$2,8) -> 3586.470449 | L56: =INDEX(LOCALIDADES!$AK$3:$AW$59,$C$2,9) -> 3575.582125 | M56: =INDEX(LOCALIDADES!$AK$3:$AW$59,$C$2,10) -> 3263.000133 | N56: =INDEX(LOCALIDADES!$AK$3:$AW$59,$C$2,11) -> 3119.010821 | O56: =INDEX(LOCALIDADES!$AK$3:$AW$59,$C$2,12) -> 2810.128479
A57: EDIFICIO | B57: HT | C57: W/K | D57: =$Q$34 -> 2012.0644 | E57: =$Q$34 -> 2012.0644 | F57: 2012.0644 | G57: 2012.0644 | H57: 2012.0644 | I57: 2012.0644 | J57: 2012.0644 | K57: 2012.0644 | L57: 2012.0644 | M57: 2012.0644 | N57: 2012.0644 | O57: 2012.0644
B58: HV (Invierno) | C58: W/K | D58: =$Q$35 -> 1297.44 | E58: =$Q$35 -> 1297.44 | F58: 1297.44 | G58: 1297.44 | H58: 1297.44 | I58: 1297.44 | J58: 1297.44 | K58: 1297.44 | L58: 1297.44 | M58: 1297.44 | N58: 1297.44 | O58: 1297.44
B59: HV (verano) | C59: W/K | D59: =$Q$36 -> 3243.6 | E59: =$Q$36 -> 3243.6 | F59: 3243.6 | G59: 3243.6 | H59: 3243.6 | I59: 3243.6 | J59: 3243.6 | K59: 3243.6 | L59: 3243.6 | M59: 3243.6 | N59: 3243.6 | O59: 3243.6
B60: As(Horitz) (Calefac) | C60: m2 | D60: =$K$39 -> 0 | E60: =$K$39 -> 0 | F60: 0 | G60: 0 | H60: 0 | I60: 0 | J60: 0 | K60: 0 | L60: 0 | M60: 0 | N60: 0 | O60: 0
B61: As (Sur) (Calefac) | C61: m2 | D61: =$D$39 -> 15.2775 | E61: =$D$39 -> 15.2775 | F61: 15.2775 | G61: 15.2775 | H61: 15.2775 | I61: 15.2775 | J61: 15.2775 | K61: 15.2775 | L61: 15.2775 | M61: 15.2775 | N61: 15.2775 | O61: 15.2775
B62: As (Sureste) (Calefac) | C62: m2 | D62: =$E$39 -> 0 | E62: =$E$39 -> 0 | F62: 0 | G62: 0 | H62: 0 | I62: 0 | J62: 0 | K62: 0 | L62: 0 | M62: 0 | N62: 0 | O62: 0
B63: As (Este) (Calefac) | C63: m2 | D63: =$F$39 -> 0 | E63: =$F$39 -> 0 | F63: 0 | G63: 0 | H63: 0 | I63: 0 | J63: 0 | K63: 0 | L63: 0 | M63: 0 | N63: 0 | O63: 0
B64: As (Norte) (Calefac) | C64: m2 | D64: =$G$39 -> 15.2775 | E64: =$G$39 -> 15.2775 | F64: 15.2775 | G64: 15.2775 | H64: 15.2775 | I64: 15.2775 | J64: 15.2775 | K64: 15.2775 | L64: 15.2775 | M64: 15.2775 | N64: 15.2775 | O64: 15.2775
B65: As (Oeste) (Calefac) | C65: m2 | D65: =$H$39 -> 0 | E65: =$H$39 -> 0 | F65: 0 | G65: 0 | H65: 0 | I65: 0 | J65: 0 | K65: 0 | L65: 0 | M65: 0 | N65: 0 | O65: 0
B66: As (Suroeste) (Calefac) | C66: m2 | D66: =$I$39 -> 0 | E66: =$I$39 -> 0 | F66: 0 | G66: 0 | H66: 0 | I66: 0 | J66: 0 | K66: 0 | L66: 0 | M66: 0 | N66: 0 | O66: 0
B67: As(Horitz) (Refrig) | C67: m2 | D67: =$J$40 -> 1.7055 | E67: =$J$40 -> 1.7055 | F67: 1.7055 | G67: 1.7055 | H67: 1.7055 | I67: 1.7055 | J67: 1.7055 | K67: 1.7055 | L67: 1.7055 | M67: 1.7055 | N67: 1.7055 | O67: 1.7055
B68: As (Sur) (Refrig) | C68: m2 | D68: =$D$40 -> 20.12265 | E68: =$D$40 -> 20.12265 | F68: 20.12265 | G68: 20.12265 | H68: 20.12265 | I68: 20.12265 | J68: 20.12265 | K68: 20.12265 | L68: 20.12265 | M68: 20.12265 | N68: 20.12265 | O68: 20.12265
B69: As (Sureste) (Refrig) | C69: m2 | D69: =$E$40 -> 0 | E69: =$E$40 -> 0 | F69: 0 | G69: 0 | H69: 0 | I69: 0 | J69: 0 | K69: 0 | L69: 0 | M69: 0 | N69: 0 | O69: 0
B70: As (Este) (Refrig) | C70: m2 | D70: =$F$40 -> 0 | E70: =$F$40 -> 0 | F70: 0 | G70: 0 | H70: 0 | I70: 0 | J70: 0 | K70: 0 | L70: 0 | M70: 0 | N70: 0 | O70: 0
B71: As (Norte) (refrig) | C71: m2 | D71: =$G$40 -> 20.12265 | E71: =$G$40 -> 20.12265 | F71: 20.12265 | G71: 20.12265 | H71: 20.12265 | I71: 20.12265 | J71: 20.12265 | K71: 20.12265 | L71: 20.12265 | M71: 20.12265 | N71: 20.12265 | O71: 20.12265
B72: As (Oeste) (refrig) | C72: m2 | D72: =$H$40 -> 0 | E72: =$H$40 -> 0 | F72: 0 | G72: 0 | H72: 0 | I72: 0 | J72: 0 | K72: 0 | L72: 0 | M72: 0 | N72: 0 | O72: 0
B73: As (Suroeste) (refrig) | C73: m2 | D73: =$I$40 -> 0 | E73: =$I$40 -> 0 | F73: 0 | G73: 0 | H73: 0 | I73: 0 | J73: 0 | K73: 0 | L73: 0 | M73: 0 | N73: 0 | O73: 0
B74: gi | C74: W | D74: =$D$10*$D$3 -> 1335.6 | E74: =$D$10*$D$3 -> 1335.6 | F74: 1335.6 | G74: 1335.6 | H74: 1335.6 | I74: 1335.6 | J74: 1335.6 | K74: 1335.6 | L74: 1335.6 | M74: 1335.6 | N74: 1335.6 | O74: 1335.6
B75: C | C75: J/K | D75: =$D$3*$D$4 -> 127200 | E75: =$D$3*$D$4 -> 127200 | F75: 127200 | G75: 127200 | H75: 127200 | I75: 127200 | J75: 127200 | K75: 127200 | L75: 127200 | M75: 127200 | N75: 127200 | O75: 127200
A76: CALCULO | B76: Ql (Calef) | C76: (HT+HV)(qi-qe)dias 24/1000 | D76: =IF(D48-D47=0,0.01,(D57+D58)*(D48-D47)*24*D46/1000) -> 26100.0755 | E76: =IF(E48-E47=0,0.01,(E57+E58)*(E48-E47)*24*E46/1000) -> 19793.48392 | F76: 17974.5803 | G76: 11675.93152 | H76: 3693.40691 | I76: -2144.558851 | J76: -10095.31222 | K76: -11326.44786 | L76: -4289.117702 | M76: 2954.725528 | N76: 14535.34332 | O76: 20683.0787
B77: Ql (Refrig) | C77: (HT+HV)(qi-qe)dias 24/1000 | D77: =IF(D49-D47=0,0.01,(D57+D59)*(D49-D47)*D46*24/1000) -> 68819.77192 | E77: =IF(E49-E47=0,0.01,(E57+E59)*(E49-E47)*E46*24/1000) -> 56155.72298 | F77: 55916.06468 | G77: 45030.53258 | H77: 33236.82167 | I77: 23082.87804 | J77: 11339.62151 | K77: 9384.514353 | L77: 19677.20751 | M77: 32063.75737 | N77: 49571.42662 | O77: =IF(O49-O47=0,0.01,(O57+O59)*(O49-O47)*O46*24/1000) -> 60217.30043
B78: Qi | C78: gi*24*dias/1000 | D78: =D74*24*D46/1000 -> 993.6864 | E78: 897.5232 | F78: 993.6864 | G78: 961.632 | H78: 993.6864 | I78: 961.632 | J78: 993.6864 | K78: 993.6864 | L78: 961.632 | M78: 993.6864 | N78: 961.632 | O78: 993.6864
B79: Qs(horitz) (Calefac) | C79: As*Is*dias/1000 | D79: =D50*D60*D46/1000 -> 0 | E79: 0 | F79: 0 | G79: 0 | H79: 0 | I79: 0 | J79: 0 | K79: 0 | L79: 0 | M79: 0 | N79: 0 | O79: 0
B80: Qs(Sur) (Calefac) | C80: As*Is*dias/1000 | D80: =D46*D51*D61/1000 -> 1913.52891 | E80: 1594.929377 | F80: 1592.453971 | G80: 1333.558836 | H80: 1209.668405 | I80: 1162.005691 | J80: 1287.1177 | K80: 1401.724531 | L80: 1449.486288 | M80: 1686.289847 | N80: 1616.583097 | O80: 1463.610092
B81: Qs(Sureste) (Calefac) | C81: As*Is*dias/1000 | D81: =D46*D52*D62/1000 -> 0 | E81: =E46*E52*E62/1000 -> 0 | F81: 0 | G81: 0 | H81: 0 | I81: 0 | J81: 0 | K81: 0 | L81: 0 | M81: 0 | N81: 0 | O81: 0
B82: Qs(Este) (Calefac) | C82: As*Is*dias/1000 | D82: =D46*D53*D63/1000 -> 0 | E82: 0 | F82: 0 | G82: 0 | H82: 0 | I82: 0 | J82: 0 | K82: 0 | L82: 0 | M82: 0 | N82: 0 | O82: 0
B83: Qs(Norte) (Calefac) | C83: As*Is*dias/1000 | D83: =D46*D54*D64/1000 -> 283.2911155 | E83: 351.3319258 | F83: 532.0287786 | G83: 668.6563725 | H83: 806.0298896 | I83: 840.3399684 | J83: 850.5733335 | K83: 747.9718635 | L83: 569.9771366 | M83: 429.4135915 | N83: 292.4073864 | O83: 242.2783784
B84: Qs(Oeste) (Calefac) | C84: As*Is*dias/1000 | D84: =D46*D55*D65/1000 -> 0 | E84: =E46*E55*E65/1000 -> 0 | F84: 0 | G84: 0 | H84: 0 | I84: 0 | J84: 0 | K84: 0 | L84: 0 | M84: 0 | N84: 0 | O84: 0
B85: Qs(Suroeste) (Calefac) | C85: As*Is*dias/1000 | D85: =D46*D56*D66/1000 -> 0 | E85: =E46*E56*E66/1000 -> 0 | F85: 0 | G85: 0 | H85: 0 | I85: 0 | J85: 0 | K85: 0 | L85: 0 | M85: 0 | N85: 0 | O85: 0
B86: Qs (Calefac) | C86: S Qs(i) | D86: =SUM(D79:D85) -> 2196.820025 | E86: =SUM(E79:E85) -> 1946.261303 | F86: 2124.48275 | G86: 2002.215208 | H86: 2015.698295 | I86: 2002.34566 | J86: 2137.691033 | K86: 2149.696395 | L86: 2019.463425 | M86: 2115.703439 | N86: 1908.990483 | O86: 1705.888471
B87: Qs(horitz) (Refrig) | C87: As*Is*dias/1000 | D87: =D67*D50*D46/1000 -> 114.8905338 | E87: 134.85199 | F87: 197.9559637 | G87: 245.87625 | H87: 289.201635 | I87: 315.3043125 | J87: 340.8091175 | K87: 293.4606475 | L87: 211.7804625 | M87: 162.1655725 | N87: 110.146875 | O87: 86.883855
B88: Qs(Sur) (Refrig) | C88: As*Is*dias/1000 | D88: =D51*D46*D68/1000 -> 2520.390935 | E88: 2100.749837 | F88: 2097.489374 | G88: 1756.487495 | H88: 1593.306099 | I88: 1530.527496 | J88: 1695.317884 | K88: 1846.271454 | L88: 1909.180511 | M88: 2221.084627 | N88: 2129.270879 | O88: 1927.783579
B89: Qs(Sureste) (Refrig) | C89: As*Is*dias/1000 | D89: =D46*D52*D69/1000 -> 0 | E89: =E46*E52*E69/1000 -> 0 | F89: 0 | G89: 0 | H89: 0 | I89: 0 | J89: 0 | K89: 0 | L89: 0 | M89: 0 | N89: 0 | O89: 0
B90: Qs(Este) (Refrig) | C90: As*Is*dias/1000 | D90: =D70*D53*D46/1000 -> 0 | E90: 0 | F90: 0 | G90: 0 | H90: 0 | I90: 0 | J90: 0 | K90: 0 | L90: 0 | M90: 0 | N90: 0 | O90: 0
B91: Qs(Norte) (Refrig) | C91: As*Is*dias/1000 | D91: =D71*D54*D46/1000 -> 373.1348693 | E91: 462.7543365 | F91: 700.7579055 | G91: 880.7159649 | H91: 1061.656512 | I91: 1106.847787 | J91: 1120.326591 | K91: 985.1857973 | L91: 750.7413142 | M91: 565.5990449 | N91: 385.1423004 | O91: 319.1152355
B92: Qs(Oeste) (Refrig) | C92: As*Is*dias/1000 | D92: =D72*D55*D46/1000 -> 0 | E92: 0 | F92: 0 | G92: 0 | H92: 0 | I92: 0 | J92: 0 | K92: 0 | L92: 0 | M92: 0 | N92: 0 | O92: 0
B93: Qs(Suroeste) (Refrig) | C93: As*Is*dias/1000 | D93: =D46*D56*D73/1000 -> 0 | E93: =E46*E56*E73/1000 -> 0 | F93: 0 | G93: 0 | H93: 0 | I93: 0 | J93: 0 | K93: 0 | L93: 0 | M93: 0 | N93: 0 | O93: 0
B94: Qs (Refrig) | C94: S Qs(i) | D94: =SUM(D87:D93) -> 3008.416338 | E94: =SUM(E87:E93) -> 2698.356163 | F94: 2996.203243 | G94: 2883.07971 | H94: 2944.164246 | I94: 2952.679596 | J94: 3156.453593 | K94: 3124.917899 | L94: 2871.702287 | M94: 2948.849245 | N94: 2624.560054 | O94: 2333.782669
B95: Qi+Qs (Calefac) | C95: Qi+Qs | D95: =D78+D86 -> 3190.506425 | E95: =E78+E86 -> 2843.784503 | F95: 3118.16915 | G95: 2963.847208 | H95: 3009.384695 | I95: =I78+I86 -> 2963.97766 | J95: =J78+J86 -> 3131.377433 | K95: =K78+K86 -> 3143.382795 | L95: =L78+L86 -> 2981.095425 | M95: 3109.389839 | N95: 2870.622483 | O95: 2699.574871
B96: Qi+Qs (Refrig) | C96: Qi+Qs | D96: =D94+D78 -> 4002.102738 | E96: =E94+E78 -> 3595.879363 | F96: 3989.889643 | G96: 3844.71171 | H96: 3937.850646 | I96: 3914.311596 | J96: 4150.139993 | K96: 4118.604299 | L96: 3833.334287 | M96: 3942.535645 | N96: 3586.192054 | O96: 3327.469069
B97: g (calefac) | C97: (Qs+Qi)/Ql | D97: =IF(D76=0,1,ABS(D95/D76)) -> 0.1222412719 | E97: =IF(E76=0,1,ABS(E95/E76)) -> 0.143672762 | F97: 0.1734766041 | G97: 0.2538424624 | H97: 0.8147991184 | I97: 1.382092013 | J97: 0.3101813361 | K97: 0.277525914 | L97: 0.6950369823 | M97: 1.05234473 | N97: 0.197492582 | O97: 0.1305209398
B98: l (Refrig) | C98: (Qs+Qi)/Ql | D98: =D96/D77 -> 0.05815338567 | E98: =E96/E77 -> 0.06403406764 | F98: 0.07135497939 | G98: 0.08538010745 | H98: 0.1184785563 | I98: 0.1695764102 | J98: 0.3659857597 | K98: 0.438872396 | L98: 0.1948108889 | M98: 0.1229592527 | N98: 0.07234393477 | O98: 0.05525769248
B99: t (calefaccion) | C99: C/(HT+HV)/60/60 | D99: =D75/(D57+D58)/60/60 -> 0.01067632161 | E99: =E75/(E57+E58)/60/60 -> 0.01067632161 | F99: 0.01067632161 | G99: 0.01067632161 | H99: 0.01067632161 | I99: =I75/(I57+I58)/60/60 -> 0.01067632161 | J99: =J75/(J57+J58)/60/60 -> 0.01067632161 | K99: =K75/(K57+K58)/60/60 -> 0.01067632161 | L99: =L75/(L57+L58)/60/60 -> 0.01067632161 | M99: 0.01067632161 | N99: 0.01067632161 | O99: 0.01067632161
B100: t (refrigeracion) | C100: C/(HT+HV)/60/60 | D100: =D75/(D57+D59)/60/60 -> 0.006722905164 | E100: =E75/(E57+E59)/60/60 -> 0.006722905164 | F100: 0.006722905164 | G100: 0.006722905164 | H100: 0.006722905164 | I100: 0.006722905164 | J100: 0.006722905164 | K100: 0.006722905164 | L100: 0.006722905164 | M100: 0.006722905164 | N100: 0.006722905164 | O100: 0.006722905164
B101: a (Calef) | C101: 1+t/15 | D101: =1+D99/15 -> 1.000711755 | E101: =1+E99/15 -> 1.000711755 | F101: 1.000711755 | G101: 1.000711755 | H101: 1.000711755 | I101: 1.000711755 | J101: 1.000711755 | K101: 1.000711755 | L101: 1.000711755 | M101: 1.000711755 | N101: 1.000711755 | O101: 1.000711755
B102: a (Refig) | C102: 1+t/15 | D102: =1+D100/15 -> 1.000448194 | E102: =1+E99/15 -> 1.000711755 | F102: 1.000711755 | G102: 1.000711755 | H102: 1.000711755 | I102: 1.000711755 | J102: 1.000711755 | K102: 1.000711755 | L102: 1.000711755 | M102: 1.000711755 | N102: 1.000711755 | O102: 1.000711755
B103: h (Calef) | C103: (1-ga)/(1-g(a+1)) | D103: =IF(D76=1,D101/(D101+1),(1-D97^D101)/(1-D97^(D101+1))) -> 0.8912392738 | E103: =IF(E76=1,E101/(E101+1),(1-E97^E101)/(1-E97^(E101+1))) -> 0.8745529976 | F103: 0.8523585803 | G103: 0.7977594115 | H103: 0.5512198368 | I103: 0.4199458322 | J103: 0.7634712664 | K103: 0.7829776091 | L103: 0.5901629454 | M103: 0.487420842 | N103: 0.835276249 | O103: 0.8847180637
B104: h (Refrig) | C104: (1-la)/(1-l(a+1)) | D104: =IF(D98<0,1,IF(D98=1,D102/(D102+1),(1-D98^(-D102))/(1-D98^(-(D102+1))))) -> 0.05496151126 | E104: =IF(E98<0,1,IF(E98=1,E102/(E102+1),(1-E98^(-E102))/(1-E98^(-(E102+1))))) -> 0.06018802928 | F104: 0.06661152286 | G104: 0.07867562368 | H104: 0.1059476315 | I104: 0.1450215457 | J104: 0.268008912 | K104: 0.3051084795 | L104: 0.1630858817 | M104: 0.1095161156 | N104: 0.06747253177 | O104: 0.05237014511
B107: Demanda
A108: Calefaccion | B108: =A43 -> 99097.30619
A109: Refrigeracion | B109: =A44 -> 3557.386256

Sheet LOCALIDADES (hidden)
B1: TEMPERATURAS MEDIAS MENSUALES | N1: RADIACION SOLAR HORIZONTAL W/m2 dia | Z1: RADIACION SOLAR SUR W/m2 dia | AL1: RADIACION SOLAR SUR-OESTE/ SUR -ESTE W/m2 dia | AX1: RADIACION SOLAR OESTE/ESTE W/m2 dia | BJ1: RADIACION SOLAR Norte W/m2 dia
B2: Enero | C2: Febrero | D2: Marzo | E2: Abril | F2: Mayo | G2: Junio | H2: Julio | I2: Agosto | J2: Septiembre | K2: Octubre | L2: Noviembre | M2: Diciembre | N2: Enero | O2: Febrero | P2: Marzo | Q2: Abril | R2: Mayo | S2: Junio | T2: Julio | U2: Agosto | V2: Septiembre | W2: Octubre | X2: Noviembre | Y2: Diciembre | Z2: Enero | AA2: Febrero | AB2: Marzo | AC2: Abril | AD2: Mayo | AE2: Junio | AF2: Julio | AG2: Agosto | AH2: Septiembre | AI2: Octubre | AJ2: Noviembre | AK2: Diciembre | AL2: Enero | AM2: Febrero | AN2: Marzo | AO2: Abril | AP2: Mayo | AQ2: Junio | AR2: Julio | AS2: Agosto | AT2: Septiembre | AU2: Octubre | AV2: Noviembre | AW2: Diciembre | AX2: Enero | AY2: Febrero | AZ2: Marzo | BA2: Abril | BB2: Mayo | BC2: Junio | BD2: Julio | BE2: Agosto | BF2: Septiembre | BG2: Octubre | BH2: Noviembre | BI2: Diciembre | BJ2: Enero | BK2: Febrero | BL2: Marzo | BM2: Abril | BN2: Mayo | BO2: Junio | BP2: Julio | BQ2: Agosto | BR2: Septiembre | BS2: Octubre | BT2: Noviembre | BU2: Diciembre | BV2: Zona
A3: Albacete | B3: 4.2 | C3: 5.6 | D3: 9 | E3: 11 | F3: 15.3 | G3: 21.6 | H3: 24.1 | I3: 23.8 | J3: 17.8 | K3: 13.7 | L3: 8.7 | M3: 5.2 | N3: 2010 | O3: 2955 | P3: 3433.333333 | Q3: 4876.666667 | R3: 5454.444444 | S3: 6148.888889 | T3: 6636.666667 | U3: 5822.222222 | V3: 4536.111111 | W3: 3200 | X3: 1882.777778 | Y3: 1612.777778 | Z3: 3201.325239 | AA3: 3642.996851 | AB3: 2852.711661 | AC3: 2822.738041 | AD3: 2445.393684 | AE3: 2420.116612 | AF3: 2635.46603 | AG3: 2944.641955 | AH3: 3332.771073 | AI3: 3494.701319 | AJ3: 2612.294148 | AK3: 2640.984658 | AL3: 2545.661942 | AM3: 3106.94322 | AN3: 2784.368857 | AO3: 3263.7001 | AP3: 3114.682663 | AQ3: 3244.975837 | AR3: 3592.618529 | AS3: 3649.847815 | AT3: 3491.927265 | AU3: 3097.950297 | AV3: 2135.225523 | AW3: 2082.512891 | AX3: 1542.015211 | AY3: 2173.987626 | AZ3: 2352.641486 | BA3: 3209.619586 | BB3: 3454.379434 | BC3: 3838.74827 | BD3: 4191.434748 | BE3: 3797.557614 | BF3: 3098.270204 | BG3: 2304.606081 | BH3: 1393.478169 | BI3: 1234.093122 | BJ3: 627.2791973 | BK3: 871.1623689 | BL3: 1123.507251 | BM3: 1481.873972 | BN3: 1702.920804 | BO3: 1826.67418 | BP3: 1798.434785 | BQ3: 1602.64615 | BR3: 1296.346314 | BS3: 954.1116584 | BT3: 642.9760684 | BU3: 541.9718119 | BV3: D3
A4: Alicante | B4: 11 | C4: 11.8 | D4: 14 | E4: 15.9 | F4: 19 | G4: 22.8 | H4: 25.5 | I4: 26.1 | J4: 23.7 | K4: 19.3 | L4: 15.2 | M4: 12 | N4: 2594.444444 | O4: 3761.111111 | P4: 4512.222222 | Q4: 5762.777778 | R4: 6588.888889 | S4: 7186.111111 | T4: 7246.666667 | U4: 6235 | V4: 5145 | W4: 3718.333333 | X4: 2573.333333 | Y4: 2083.888889 | Z4: 4477.619832 | AA4: 4948.173412 | AB4: 3912.702979 | AC4: 3268.168011 | AD4: 2750.935012 | AE4: 2591.37902 | AF4: 2727.558163 | AG4: 3073.782137 | AH4: 3781.839433 | AI4: 4173.130842 | AJ4: 3960.402546 | AK4: 3706.943076 | AL4: 3516.352822 | AM4: 4178.231347 | AN4: 3821.002553 | AO4: 3871.808214 | AP4: 3701.764463 | AQ4: 3695.50252 | AR4: 3860.873071 | AS4: 3881.548196 | AT4: 3995.170796 | AU4: 3687.073349 | AV4: 3182.116158 | AW4: 2885.422554 | AX4: 2045.371343 | AY4: 2830.936178 | AZ4: 3156.696339 | BA4: 3819.262029 | BB4: 4192.647138 | BC4: 4494.370144 | BD4: 4576.38243 | BE4: 4066.062748 | BF4: 3533.220562 | BG4: 2703.982112 | BH4: 1971.197124 | BI4: 1638.99952 | BJ4: 679.3631731 | BK4: 911.7421874 | BL4: 1207.99618 | BM4: 1526.565487 | BN4: 1754.371407 | BO4: 1849.278975 | BP4: 1796.188547 | BQ4: 1613.121857 | BR4: 1323.441073 | BS4: 993.9601774 | BT4: 722.8878804 | BU4: 602.671907 | BV4: B4
A5: Almeria | B5: 11.7 | C5: 11.8 | D5: 14.1 | E5: 16.1 | F5: 18.4 | G5: 22 | H5: 24.7 | I5: 25.3 | J5: 23.4 | K5: 19.4 | L5: 15.6 | M5: 12.8 | N5: 2477.222222 | O5: 3373.333333 | P5: 4650 | Q5: 5675.555556 | R5: 6501.111111 | S5: 6676.111111 | T5: 6815 | U5: 6163.333333 | V5: 4989.444444 | W5: 3827.222222 | X5: 2665.290026 | Y5: 2128.333333 | Z5: 3888.615342 | AA5: 4030.226194 | AB5: 3894.717866 | AC5: 3112.241879 | AD5: 2632.851165 | AE5: 2409.884692 | AF5: 2540.512512 | AG5: 2939.492798 | AH5: 3518.311455 | AI5: 4124.142835 | AJ5: 3888.888889 | AK5: 3527.960979 | AL5: 3095.329049 | AM5: 3459.436134 | AN5: 3840.412874 | AO5: 3726.676711 | AP5: 3590.202436 | AQ5: 3407.843914 | AR5: 3588.038186 | AS5: 3759.085997 | AT5: 3752.62579 | AU5: 3674.569417 | AV5: 3149.816661 | AW5: 2771.796774 | AX5: 1881.959076 | AY5: 2447.174075 | AZ5: 3213.109887 | BA5: 3718.435375 | BB5: 4102.595534 | BC5: 4138.705436 | BD5: 4262.854641 | BE5: 3979.115679 | BF5: 3371.908731 | BG5: 2738.805302 | BH5: 1997.7501 | BI5: 1627.594118 | BJ5: 706.5514843 | BK5: 937.6073337 | BL5: 1237.103185 | BM5: 1538.782766 | BN5: 1754.588885 | BO5: 1839.730273 | BP5: 1797.390627 | BQ5: 1622.021458 | BR5: 1342.89881 | BS5: 1027.256181 | BT5: 758.6840699 | BU5: 634.8121237 | BV5: A4
A6: Avila | B6: 2.4 | C6: 3.3 | D6: 6.3 | E6: 8.7 | F6: 12.2 | G6: 16.4 | H6: 20 | I6: 19.8 | J6: 16.3 | K6: 10.6 | L6: 6 | M6: 3.2 | N6: 1821.666667 | O6: 2831.666667 | P6: 3345.555556 | Q6: 4516.666667 | R6: 5476.666667 | S6: 5898.888889 | T6: 6779.444444 | U6: 6295.555556 | V6: 4605 | W6: 3076.666667 | X6: 1792.777778 | Y6: 1390 | Z6: 3028.709339 | AA6: 3663.407468 | AB6: 2881.975863 | AC6: 2705.356781 | AD6: 2531.162582 | AE6: 2440.478149 | AF6: 2775.53576 | AG6: 3273.625777 | AH6: 3533.336787 | AI6: 3508.845438 | AJ6: 2633.898988 | AK6: 2332.073487 | AL6: 2394.974771 | AM6: 3097.769594 | AN6: 2787.764462 | AO6: 3070.844969 | AP6: 3182.488586 | AQ6: 3179.467449 | AR6: 3736.302906 | AS6: 4051.911072 | AT6: 3664.788282 | AU6: 3083.757327 | AV6: 2133.716696 | AW6: 1834.512835 | AX6: 1423.843059 | AY6: 2125.380004 | AZ6: 2323.92787 | BA6: 2990.364862 | BB6: 3498.356486 | BC6: 3705.147028 | BD6: 4323.675507 | BE6: 4175.410623 | BF6: 3199.885435 | BG6: 2255.238081 | BH6: 1357.104335 | BI6: 1075.93293 | BJ6: 579.2234842 | BK6: 831.7661111 | BL6: 1093.311002 | BM6: 1439.256765 | BN6: 1703.075676 | BO6: 1816.0871 | BP6: 1801.35817 | BQ6: 1596.013279 | BR6: 1276.50582 | BS6: 916.569037 | BT6: 606.9491081 | BU6: 486.0526639 | BV6: E1
A7: Badajoz | B7: 8.6 | C7: 9.9 | D7: 12.7 | E7: 15.2 | F7: 18 | G7: 22.8 | H7: 25.8 | I7: 22.6 | J7: 22.6 | K7: 17.8 | L7: 12.6 | M7: 9.1 | N7: 1821.111111 | O7: 2640 | P7: 3652.777778 | Q7: 4885.555556 | R7: 5907.222222 | S7: 6477.777778 | T7: 6640.555556 | U7: 5872.777778 | V7: 4582.222222 | W7: 3232.777778 | X7: 2186.666667 | Y7: 1546.666667 | Z7: 2755.431228 | AA7: 3106.381938 | AB7: 3066.172212 | AC7: 2820.067301 | AD7: 2582.274683 | AE7: 2485.599827 | AF7: 2628.26259 | AG7: 2957.806047 | AH7: 3360.430523 | AI7: 3526.787078 | AJ7: 3217.212692 | AK7: 2464.783127 | AL7: 2208.883754 | AM7: 2670.150952 | AN7: 2992.482162 | AO7: 3264.232663 | AP7: 3356.968978 | AQ7: 3393.828909 | AR7: 3588.998264 | AS7: 3676.04879 | AT7: 3524.919703 | AU7: 3127.424828 | AV7: 2604.048675 | AW7: 1951.677813 | AX7: 1372.321655 | AY7: 1910.123602 | AZ7: 2515.105788 | BA7: 3212.987364 | BB7: 3751.526328 | BC7: 4048.272971 | BD7: 4191.1551 | BE7: 3829.257057 | BF7: 3128.890341 | BG7: 2327.07923 | BH7: 1650.574292 | BI7: 1172.384138 | BJ7: 607.0091822 | BK7: 844.5814605 | BL7: 1147.966502 | BM7: 1483.550356 | BN7: 1732.483771 | BO7: 1840.890519 | BP7: 1798.354963 | BQ7: 1604.807068 | BR7: 1300.387461 | BS7: 958.8177206 | BT7: 682.242324 | BU7: 534.2282021 | BV7: C4
A8: Barcelona | B8: 8.4 | C8: 10.1 | D8: 11.7 | E8: 14.1 | F8: 17.5 | G8: 19.9 | H8: 23.1 | I8: 23.6 | J8: 20.8 | K8: 17.8 | L8: 12.9 | M8: 10.6 | N8: 2173.055556 | O8: 2823.888889 | P8: 3744.166667 | Q8: 4805.555556 | R8: 5470 | S8: 6162.5 | T8: 6446.111111 | U8: 5550.555556 | V8: 4139.166667 | W8: 3067.222222 | X8: 2152.777778 | Y8: 1643.333333 | Z8: 4040.369106 | AA8: 3728.474127 | AB8: 3362.427292 | AC8: 2909.635817 | AD8: 2554.185008 | AE8: 2535.331242 | AF8: 2717.717283 | AG8: 2959.706782 | AH8: 3162.573039 | AI8: 3560.559429 | AJ8: 3527.154522 | AK8: 3090.376618 | AL8: 3145.48424 | AM8: 3142.031452 | AN8: 3235.636022 | AO8: 3311.402385 | AP8: 3196.907332 | AQ8: 3326.281136 | AR8: 3586.470449 | AS8: 3575.582125 | AT8: 3263.000133 | AU8: 3119.010821 | AV8: 2810.128479 | AW8: 2392.509604 | AX8: 1773.566265 | AY8: 2137.515832 | AZ8: 2648.400548 | BA8: 3209.266526 | BB8: 3503.808997 | BC8: 3886.963607 | BD8: 4113.649169 | BE8: 3662.655836 | BF8: 2860.34422 | BG8: 2264.764643 | BH8: 1697.211286 | BI8: 1327.217157 | BJ8: 598.1622046 | BK8: 821.3103438 | BL8: 1123.365646 | BM8: 1458.913157 | BN8: 1701.912236 | BO8: 1833.502358 | BP8: 1795.964619 | BQ8: 1579.324145 | BR8: 1243.609091 | BS8: 906.6962095 | BT8: 637.991352 | BU8: 511.5648215 | BV8: C2
A9: Bilbao | B9: 7.5 | C9: 11.4 | D9: 10.8 | E9: 11.5 | F9: 13.7 | G9: 16.2 | H9: 18.4 | I9: 19.3 | J9: 18.3 | K9: 15.8 | L9: 11.9 | M9: 12.2 | N9: 1056.666667 | O9: 1671.111111 | P9: 2451.111111 | Q9: 2767.222222 | R9: 3767.222222 | S9: 3733.888889 | T9: 3919.444444 | U9: 3135 | V9: 2978.333333 | W9: 2275 | X9: 1222.222222 | Y9: 845 | Z9: 1563.058503 | AA9: 1940.897893 | AB9: 2084.434053 | AC9: 1714.248966 | AD9: 1949.706018 | AE9: 1836.142955 | AF9: 1947.115768 | AG9: 1798.244406 | AH9: 2252.294108 | AI9: 2549.977441 | AJ9: 1714.443288 | AK9: 1294.277608 | AL9: 1260.549594 | AM9: 1669.298188 | AN9: 2002.88914 | AO9: 1847.789193 | AP9: 2253.835504 | AQ9: 2125.632031 | AR9: 2274.621182 | AS9: 2000.252111 | AT9: 2288.941686 | AU9: 2241.678379 | AV9: 1400.658233 | AW9: 1034.697504 | AX9: 795.7966525 | AY9: 1209.930908 | AZ9: 1688.471531 | BA9: 1794.480107 | BB9: 2390.053901 | BC9: 2328.48249 | BD9: 2467.755711 | BE9: 2014.369879 | BF9: 2028.440354 | BG9: 1660.290803 | BH9: 914.049198 | BI9: 636.3214172 | BJ9: 420.1297153 | BK9: 641.4460151 | BL9: 932.7999468 | BM9: 1149.072372 | BN9: 1478.470896 | BO9: 1528.966388 | BP9: 1536.603087 | BQ9: 1273.948108 | BR9: 1087.354121 | BS9: 790.0051381 | BT9: 476.510547 | BU9: 349.2277717 | BV9: C1
A10: Burgos | B10: 2.5 | C10: 4.8 | D10: 7.1 | E10: 9.2 | F10: 12.2 | G10: 16.2 | H10: 19 | I10: 18.8 | J10: 16.2 | K10: 11.3 | L10: 6.5 | M10: 3.4 | N10: 1030 | O10: 2221.111111 | P10: 2994.444444 | Q10: 3996.111111 | R10: 5030.555556 | S10: 5953.888889 | T10: 6378.888889 | U10: 5577.777778 | V10: 4014.444444 | W10: 2787.222222 | X10: 1436.111111 | Y10: 808.3333333 | Z10: 1428.10322 | AA10: 2791.662031 | AB10: 2620.045106 | AC10: 2465.644918 | AD10: 2440.551564 | AE10: 2535.402716 | AF10: 2764.604308 | AG10: 3044.608495 | AH10: 3135.812976 | AI10: 3256.332534 | AJ10: 2072.537843 | AK10: 1142.005609 | AL10: 1163.825372 | AM10: 2370.032407 | AN10: 2517.225691 | AO10: 2743.495591 | AP10: 2979.103246 | AQ10: 3260.534495 | AR10: 3597.345715 | AS10: 3649.756711 | AT10: 3213.299919 | AU10: 2846.545703 | AV10: 1684.77815 | AW10: 924.8231079 | AX10: 758.2300174 | AY10: 1653.02596 | AZ10: 2090.547831 | BA10: 2651.402613 | BB10: 3227.541389 | BC10: 3771.078008 | BD10: 4094.726429 | BE10: 3711.999487 | BF10: 2796.361088 | BG10: 2065.295216 | BH10: 1083.267056 | BI10: 592.3513005 | BJ10: 421.6978124 | BK10: 742.9576678 | BL10: 1029.878018 | BM10: 1370.196464 | BN10: 1661.336056 | BO10: 1823.89049 | BP10: 1794.404189 | BQ10: 1572.766609 | BR10: 1220.001162 | BS10: 864.3869056 | BT10: 528.4795372 | BU10: 346.1168287 | BV10: E1
A11: Caceres | B11: 7.7 | C11: 9.1 | D11: 11.7 | E11: 14.4 | F11: 17.4 | G11: 22.5 | H11: 26 | I11: 25.6 | J11: 22.3 | K11: 16.9 | L11: 11.7 | M11: 8.1 | N11: 1821.111111 | O11: 2640 | P11: 3652.777778 | Q11: 4885.555556 | R11: 5907.222222 | S11: 6477.777778 | T11: 6640.555556 | U11: 5872.777778 | V11: 4582.222222 | W11: 3232.777778 | X11: 2186.666667 | Y11: 1546.666667 | Z11: 2755.431228 | AA11: 3106.381938 | AB11: 3066.172212 | AC11: 2820.067301 | AD11: 2582.274683 | AE11: 2485.599827 | AF11: 2628.26259 | AG11: 2957.806047 | AH11: 3360.430523 | AI11: 3526.787078 | AJ11: 3217.212692 | AK11: 2464.783127 | AL11: 2208.883754 | AM11: 2670.150952 | AN11: 2992.482162 | AO11: 3264.232663 | AP11: 3356.968978 | AQ11: 3393.828909 | AR11: 3588.998264 | AS11: 3676.04879 | AT11: 3524.919703 | AU11: 3127.424828 | AV11: 2604.048675 | AW11: 1951.677813 | AX11: 1372.321655 | AY11: 1910.123602 | AZ11: 2515.105788 | BA11: 3212.987364 | BB11: 3751.526328 | BC11: 4048.272971 | BD11: 4191.1551 | BE11: 3829.257057 | BF11: 3128.890341 | BG11: 2327.07923 | BH11: 1650.574292 | BI11: 1172.384138 | BJ11: 607.0091822 | BK11: 844.5814605 | BL11: 1147.966502 | BM11: 1483.550356 | BN11: 1732.483771 | BO11: 1840.890519 | BP11: 1798.354963 | BQ11: 1604.807068 | BR11: 1300.387461 | BS11: 958.8177206 | BT11: 682.242324 | BU11: 534.2282021 | BV11: C4
A12: Cadiz | B12: 11.4 | C12: 12.5 | D12: 14.6 | E12: 16.6 | F12: 18.9 | G12: 22.2 | H12: 24.5 | I12: 24.9 | J12: 23.4 | K12: 19.5 | L12: 15.6 | M12: 12.5 | N12: 2331.666667 | O12: 3684.444444 | P12: 4571.666667 | Q12: 6186.111111 | R12: 7119.444444 | S12: 7589.444444 | T12: 7561.666667 | U12: 7141.666667 | V12: 5702.222222 | W12: 4053.888889 | X12: 2708.333333 | Y12: 2188.333333 | Z12: 3515.465133 | AA12: 4493.650118 | AB12: 3785.190986 | AC12: 3346.345326 | AD12: 2762.115281 | AE12: 2529.856416 | AF12: 2654.265983 | AG12: 3276.546953 | AH12: 4049.928507 | AI12: 4405.336109 | AJ12: 3925.948299 | AK12: 3616.880769 | AL12: 2816.079552 | AM12: 3844.920512 | AN12: 3740.412686 | AO12: 4066.744326 | AP12: 3892.41446 | AQ12: 3789.347192 | AR12: 3920.065676 | AS12: 4344.777394 | AT12: 4353.222602 | AU12: 3921.941592 | AV12: 3182.936476 | AW12: 2842.229131 | AX12: 1746.388603 | AY12: 2691.098923 | AZ12: 3144.701673 | BA12: 4066.969536 | BB12: 4501.53326 | BC12: 4714.075152 | BD12: 4738.745783 | BE12: 4639.659024 | BF12: 3887.355659 | BG12: 2909.424338 | BH12: 2024.228248 | BI12: 1670.632942 | BJ12: 701.3360176 | BK12: 954.2391663 | BL12: 1239.941039 | BM12: 1545.383508 | BN12: 1753.450977 | BO12: 1834.515475 | BP12: 1783.498967 | BQ12: 1600.209955 | BR12: 1346.077816 | BS12: 1038.246669 | BT12: 767.3164415 | BU12: 645.386307 | BV12: A3
A13: Castellon | B13: 10.4 | C13: 11.1 | D13: 13.1 | E13: 14.9 | F13: 17.8 | G13: 21.6 | H13: 24.3 | I13: 24.7 | J13: 22.6 | K13: 18.6 | L13: 14.3 | M13: 11.1 | N13: 2112.222222 | O13: 3451.111111 | P13: 4342.777778 | Q13: 5137.777778 | R13: 5877.222222 | S13: 6401.111111 | T13: 6490 | U13: 7862.777778 | V13: 4769.444444 | W13: 3368.333333 | X13: 2157.222222 | Y13: 1890.555556 | Z13: 3626.019968 | AA13: 4693.91234 | AB13: 3911.170192 | AC13: 3033.260353 | AD13: 2633.316226 | AE13: 2530.594521 | AF13: 2658.771385 | AG13: 3896.898327 | AH13: 3618.355334 | AI13: 3872.438175 | AJ13: 3330.495539 | AK13: 3535.078869 | AL13: 2852.677829 | AM13: 3939.827101 | AN13: 3781.001628 | AO13: 3502.534519 | AP13: 3383.246321 | AQ13: 3399.190714 | AR13: 3560.108453 | AS13: 5066.915334 | AT13: 3771.77664 | AU13: 3401.714877 | AV13: 2676.268691 | AW13: 2736.17163 | AX13: 1668.186486 | AY13: 2637.325909 | AZ13: 3081.594743 | BA13: 3418.235078 | BB13: 3753.809035 | BC13: 4019.905492 | BD13: 4116.28079 | BE13: 5277.026424 | BF13: 3303.986037 | BG13: 2475.239828 | BH13: 1659.976111 | BI13: 1519.962686 | BJ13: 618.5142976 | BK13: 870.951164 | BL13: 1174.201526 | BM13: 1489.998223 | BN13: 1729.645728 | BO13: 1841.380657 | BP13: 1796.352768 | BQ13: 1496.342596 | BR13: 1291.684877 | BS13: 947.1808703 | BT13: 659.9578677 | BU13: 555.850053 | BV13: B3
A14: Ciudad Real | B14: 5.4 | C14: 7.3 | D14: 10.4 | E14: 12.9 | F14: 16.3 | G14: 21.2 | H14: 25.5 | I14: 24.8 | J14: 21 | K14: 14.8 | L14: 8.9 | M14: 6.2 | N14: 1652.222222 | O14: 2895.555556 | P14: 3511.666667 | Q14: 4606.666667 | R14: 5755.555556 | S14: 6395.555556 | T14: 7156.666667 | U14: 6376.666667 | V14: 4840.555556 | W14: 3048.333333 | X14: 1805 | Y14: 1281.111111 | Z14: 2403.745496 | AA14: 3538.454651 | AB14: 2929.786933 | AC14: 2669.00901 | AD14: 2540.180405 | AE14: 2473.34219 | AF14: 2752.826381 | AG14: 3179.782665 | AH14: 3585.630249 | AI14: 3272.553266 | AJ14: 2455.098249 | AK14: 1876.154163 | AL14: 1939.592573 | AM14: 3022.196398 | AN14: 2859.24925 | AO14: 3067.669541 | AP14: 3278.079104 | AQ14: 3359.227848 | AR14: 3847.420843 | AS14: 4007.721795 | AT14: 3764.536918 | AU14: 2908.962476 | AV14: 2013.573432 | AW14: 1506.492565 | AX14: 1229.109796 | AY14: 2123.456012 | AZ14: 2410.884441 | BA14: 3019.504149 | BB14: 3652.923541 | BC14: 3997.089932 | BD14: 4532.536848 | BE14: 4181.938821 | BF14: 3325.008398 | BG14: 2181.522684 | BH14: 1327.067268 | BI14: 944.9469383 | BJ14: 580.960776 | BK14: 867.1713758 | BL14: 1132.503892 | BM14: 1459.94658 | BN14: 1723.890262 | BO14: 1838.124565 | BP14: 1798.530637 | BQ14: 1608.216893 | BR14: 1308.781502 | BS14: 941.8911844 | BT14: 631.8107746 | BU14: 486.4143997 | BV14: D3
A15: Cordoba | B15: 9.1 | C15: 10.7 | D15: 13.5 | E15: 16.3 | F15: 19.4 | G15: 24.4 | H15: 27.9 | I15: 27.6 | J15: 24.3 | K15: 18.6 | L15: 13.6 | M15: 9.6 | N15: 2055.555556 | O15: 3081.666667 | P15: 3932.222222 | Q15: 4784.444444 | R15: 5281.666667 | S15: 6740.555556 | T15: 7145 | U15: 6503.333333 | V15: 4996.666667 | W15: 3303.888889 | X15: 2285.555556 | Y15: 1732.222222 | Z15: 3125.387349 | AA15: 3699.862901 | AB15: 3268.831574 | AC15: 2708.879331 | AD15: 2339.344675 | AE15: 2481.380453 | AF15: 2674.364726 | AG15: 3147.598483 | AH15: 3615.744054 | AI15: 3513.35316 | AJ15: 3273.845316 | AK15: 2758.397502 | AL15: 2502.064606 | AM15: 3171.231884 | AN15: 3206.659795 | AO15: 3149.710349 | AP15: 2985.591614 | AQ15: 3476.146852 | AR15: 3790.087844 | AS15: 4026.686381 | AT15: 3828.585776 | AU15: 3132.111598 | AV15: 2660.660987 | AW15: 2182.71734 | AX15: 1548.395273 | AY15: 2242.51236 | AZ15: 2700.988392 | BA15: 3121.844311 | BB15: 3323.102154 | BC15: 4198.544799 | BD15: 4498.956797 | BE15: 4238.781272 | BF15: 3407.70547 | BG15: 2354.469154 | BH15: 1706.11014 | BI15: 1310.043226 | BJ15: 651.0860813 | BK15: 900.8021319 | BL15: 1185.312977 | BM15: 1483.123204 | BN15: 1688.964088 | BO15: 1844.805417 | BP15: 1797.473328 | BQ15: 1614.459348 | BR15: 1328.452373 | BS15: 980.8532092 | BT15: 709.0812712 | BU15: 574.7639802 | BV15: B4
A16: Coruña | B16: 9.9 | C16: 9.8 | D16: 11.5 | E16: 12.4 | F16: 14 | G16: 16.5 | H16: 18.2 | I16: 18.9 | J16: 17.8 | K16: 15.3 | L16: 12.4 | M16: 10.2 | N16: 1436.666667 | O16: 2121.666667 | P16: 3075 | Q16: 4076.666667 | R16: 4171.111111 | S16: 4687.777778 | T16: 5047.777778 | U16: 4146.111111 | V16: 3710 | W16: 2290 | X16: 1741.111111 | Y16: 1093.888889 | Z16: 2518.256737 | AA16: 2750.263828 | AB16: 2796.960629 | AC16: 2572.496459 | AD16: 2132.046082 | AE16: 2187.142928 | AF16: 2381.280442 | AG16: 2356.708668 | AH16: 2939.94983 | AI16: 2599.242513 | AJ16: 2934.700883 | AK16: 1953.400958 | AL16: 1979.278194 | AM16: 2322.412859 | AN16: 2668.304286 | AO16: 2850.10006 | AP16: 2500.885623 | AQ16: 2638.649402 | AR16: 2911.002922 | AS16: 2700.631271 | AT16: 2990.648129 | AU16: 2279.944449 | AV16: 2330.449965 | AW16: 1526.069793 | AX16: 1150.938042 | AY16: 1599.938014 | AZ16: 2182.297757 | BA16: 2733.184546 | BB16: 2664.539816 | BC16: 2954.610908 | BD16: 3222.16861 | BE16: 2721.047391 | BF16: 2593.674395 | BG16: 1679.748849 | BH16: 1393.457264 | BI16: 869.7087517 | BJ16: 486.7984261 | BK16: 712.7535932 | BL16: 1026.028027 | BM16: 1371.602289 | BN16: 1548.51675 | BO16: 1696.567336 | BP16: 1702.407936 | BQ16: 1446.159017 | BR16: 1178.855065 | BS16: 788.5428962 | BT16: 557.5630646 | BU16: 400.715001 | BV16: C1
A17: Cuenca | B17: 3.1 | C17: 4.2 | D17: 7.3 | E17: 10 | F17: 13.3 | G17: 18.1 | H17: 21.9 | I17: 21.4 | J17: 18 | K17: 12 | L17: 7.2 | M17: 4.1 | N17: 1677.777778 | O17: 2558.888889 | P17: 3277.777778 | Q17: 4240.555556 | R17: 5188.888889 | S17: 5813.333333 | T17: 6607.777778 | U17: 5963.333333 | V17: 4439.444444 | W17: 3076.666667 | X17: 1776.111111 | Y17: 1380 | Z17: 2602.347147 | AA17: 3113.167588 | AB17: 2768.844244 | AC17: 2513.135568 | AD17: 2404.108057 | AE17: 2391.128276 | AF17: 2694.376133 | AG17: 3079.592273 | AH17: 3338.24816 | AI17: 3438.956922 | AJ17: 2526.285686 | AK17: 2229.532904 | AL17: 2079.267713 | AM17: 2659.500798 | AN17: 2688.025758 | AO17: 2844.987246 | AP17: 3001.656135 | AQ17: 3119.63362 | AR17: 3623.422999 | AS17: 3796.870224 | AT17: 3472.147038 | AU17: 3033.665578 | AV17: 2057.039966 | AW17: 1763.251191 | AX17: 1278.046313 | AY17: 1876.374499 | AZ17: 2258.82941 | BA17: 2783.729909 | BB17: 3296.243289 | BC17: 3639.931988 | BD17: 4196.031366 | BE17: 3923.83616 | BF17: 3056.424019 | BG17: 2236.973107 | BH17: 1328.14978 | BI17: 1053.283229 | BJ17: 569.6803386 | BK17: 816.9059386 | BL17: 1092.419937 | BM17: 1414.676361 | BN17: 1679.169816 | BO17: 1808.456549 | BP17: 1798.901915 | BQ17: 1598.775407 | BR17: 1276.979662 | BS17: 926.3705384 | BT17: 612.5916005 | BU17: 491.826291 | BV17: D2
A18: San Sebastian | B18: 7.8 | C18: 7.7 | D18: 10.7 | E18: 11.8 | F18: 10.5 | G18: 16.8 | H18: 15.1 | I18: 19 | J18: 18.1 | K18: 14.7 | L18: 10.7 | M18: 8 | N18: 1322.777778 | O18: 1940 | P18: 2651.666667 | Q18: 2803.333333 | R18: 4009.444444 | S18: 4121.666667 | T18: 4145 | U18: 3356.666667 | V18: 3206.111111 | W18: 2521.111111 | X18: 1451.666667 | Y18: 1063.888889 | Z18: 2199.002978 | AA18: 2403.622638 | AB18: 2306.399311 | AC18: 1739.258488 | AD18: 2056.898722 | AE18: 1981.737488 | AF18: 2037.457938 | AG18: 1921.405927 | AH18: 2461.285975 | AI18: 2944.286808 | AJ18: 2220.434397 | AK18: 1847.357573 | AL18: 1741.492253 | AM18: 2044.723171 | AN18: 2210.863998 | AO18: 1875.954327 | AP18: 2399.994325 | AQ18: 2334.387379 | AR18: 2402.520049 | AS18: 2152.181098 | AT18: 2502.383885 | AU18: 2571.636404 | AV18: 1788.898338 | AW18: 1448.812031 | AX18: 1038.533822 | AY18: 1437.992214 | AZ18: 1844.752582 | BA18: 1820.509607 | BB18: 2553.242884 | BC18: 2581.397843 | BD18: 2617.554426 | BE18: 2167.598798 | BF18: 2202.005662 | BG18: 1869.565334 | BH18: 1119.698432 | BI18: 837.0202207 | BJ18: 471.6770593 | BK18: 688.8519653 | BL18: 967.4751973 | BM18: 1156.988931 | BN18: 1522.0118 | BO18: 1604.916303 | BP18: 1576.865914 | BQ18: 1318.927568 | BR18: 1121.200078 | BS18: 821.1288137 | BT18: 519.3735793 | BU18: 397.2295502 | BV18: C1
A19: Girona | B19: 7.2 | C19: 8.2 | D19: 10.7 | E19: 13.1 | F19: 16.7 | G19: 20.4 | H19: 23.3 | I19: 23.1 | J19: 20.5 | K19: 15.9 | L19: 10.9 | M19: 7.7 | N19: 2010.555556 | O19: 2834.444444 | P19: 3784.722222 | Q19: 4432.777778 | R19: 4987.777778 | S19: 4740.555556 | T19: 6124.444444 | U19: 5016.111111 | V19: 3792.222222 | W19: 2953.888889 | X19: 2055.277778 | Y19: 1555.277778 | Z19: 3776.02814 | AA19: 3873.877141 | AB19: 3485.259888 | AC19: 2724.110019 | AD19: 2410.345389 | AE19: 2155.660356 | AF19: 2668.618009 | AG19: 2742.042907 | AH19: 2909.888473 | AI19: 3481.906541 | AJ19: 3439.037366 | AK19: 2995.315057 | AL19: 2937.134988 | AM19: 3246.267576 | AN19: 3337.422684 | AO19: 3063.236394 | AP19: 2944.184525 | AQ19: 2633.298175 | AR19: 3448.198665 | AS19: 3246.776119 | AT19: 2984.662057 | AU19: 3040.607539 | AV19: 2732.315969 | AW19: 2313.00269 | AX19: 1650.099411 | AY19: 2176.773813 | AZ19: 2705.338815 | BA19: 2958.782486 | BB19: 3193.016477 | BC19: 2970.229761 | BD19: 3916.001645 | BE19: 3304.537696 | BF19: 2617.392203 | BG19: 2195.762231 | BH19: 1635.857031 | BI19: 1269.393845 | BJ19: 572.0698855 | BK19: 806.6321922 | BL19: 1114.096277 | BM19: 1421.155448 | BN19: 1657.282139 | BO19: 1700.445402 | BP19: 1784.671889 | BQ19: 1543.385483 | BR19: 1204.69409 | BS19: 884.3104474 | BT19: 615.1817707 | BU19: 488.8398704 | BV19: C2
A20: Granada | B20: 7 | C20: 8.4 | D20: 11 | E20: 13.3 | F20: 16.3 | G20: 21.8 | H20: 25.7 | I20: 25.3 | J20: 21.8 | K20: 16 | L20: 11.6 | M20: 7.7 | N20: 1911.111111 | O20: 2686.111111 | P20: 3402.777778 | Q20: 4408.888889 | R20: 5165 | S20: 5835 | T20: 6579.444444 | U20: 5223.888889 | V20: 4292.222222 | W20: 3112.777778 | X20: 2059.444444 | Y20: 1530.555556 | Z20: 2721.940629 | AA20: 2996.086612 | AB20: 2700.643936 | AC20: 2473.411268 | AD20: 2273.431886 | AE20: 2262.866593 | AF20: 2512.339103 | AG20: 2585.206482 | AH20: 3000.982394 | AI20: 3177.8097 | AJ20: 2738.354198 | AK20: 2219.854637 | AL20: 2202.148258 | AM20: 2601.689641 | AN20: 2663.942076 | AO20: 2861.832964 | AP20: 2902.896629 | AQ20: 3041.455874 | AR20: 3490.174449 | AS20: 3192.426433 | AT20: 3175.65503 | AU20: 2854.220219 | AV20: 2253.547451 | AW20: 1783.078573 | AX20: 1407.043214 | AY20: 1904.435086 | AZ20: 2292.382931 | BA20: 2850.55217 | BB20: 3237.197303 | BC20: 3610.084873 | BD20: 4117.304392 | BE20: 3350.226214 | BF20: 2873.449467 | BG20: 2185.226597 | BH20: 1498.175619 | BI20: 1121.789516 | BJ20: 644.029065 | BK20: 875.313097 | BL20: 1140.924959 | BM20: 1451.87319 | BN20: 1678.206314 | BO20: 1801.122298 | BP20: 1794.935127 | BQ20: 1582.887991 | BR20: 1302.90051 | BS20: 975.4438268 | BT20: 693.4188881 | BU20: 553.4194251 | BV20: C3
A21: Guadalajara | B21: 3.5 | C21: 5.9 | D21: 9.5 | E21: 11.9 | F21: 15.6 | G21: 20.2 | H21: 24.3 | I21: 23.5 | J21: 19.8 | K21: 13.7 | L21: 8.4 | M21: 5.5 | N21: 1386.111111 | O21: 2125.555556 | P21: 2763.333333 | Q21: 3610.555556 | R21: 4516.111111 | S21: 5103.333333 | T21: 6550 | U21: 5687.222222 | V21: 4042.777778 | W21: 2787.222222 | X21: 1440.555556 | Y21: 1157.222222 | Z21: 2021.888318 | AA21: 2457.421152 | AB21: 2273.390225 | AC21: 2161.523662 | AD21: 2179.462068 | AE21: 2219.194596 | AF21: 2711.520685 | AG21: 2987.839852 | AH21: 3035.170744 | AI21: 3066.6782 | AJ21: 1912.90514 | AK21: 1768.564865 | AL21: 1632.17758 | AM21: 2117.087915 | AN21: 2207.458194 | AO21: 2403.92508 | AP21: 2635.998228 | AQ21: 2785.369286 | AR21: 3616.210198 | AS21: 3639.535178 | AT21: 3140.554446 | AU21: 2710.369884 | AV21: 1576.296181 | AW21: 1411.72505 | AX21: 1035.009921 | AY21: 1531.817294 | AZ21: 1880.864662 | BA21: 2351.303979 | BB21: 2857.717276 | BC21: 3188.252452 | BD21: 4169.684936 | BE21: 3743.986775 | BF21: 2772.080391 | BG21: 2015.410848 | BH21: 1053.639388 | BI21: 867.7498247 | BJ21: 514.9058849 | BK21: 752.089637 | BL21: 1012.607081 | BM21: 1325.076107 | BN21: 1601.334879 | BO21: 1743.037176 | BP21: 1798.138176 | BQ21: 1588.254531 | BR21: 1243.272576 | BS21: 890.8206175 | BT21: 548.087152 | BU21: 444.1358498 | BV21: D3
A22: Huelva | B22: 11.1 | C22: 12.3 | D22: 14.4 | E22: 18.4 | F22: 18.9 | G22: 22.4 | H22: 25 | I22: 25.2 | J22: 23.3 | K22: 19.4 | L22: 15.2 | M22: 11.9 | N22: 2103.333333 | O22: 3293.888889 | P22: 4388.333333 | Q22: 5776.666667 | R22: 6676.666667 | S22: 7120 | T22: 7498.888889 | U22: 6900 | V22: 5725.555556 | W22: 3638.333333 | X22: 2408.333333 | Y22: 1856.666667 | Z22: 3136.365764 | AA22: 3961.02291 | AB22: 3672.722677 | AC22: 3194.411027 | AD22: 2704.246894 | AE22: 2509.903338 | AF22: 2697.14901 | AG22: 3250.81096 | AH22: 4147.50329 | AI22: 3910.928776 | AJ22: 3431.109869 | AK22: 2955.564504 | AL22: 2518.000268 | AM22: 3395.439684 | AN22: 3613.171276 | AO22: 3820.394899 | AP22: 3699.238079 | AQ22: 3619.538151 | AR22: 3927.110965 | AS22: 4239.940893 | AT22: 4433.683284 | AU22: 3483.719501 | AV22: 2790.414462 | AW22: 2337.712214 | AX22: 1572.092337 | AY22: 2396.312202 | AZ22: 3027.942721 | BA22: 3799.728864 | BB22: 4226.630287 | BC22: 4429.385211 | BD22: 4715.062866 | BE22: 4494.837869 | BF22: 3930.684999 | BG22: 2601.960982 | BH22: 1792.264701 | BI22: 1402.13497 | BJ22: 666.4928361 | BK22: 925.4193431 | BL22: 1221.630149 | BM22: 1537.110967 | BN22: 1756.285541 | BO22: 1845.737701 | BP22: 1787.231133 | BQ22: 1607.280412 | BR22: 1332.741345 | BS22: 1011.917804 | BT22: 731.3672905 | BU22: 599.9185295 | BV22: B4
A23: Huesca | B23: 4.6 | C23: 6.1 | D23: 10.2 | E23: 12.5 | F23: 15.9 | G23: 19.9 | H23: 22.8 | I23: 22.5 | J23: 19.3 | K23: 14 | L23: 8.9 | M23: 5.4 | N23: 1787.222222 | O23: 3186.666667 | P23: 4165 | Q23: 4892.777778 | R23: 5724.444444 | S23: 6202.777778 | T23: 6637.222222 | U23: 5759.444444 | V23: 4283.333333 | W23: 3158.333333 | X23: 1881.111111 | Y23: 1379.444444 | Z23: 3196.712501 | AA23: 4589.05708 | AB23: 3946.635063 | AC23: 3019.915366 | AD23: 2692.177468 | AE23: 2593.433046 | AF23: 2828.067027 | AG23: 3121.351553 | AH23: 3366.600692 | AI23: 3830.533592 | AJ23: 3041.631323 | AK23: 2522.469356 | AL23: 2503.366177 | AM23: 3815.75714 | AN23: 3768.794903 | AO23: 3423.096528 | AP23: 3376.769868 | AQ23: 3378.175288 | AR23: 3725.964036 | AS23: 3764.963071 | AT23: 3457.26453 | AU23: 3330.516018 | AV23: 2428.85252 | AW23: 1961.886751 | AX23: 1439.504687 | AY23: 2498.955402 | AZ23: 3016.49489 | BA23: 3295.634013 | BB23: 3694.721041 | BC23: 3931.367932 | BD23: 4263.886956 | BE23: 3836.023902 | BF23: 2997.734042 | BG23: 2374.666165 | BH23: 1478.193296 | BI23: 1104.208684 | BJ23: 551.3490261 | BK23: 817.4726999 | BL23: 1131.003054 | BM23: 1456.790914 | BN23: 1717.819946 | BO23: 1837.836819 | BP23: 1800.212666 | BQ23: 1580.034722 | BR23: 1240.856399 | BS23: 895.9961238 | BT23: 596.0970622 | BU23: 464.9200627 | BV23: D2
A24: Jaen | B24: 8.2 | C24: 9.6 | D24: 12.3 | E24: 14.1 | F24: 18.3 | G24: 23.8 | H24: 27.7 | I24: 27.3 | J24: 23.4 | K24: 17.6 | L24: 12.7 | M24: 8.9 | N24: 2055.555556 | O24: 3081.666667 | P24: 3932.222222 | Q24: 4784.444444 | R24: 5281.666667 | S24: 6740.555556 | T24: 7145 | U24: 6503.333333 | V24: 4996.666667 | W24: 3303.888889 | X24: 2285.555556 | Y24: 1732.222222 | Z24: 3125.387349 | AA24: 3699.862901 | AB24: 3268.831574 | AC24: 2708.879331 | AD24: 2339.344675 | AE24: 2481.380453 | AF24: 2674.364726 | AG24: 3147.598483 | AH24: 3615.744054 | AI24: 3513.35316 | AJ24: 3273.845316 | AK24: 2758.397502 | AL24: 2502.064606 | AM24: 3171.231884 | AN24: 3206.659795 | AO24: 3149.710349 | AP24: 2985.591614 | AQ24: 3476.146852 | AR24: 3790.087844 | AS24: 4026.686381 | AT24: 3828.585776 | AU24: 3132.111598 | AV24: 2660.660987 | AW24: 2182.71734 | AX24: 1548.395273 | AY24: 2242.51236 | AZ24: 2700.988392 | BA24: 3121.844311 | BB24: 3323.102154 | BC24: 4198.544799 | BD24: 4498.956797 | BE24: 4238.781272 | BF24: 3407.70547 | BG24: 2354.469154 | BH24: 1706.11014 | BI24: 1310.043226 | BJ24: 651.0860813 | BK24: 900.8021319 | BL24: 1185.312977 | BM24: 1483.123204 | BN24: 1688.964088 | BO24: 1844.805417 | BP24: 1797.473328 | BQ24: 1614.459348 | BR24: 1328.452373 | BS24: 980.8532092 | BT24: 709.0812712 | BU24: 574.7639802 | BV24: C4
A25: Leon | B25: 2.8 | C25: 4.2 | D25: 7.6 | E25: 9.9 | F25: 12.5 | G25: 17.2 | H25: 19.7 | I25: 19.5 | J25: 16.6 | K25: 11.8 | L25: 7 | M25: 3.6 | N25: 1555.555556 | O25: 2979.444444 | P25: 3792.222222 | Q25: 4809.444444 | R25: 5317.777778 | S25: 6548.333333 | T25: 6894.444444 | U25: 6018.888889 | V25: 4279.444444 | W25: 2952.777778 | X25: 1936.666667 | Y25: 1171.111111 | Z25: 2676.121151 | AA25: 4260.011509 | AB25: 3552.844532 | AC25: 2996.167478 | AD25: 2562.398444 | AE25: 2711.883128 | AF25: 2932.955527 | AG25: 3284.272369 | AH25: 3402.619529 | AI25: 3555.44797 | AJ25: 3254.240908 | AK25: 2032.55819 | AL25: 2107.873057 | AM25: 3545.192345 | AN25: 3390.415758 | AO25: 3381.547679 | AP25: 3155.60498 | AQ25: 3568.43077 | AR25: 3884.320223 | AS25: 3972.338054 | AT25: 3484.89339 | AU25: 3093.23728 | AV25: 2584.472068 | AW25: 1593.251886 | AX25: 1235.530787 | AY25: 2331.442266 | AZ25: 2730.529438 | BA25: 3246.881048 | BB25: 3427.101486 | BC25: 4170.673526 | BD25: 4450.573631 | BE25: 4037.034575 | BF25: 3009.370287 | BG25: 2214.730109 | BH25: 1545.596058 | BI25: 920.296368 | BJ25: 516.8538839 | BK25: 801.5280256 | BL25: 1105.383253 | BM25: 1447.089305 | BN25: 1687.767884 | BO25: 1853.068808 | BP25: 1801.981749 | BQ25: 1580.680819 | BR25: 1234.162707 | BS25: 874.1387221 | BT25: 594.035493 | BU25: 425.5726452 | BV25: E1
A26: Lleida | B26: 5.4 | C26: 7.3 | D26: 10.9 | E26: 13.8 | F26: 17.9 | G26: 21.8 | H26: 24.9 | I26: 24.4 | J26: 21.2 | K26: 15.5 | L26: 9.2 | M26: 5.2 | N26: 1688.055556 | O26: 3380 | P26: 4330.833333 | Q26: 5340.277778 | R26: 6097.777778 | S26: 6739.722222 | T26: 6843.888889 | U26: 5927.777778 | V26: 4650 | W26: 3327.777778 | X26: 1750.833333 | Y26: 1112.777778 | Z26: 2836.410412 | AA26: 4854.81974 | AB26: 4071.273372 | AC26: 3257.469437 | AD26: 2791.261148 | AE26: 2696.948629 | AF26: 2846.849793 | AG26: 3161.427238 | AH26: 3650.37918 | AI26: 4020.303906 | AJ26: 2653.141269 | AK26: 1757.719846 | AL26: 2240.459153 | AM26: 4039.308729 | AN26: 3899.308875 | AO26: 3737.145618 | AP26: 3567.770456 | AQ26: 3619.99765 | AR26: 3807.239738 | AS26: 3848.267475 | AT26: 3767.465717 | AU26: 3499.742775 | AV26: 2139.319368 | AW26: 1396.53804 | AX26: 1326.582767 | AY26: 2645.174426 | AZ26: 3127.540645 | BA26: 3605.718656 | BB26: 3935.261613 | BC26: 4273.089166 | BD26: 4387.585843 | BE26: 3938.53182 | BF26: 3262.062093 | BG26: 2496.676045 | BH26: 1341.937677 | BI26: 844.7947286 | BJ26: 550.2110175 | BK26: 833.8829357 | BL26: 1146.786504 | BM26: 1484.602312 | BN26: 1737.233604 | BO26: 1855.433239 | BP26: 1801.940597 | BQ26: 1588.072351 | BR26: 1265.715092 | BS26: 916.3134315 | BT26: 589.3127451 | BU26: 426.0286587 | BV26: D3
A27: Logroño | B27: 5.1 | C27: 6.5 | D27: 9.7 | E27: 11.9 | F27: 14.9 | G27: 19.1 | H27: 21.8 | I27: 21.5 | J27: 19 | K27: 13.8 | L27: 8.9 | M27: 6.1 | N27: 1662.777778 | O27: 2675 | P27: 3779.444444 | Q27: 5070.555556 | R27: 5896.666667 | S27: 6547.777778 | T27: 7012.222222 | U27: 5943.333333 | V27: 4593.888889 | W27: 3280 | X27: 1872.222222 | Y27: 1395.555556 | Z27: 2939.211678 | AA27: 3648.090195 | AB27: 3529.19687 | AC27: 3158.010811 | AD27: 2776.041098 | AE27: 2706.944764 | AF27: 2961.145518 | AG27: 3240.123724 | AH27: 3693.081452 | AI27: 4092.278577 | AJ27: 3083.292775 | AK27: 2631.640918 | AL27: 2306.047369 | AM27: 3057.473987 | AN27: 3369.744349 | AO27: 3582.358873 | AP27: 3492.363416 | AQ27: 3564.906438 | AR27: 3943.238321 | AS27: 3914.368848 | AT27: 3787.855286 | AU27: 3542.129734 | AV27: 2455.797135 | AW27: 2038.784512 | AX27: 1334.137661 | AY27: 2054.113984 | AZ27: 2717.418493 | BA27: 3436.636999 | BB27: 3821.075859 | BC27: 4168.415937 | BD27: 4528.460839 | BE27: 3979.759183 | BF27: 3253.164316 | BG27: 2495.423342 | BH27: 1482.460509 | BI27: 1130.814683 | BJ27: 531.5317255 | BK27: 786.4689646 | BL27: 1105.900908 | BM27: 1463.261154 | BN27: 1726.488746 | BO27: 1852.866161 | BP27: 1801.439498 | BQ27: 1580.619789 | BR27: 1248.666044 | BS27: 894.2809675 | BT27: 588.8683005 | BU27: 461.6673413 | BV27: D2
A28: Lugo | B28: 6 | C28: 6.9 | D28: 9.4 | E28: 11 | F28: 13.1 | G28: 16.3 | H28: 18.1 | I28: 16.8 | J28: 16.6 | K28: 13.2 | L28: 8.8 | M28: 6.2 | N28: 1074.444444 | O28: 2010.555556 | P28: 2386.111111 | Q28: 3768.333333 | R28: 3843.333333 | S28: 4648.333333 | T28: 4731.666667 | U28: 4233.888889 | V28: 3139.444444 | W28: 2540.555556 | X28: 1483.888889 | Y28: 876.6666667 | Z28: 1594.851508 | AA28: 2510.64091 | AB28: 2011.169312 | AC28: 2355.409584 | AD28: 1980.762169 | AE28: 2162.120926 | AF28: 2253.163378 | AG28: 2389.583164 | AH28: 2392.330041 | AI28: 2957.369202 | AJ28: 2272.792782 | AK28: 1361.344165 | AL28: 1285.410793 | AM28: 2133.125257 | AN28: 1934.575884 | AO28: 2598.281632 | AP28: 2297.704966 | AQ28: 2610.095115 | AR28: 2725.968067 | AS28: 2750.186814 | AT28: 2433.589148 | AU28: 2584.715354 | AV28: 1830.595199 | AW28: 1085.851787 | AX28: 810.0562882 | AY28: 1494.311419 | AZ28: 1637.409734 | BA28: 2502.873397 | BB28: 2440.052163 | BC28: 2924.125643 | BD28: 3005.109415 | BE28: 2776.493746 | BF28: 2148.21796 | BG28: 1881.293423 | BH28: 1144.832422 | BI28: 663.1555366 | BJ28: 424.9020671 | BK28: 701.9446326 | BL28: 921.0470196 | BM28: 1334.111517 | BN28: 1492.687422 | BO28: 1690.096489 | BP28: 1664.399761 | BQ28: 1459.135335 | BR28: 1113.125671 | BS28: 825.8157476 | BT28: 526.7937575 | BU28: 357.7724272 | BV28: D1
A29: Madrid | B29: 4.9 | C29: 6.5 | D29: 10 | E29: 13 | F29: 15.7 | G29: 20.6 | H29: 24.2 | I29: 23.6 | J29: 19.8 | K29: 14 | L29: 8.9 | M29: 5.6 | N29: 1767.222222 | O29: 2713.333333 | P29: 3930.555556 | Q29: 5431.111111 | R29: 5884.444444 | S29: 7091.666667 | T29: 7187.222222 | U29: 6385 | V29: 4477.222222 | W29: 2989.444444 | X29: 2035 | Y29: 1732.222222 | Z29: 2858.097549 | AA29: 3419.249498 | AB29: 3495.956778 | AC29: 3234.106365 | AD29: 2658.081341 | AE29: 2709.378754 | AF29: 2861.651718 | AG29: 3295.089539 | AH29: 3398.715011 | AI29: 3346.606373 | AJ29: 3125.167393 | AK29: 3185.056249 | AL29: 2269.203951 | AM29: 2903.785647 | AN29: 3376.737515 | AO29: 3745.002267 | AP29: 3403.216701 | AQ29: 3743.203253 | AR29: 3932.581919 | AS29: 4097.495289 | AT29: 3528.489326 | AU29: 2950.406072 | AV29: 2513.721035 | AW29: 2471.875639 | AX29: 1366.957652 | AY29: 2016.101329 | AZ29: 2771.174065 | BA29: 3640.402115 | BB29: 3767.155631 | BC29: 4479.858647 | BD29: 4589.587694 | BE29: 4231.185688 | BF29: 3094.785628 | BG29: 2175.408506 | BH29: 1564.186218 | BI29: 1385.176291 | BJ29: 576.7124943 | BK29: 826.6736912 | BL29: 1148.039384 | BM29: 1498.434476 | BN29: 1729.460267 | BO29: 1856.025084 | BP29: 1798.950312 | BQ29: 1597.074771 | BR29: 1274.434119 | BS29: 913.5736782 | BT29: 640.6125177 | BU29: 534.01485 | BV29: D3
A30: Malaga | B30: 12.5 | C30: 12.9 | D30: 15 | E30: 16.3 | F30: 19.3 | G30: 22.8 | H30: 25.2 | I30: 25.6 | J30: 23.5 | K30: 19.7 | L30: 15.8 | M30: 13.3 | N30: 2278.888889 | O30: 3210 | P30: 4918.888889 | Q30: 5245 | R30: 6338.333333 | S30: 6908.333333 | T30: 7198.888889 | U30: 6198.888889 | V30: 5151.666667 | W30: 3616.666667 | X30: 2815 | Y30: 1732.222222 | Z30: 3428.70571 | AA30: 3750.631272 | AB30: 4153.054237 | AC30: 2883.590428 | AD30: 2582.871438 | AE30: 2441.262 | AF30: 2604.400188 | AG30: 2943.871458 | AH30: 3633.385655 | AI30: 3812.169704 | AJ30: 4177.080792 | AK30: 2597.760708 | AL30: 2747.786639 | AM30: 3231.78777 | AN30: 4097.243133 | AO30: 3420.628364 | AP30: 3500.732344 | AQ30: 3504.418065 | AR30: 3761.323241 | AS30: 3774.33069 | AT30: 3884.051538 | AU30: 3408.949272 | AV30: 3373.829083 | AW30: 2074.025785 | AX30: 1706.312716 | AY30: 2310.473102 | AZ30: 3412.875269 | BA30: 3416.722359 | BB30: 3993.495107 | BC30: 4283.898062 | BD30: 4507.93445 | BE30: 4000.091028 | BF30: 3486.825711 | BG30: 2567.335224 | BH30: 2121.482042 | BI30: 1281.70327 | BJ30: 693.6134914 | BK30: 930.8162573 | BL30: 1242.806571 | BM30: 1522.944833 | BN30: 1751.078096 | BO30: 1842.989694 | BP30: 1794.766455 | BQ30: 1623.099205 | BR30: 1347.97858 | BS30: 1020.920694 | BT30: 769.4383941 | BU30: 591.626906 | BV30: A3
A31: Murcia | B31: 10.7 | C31: 11.6 | D31: 14.2 | E31: 16 | F31: 19.5 | G31: 23.4 | H31: 26 | I31: 26.3 | J31: 23.5 | K31: 18.9 | L31: 14.4 | M31: 11.6 | N31: 2651.666667 | O31: 3327.222222 | P31: 4777.777778 | Q31: 5931.111111 | R31: 7024.444444 | S31: 7152.222222 | T31: 7478.333333 | U31: 6570.555556 | V31: 5291.666667 | W31: 3861.111111 | X31: 2686.111111 | Y31: 2151.666667 | Z31: 4543.129304 | AA31: 4127.992686 | AB31: 4157.438097 | AC31: 3332.959485 | AD31: 2844.711598 | AE31: 2563.695213 | AF31: 2749.152795 | AG31: 3184.694505 | AH31: 3870.683177 | AI31: 4338.336105 | AJ31: 4145.51598 | AK31: 3813.846931 | AL31: 3570.867713 | AM31: 3518.88206 | AN31: 4066.284672 | AO31: 3974.057072 | AP31: 3916.350952 | AQ31: 3665.883024 | AR31: 3955.173482 | AS31: 4076.989145 | AT31: 4102.596631 | AU31: 3834.175753 | AV31: 3329.007415 | AW31: 2969.334144 | AX31: 2083.258437 | AY31: 2450.005561 | AZ31: 3350.460928 | BA31: 3929.222111 | BB31: 4474.202326 | BC31: 4465.442168 | BD31: 4720.033455 | BE31: 4289.028912 | BF31: 3632.025727 | BG31: 2808.332026 | BH31: 2058.139295 | BI31: 1688.82374 | BJ31: 688.8038244 | BK31: 912.0383788 | BL31: 1218.172609 | BM31: 1531.415235 | BN31: 1753.552909 | BO31: 1848.326631 | BP31: 1789.034381 | BQ31: 1612.290253 | BR31: 1328.874177 | BS31: 1004.280595 | BT31: 735.6932919 | BU31: 614.0029552 | BV31: B3
A32: Ourense | B32: 6.6 | C32: 7.2 | D32: 10.7 | E32: 12.6 | F32: 16.12 | G32: 19.1 | H32: 21.8 | I32: 21.2 | J32: 18.7 | K32: 13.9 | L32: 9.5 | M32: 7.3 | N32: 784.4444444 | O32: 1886.111111 | P32: 3908.888889 | Q32: 3359.444444 | R32: 2463.333333 | S32: 5328.888889 | T32: 4489.444444 | U32: 5048.888889 | V32: 3485 | W32: 1988.333333 | X32: 1472.222222 | Y32: 677.7777778 | Z32: 952.8362777 | AA32: 2220.025465 | AB32: 3665.148325 | AC32: 2064.761208 | AD32: 1341.789044 | AE32: 2351.892762 | AF32: 2137.786915 | AG32: 2776.388545 | AH32: 2655.831926 | AI32: 2056.992148 | AJ32: 2149.465417 | AK32: 875.7055242 | AL32: 795.5393507 | AM32: 1905.504718 | AN32: 3500.336377 | AO32: 2265.427612 | AP32: 1468.751581 | AQ32: 2943.114407 | AR32: 2573.367458 | AS32: 3283.142216 | AT32: 2716.022151 | AU32: 1833.473977 | AV32: 1744.009414 | AW32: 720.6580926 | AX32: 554.1309108 | AY32: 1370.643338 | AZ32: 2816.403194 | BA32: 2198.917185 | BB32: 1527.320402 | BC32: 3359.375816 | BD32: 2833.53149 | BE32: 3335.26458 | BF32: 2392.152855 | BG32: 1407.341006 | BH32: 1115.046969 | BI32: 483.3051773 | BJ32: 353.8285315 | BK32: 691.7646678 | BL32: 1116.227608 | BM32: 1273.617892 | BN32: 1158.090467 | BO32: 1771.775548 | BP32: 1630.306091 | BQ32: 1543.861934 | BR32: 1167.66969 | BS32: 752.3057309 | BT32: 534.9404384 | BU32: 307.517431 | BV32: C2
A33: Oviedo | B33: 9.3 | C33: 9.4 | D33: 11.3 | E33: 12.3 | F33: 14.1 | G33: 17 | H33: 19.6 | I33: 19.5 | J33: 18.1 | K33: 15.1 | L33: 12 | M33: 10.1 | N33: 1488.888889 | O33: 2093.333333 | P33: 2896.111111 | Q33: 3581.111111 | R33: 4244.444444 | S33: 4617.222222 | T33: 4501.111111 | U33: 3943.333333 | V33: 3361.111111 | W33: 2233.333333 | X33: 1558.333333 | Y33: 1186.666667 | Z33: 2628.768215 | AA33: 2679.736224 | AB33: 2580.6723 | AC33: 2241.905018 | AD33: 2158.309631 | AE33: 2157.687598 | AF33: 2174.298424 | AG33: 2240.974347 | AH33: 2604.601226 | AI33: 2496.514369 | AJ33: 2469.653928 | AK33: 2184.796959 | AL33: 2063.83158 | AM33: 2267.507494 | AN33: 2467.868092 | AO33: 2461.309336 | AP33: 2541.081047 | AQ33: 2597.872422 | AR33: 2602.284535 | AS33: 2555.233606 | AT33: 2649.005634 | AU33: 2195.415604 | AV33: 1978.908677 | AW33: 1699.345704 | AX33: 1195.779026 | AY33: 1570.754327 | AZ33: 2036.626519 | BA33: 2371.752543 | BB33: 2711.862574 | BC33: 2906.147622 | BD33: 2854.267324 | BE33: 2575.840489 | BF33: 2320.782352 | BG33: 1628.362703 | BH33: 1217.896913 | BI33: 954.0766423 | BJ33: 496.4612149 | BK33: 711.2471664 | BL33: 1004.519802 | BM33: 1304.920185 | BN33: 1560.102282 | BO33: 1686.01738 | BP33: 1632.903835 | BQ33: 1418.623963 | BR33: 1141.670698 | BS33: 782.3610709 | BT33: 535.8418965 | BU33: 418.8721047 | BV33: C1
A34: Palencia | B34: 3.3 | C34: 4.6 | D34: 8.2 | E34: 10.5 | F34: 13.5 | G34: 18.1 | H34: 21 | I34: 20.8 | J34: 17.6 | K34: 12.2 | L34: 7.2 | M34: 3.9 | N34: 1202.222222 | O34: 2811.111111 | P34: 3346.666667 | Q34: 4313.888889 | R34: 5587.222222 | S34: 6241.666667 | T34: 6722.222222 | U34: 6073.888889 | V34: 4235.555556 | W34: 3117.222222 | X34: 1764.444444 | Y34: 1020 | Z34: 1768.17004 | AA34: 3834.66975 | AB34: 2988.671603 | AC34: 2651.358824 | AD34: 2637.484629 | AE34: 2599.55839 | AF34: 2847.319873 | AG34: 3271.062393 | AH34: 3315.572562 | AI34: 3751.136906 | AJ34: 2758.225765 | AK34: 1593.119453 | AL34: 1426.447625 | AM34: 3214.297853 | AN34: 2868.976392 | AO34: 2973.877895 | AP34: 3293.888476 | AQ34: 3394.641176 | AR34: 3767.365447 | AS34: 3979.14927 | AT34: 3405.909365 | AU34: 3265.528623 | AV34: 2213.743123 | AW34: 1268.522546 | AX34: 902.1573173 | AY34: 2157.358224 | AZ34: 2358.783282 | BA34: 2873.792192 | BB34: 3599.535417 | BC34: 3955.393425 | BD34: 4319.199938 | BE34: 4059.369108 | BF34: 2958.21994 | BG34: 2336.247973 | BH34: 1369.006154 | BI34: 772.003463 | BJ34: 463.4228652 | BK34: 804.5608003 | BL34: 1076.026482 | BM34: 1409.00631 | BN34: 1709.164333 | BO34: 1839.578363 | BP34: 1801.254799 | BQ34: 1585.444875 | BR34: 1239.181999 | BS34: 895.1455457 | BT34: 583.3806865 | BU34: 401.0025696 | BV34: D1
A35: Palma Mallorca | B35: 10.5 | C35: 10.5 | D35: 12.2 | E35: 14.5 | F35: 17.4 | G35: 21.4 | H35: 24.1 | I35: 24.5 | J35: 22.6 | K35: 18.4 | L35: 14.3 | M35: 11.6 | N35: 2323.333333 | O35: 3533.333333 | P35: 4017.222222 | Q35: 4949.444444 | R35: 6367.222222 | S35: 6917.222222 | T35: 7120.555556 | U35: 6173.333333 | V35: 4890.555556 | W35: 3588.333333 | X35: 2488.888889 | Y35: 1797.777778 | Z35: 4073.322495 | AA35: 4768.947159 | AB35: 3510.708722 | AC35: 2898.317514 | AD35: 2764.769134 | AE35: 2619.774515 | AF35: 2787.4674 | AG35: 3137.929368 | AH35: 3685.126789 | AI35: 4154.940166 | AJ35: 4008.645889 | AK35: 3203.296107 | AL35: 3194.043257 | AM35: 4008.326048 | AN35: 3406.925804 | AO35: 3343.159015 | AP35: 3637.121917 | AQ35: 3625.952268 | AR35: 3858.897567 | AS35: 3909.041852 | AT35: 3854.238834 | AU35: 3647.802391 | AV35: 3199.975694 | AW35: 2495.413568 | AX35: 1847.654211 | AY35: 2690.473597 | AZ35: 2813.469262 | BA35: 3274.054879 | BB35: 4073.09783 | BC35: 4347.131843 | BD35: 4523.849383 | BE35: 4057.28004 | BF35: 3382.447234 | BG35: 2643.231049 | BH35: 1943.330249 | BI35: 1418.729627 | BJ35: 640.4694835 | BK35: 881.4675761 | BL35: 1166.181063 | BM35: 1482.31371 | BN35: 1748.839487 | BO35: 1852.883342 | BP35: 1799.571416 | BQ35: 1604.374532 | BR35: 1300.866393 | BS35: 964.5905087 | BT35: 692.3831499 | BU35: 554.9424296 | BV35: B3
A36: Palma G.Canaria | B36: 18.3 | C36: 19.6 | D36: 19.1 | E36: 19.6 | F36: 20.3 | G36: 21.4 | H36: 23.8 | I36: 23.6 | J36: 25.9 | K36: 23.3 | L36: 22.1 | M36: 19.9 | N36: 2712.777778 | O36: 3250 | P36: 4133.333333 | Q36: 4889.444444 | R36: 4956.666667 | S36: 4425.555556 | T36: 4266.111111 | U36: 4163.888889 | V36: 4617.777778 | W36: 3377.777778 | X36: 2680.555556 | Y36: 2047.222222 | Z36: 3107.946534 | AA36: 2937.810981 | AB36: 2762.163754 | AC36: 2273.387689 | AD36: 1875.822852 | AE36: 1678.226096 | AF36: 1675.38082 | AG36: 1844.737267 | AH36: 2661.991967 | AI36: 2762.353135 | AJ36: 2835.558122 | AK36: 2303.326097 | AL36: 2609.663516 | AM36: 2675.964684 | AN36: 2890.642428 | AO36: 2875.485928 | AP36: 2572.781534 | AQ36: 2223.457658 | AR36: 2198.1503 | AS36: 2338.700512 | AT36: 3023.398453 | AU36: 2618.848947 | AV36: 2436.115888 | AW36: 1932.11577 | AX36: 1842.98868 | AY36: 2144.900214 | AZ36: 2652.699238 | BA36: 3044.408517 | BB36: 3012.501923 | BC36: 2661.55601 | BD36: 2575.729107 | BE36: 2556.565062 | BF36: 2934.004248 | BG36: 2203.774403 | BH36: 1798.463876 | BI36: 1375.508372 | BJ36: 881.7856445 | BK36: 1067.834697 | BL36: 1318.088628 | BM36: 1544.941453 | BN36: 1646.714126 | BO36: 1608.139993 | BP36: 1566.918354 | BQ36: 1489.053212 | BR36: 1416.322501 | BS36: 1124.262651 | BT36: 904.4978501 | BU36: 753.2471403 | BV36: Alfa
A37: Pamplona | B37: 4.6 | C37: 5.4 | D37: 9 | E37: 11.1 | F37: 14.4 | G37: 17.8 | H37: 20.2 | I37: 19.7 | J37: 18.3 | K37: 13.4 | L37: 8.2 | M37: 5.5 | N37: 1169.444444 | O37: 2040.555556 | P37: 3057.777778 | Q37: 3143.888889 | R37: 4492.222222 | S37: 5547.222222 | T37: 5907.222222 | U37: 4930 | V37: 3727.777778 | W37: 2763.333333 | X37: 1285 | Y37: 892.7777778 | Z37: 1775.663441 | AA37: 2528.984852 | AB37: 2725.367858 | AC37: 1943.688157 | AD37: 2244.525478 | AE37: 2439.002445 | AF37: 2644.197589 | AG37: 2741.510595 | AH37: 2907.971855 | AI37: 3277.575148 | AJ37: 1806.085358 | AK37: 1369.660737 | AL37: 1425.66114 | AM37: 2151.598835 | AN37: 2610.161155 | AO37: 2117.608239 | AP37: 2675.861605 | AQ37: 3068.93306 | AR37: 3361.927897 | AS37: 3221.444779 | AT37: 2968.963241 | AU37: 2857.259152 | AV37: 1474.848252 | AW37: 1094.357973 | AX37: 888.2070674 | AY37: 1511.758826 | AZ37: 2151.527769 | BA37: 2053.642183 | BB37: 2871.698773 | BC37: 3511.255891 | BD37: 3787.637205 | BE37: 3262.27589 | BF37: 2589.144712 | BG37: 2060.7685 | BH37: 961.112266 | BI37: 672.3458419 | BJ37: 448.5697386 | BK37: 710.8044684 | BL37: 1032.404695 | BM37: 1230.945931 | BN37: 1596.538949 | BO37: 1793.738798 | BP37: 1773.735108 | BQ37: 1531.968153 | BR37: 1188.796924 | BS37: 854.1142713 | BT37: 493.8068344 | BU37: 364.4026283 | BV37: D1
A38: Pontevedra | B38: 9.2 | C38: 10.1 | D38: 12.3 | E38: 14.2 | F38: 15.6 | G38: 18.1 | H38: 20.2 | I38: 20.5 | J38: 18.2 | K38: 14.9 | L38: 11.9 | M38: 9.9 | N38: 1482.777778 | O38: 2461.666667 | P38: 3347.222222 | Q38: 4983.888889 | R38: 4717.777778 | S38: 6395 | T38: 6410 | U38: 5672.222222 | V38: 4021.111111 | W38: 3117.222222 | X38: 1941.666667 | Y38: 1366.111111 | Z38: 2468.240588 | AA38: 3235.420031 | AB38: 3020.468935 | AC38: 3097.044453 | AD38: 2320.913799 | AE38: 2661.444524 | AF38: 2778.900379 | AG38: 3097.682051 | AH38: 3148.306571 | AI38: 3804.977837 | AJ38: 3237.111694 | AK38: 2534.901434 | AL38: 1953.356429 | AM38: 2727.178128 | AN38: 2893.304622 | AO38: 3509.732192 | AP38: 2798.081384 | AQ38: 3485.243679 | AR38: 3617.449131 | AS38: 3719.862919 | AT38: 3224.70151 | AU38: 3304.208027 | AV38: 2573.632542 | AW38: 1968.038962 | AX38: 1163.078015 | AY38: 1863.321822 | AZ38: 2369.377317 | BA38: 3370.489293 | BB38: 3017.625996 | BC38: 4064.98755 | BD38: 4117.716094 | BE38: 3782.034926 | BF38: 2803.853254 | BG38: 2350.478727 | BH38: 1544.446941 | BI38: 1100.07179 | BJ38: 508.9156999 | BK38: 769.3988512 | BL38: 1071.021458 | BM38: 1459.459807 | BN38: 1626.150182 | BO38: 1847.258042 | BP38: 1795.329615 | BQ38: 1575.388503 | BR38: 1219.458064 | BS38: 888.0108331 | BT38: 597.3957736 | BU38: 458.8235573 | BV38: C1
A39: Salamanca | B39: 3.7 | C39: 4.9 | D39: 8.1 | E39: 10.5 | F39: 13.7 | G39: 18.4 | H39: 21.5 | I39: 21.2 | J39: 18.1 | K39: 11.9 | L39: 7.4 | M39: 4.2 | N39: 1617.222222 | O39: 2488.888889 | P39: 3454.444444 | Q39: 4861.666667 | R39: 5791.111111 | S39: 6315.555556 | T39: 6407.777778 | U39: 5791.666667 | V39: 4315 | W39: 2965.555556 | X39: 1698.333333 | Y39: 1348.888889 | Z39: 2448.919254 | AA39: 2981.329135 | AB39: 2943.63284 | AC39: 2869.268682 | AD39: 2602.364557 | AE39: 2507.885203 | AF39: 2634.286392 | AG39: 2992.849865 | AH39: 3220.507484 | AI39: 3258.827269 | AJ39: 2353.139038 | AK39: 2138.789103 | AL39: 1964.082109 | AM39: 2553.64198 | AN39: 2857.340149 | AO39: 3295.422898 | AP39: 3333.465512 | AQ39: 3356.62309 | AR39: 3516.28621 | AS39: 3676.298793 | AT39: 3350.18567 | AU39: 2882.830523 | AV39: 1924.443789 | AW39: 1696.315598 | AX39: 1221.505072 | AY39: 1814.645364 | AZ39: 2390.363702 | BA39: 3220.129668 | BB39: 3695.221734 | BC39: 3963.361022 | BD39: 4060.903854 | BE39: 3800.081539 | BF39: 2959.038693 | BG39: 2142.235297 | BH39: 1258.471009 | BI39: 1022.79289 | BJ39: 562.52356 | BK39: 811.0074287 | BL39: 1114.167454 | BM39: 1473.276083 | BN39: 1724.96085 | BO39: 1837.645331 | BP39: 1794.084654 | BQ39: 1595.815727 | BR39: 1271.381147 | BS39: 918.8473056 | BT39: 602.2507983 | BU39: 488.1096121 | BV39: D2
A40: Santa Cruz | B40: 17.4 | C40: 17.5 | D40: 18.2 | E40: 19.2 | F40: 20.4 | G40: 22.4 | H40: 24.2 | I40: 24.7 | J40: 24.1 | K40: 22.7 | L40: 20.5 | M40: 18.4 | N40: 2658.888889 | O40: 3337.222222 | P40: 4421.111111 | Q40: 5493.888889 | R40: 6051.666667 | S40: 6716.111111 | T40: 6995 | U40: 6355 | V40: 5192.777778 | W40: 3682.777778 | X40: 2562.223 | Y40: 1991.666667 | Z40: 3058.737015 | AA40: 3064.568047 | AB40: 2992.529816 | AC40: 2503.490072 | AD40: 2075.99571 | AE40: 1961.080682 | AF40: 2052.117793 | AG40: 2439.267119 | AH40: 3005.369075 | AI40: 3092.554337 | AJ40: 2697.222222 | AK40: 2243.208553 | AL40: 2566.447954 | AM40: 2781.651633 | AN40: 3130.463735 | AO40: 3237.200975 | AP40: 3067.524285 | AQ40: 3119.829954 | AR40: 3325.250305 | AS40: 3486.008179 | AT40: 3441.987499 | AU40: 2917.423324 | AV40: 2319.719073 | AW40: 1881.62912 | AX40: 1809.443145 | AY40: 2212.404026 | AZ40: 2852.71311 | BA40: 3437.168945 | BB40: 3689.695407 | BC40: 4046.470562 | BD40: 4240.476486 | BE40: 3942.371492 | BF40: 3322.254226 | BG40: 2421.907559 | BH40: 1717.98984 | BI40: 1339.399691 | BJ40: 870.2693314 | BK40: 1073.270821 | BL40: 1340.433703 | BM40: 1587.391848 | BN40: 1732.52826 | BO40: 1797.605563 | BP40: 1769.19332 | BQ40: 1657.736814 | BR40: 1448.735799 | BS40: 1153.500837 | BT40: 883.5899625 | BU40: 739.3152066 | BV40: Alfa
A41: Santander | B41: 9.3 | C41: 9.2 | D41: 11.5 | E41: 12.3 | F41: 14.2 | G41: 16.9 | H41: 18.8 | I41: 19.3 | J41: 18.2 | K41: 15.3 | L41: 12.2 | M41: 9.9 | N41: 1306.666667 | O41: 2018.888889 | P41: 2680 | Q41: 3149.444444 | R41: 4205 | S41: 4372.222222 | T41: 4203.888889 | U41: 3341.111111 | V41: 3189.444444 | W41: 2495.555556 | X41: 1446.111111 | Y41: 992.7777778 | Z41: 2174.443603 | AA41: 2555.039721 | AB41: 2344.509519 | AC41: 1965.054502 | AD41: 2144.052276 | AE41: 2074.63419 | AF41: 2063.433827 | AG41: 1915.868156 | AH41: 2452.410323 | AI41: 2915.881362 | AJ41: 2222.041255 | AK41: 1676.190337 | AL41: 1721.889071 | AM41: 2165.926274 | AN41: 2245.460926 | AO41: 2136.289908 | AP41: 2519.350702 | AQ41: 2469.776615 | AR41: 2437.737757 | AS41: 2143.945108 | AT41: 2491.874875 | AU41: 2546.38425 | AV41: 1788.993912 | AW41: 1320.119346 | AX41: 1026.444715 | AY41: 1508.554394 | AZ41: 1869.074676 | BA41: 2065.287287 | BB41: 2686.334706 | BC41: 2746.400091 | BD41: 2657.861183 | BE41: 2158.194128 | BF41: 2191.720037 | BG41: 1851.175385 | BH41: 1117.468879 | BI41: 773.3438638 | BJ41: 467.5210537 | BK41: 699.4744981 | BL41: 970.9391329 | BM41: 1229.055484 | BN41: 1553.921305 | BO41: 1648.270117 | BP41: 1586.849223 | BQ41: 1315.539658 | BR41: 1117.72261 | BS41: 816.4365615 | BT41: 517.0090472 | BU41: 381.669292 | BV41: C1
A42: Segovia | B42: 22.4 | C42: 4 | D42: 7.6 | E42: 10.1 | F42: 13.2 | G42: 18.2 | H42: 21.7 | I42: 21.3 | J42: 17.5 | K42: 11.8 | L42: 6.6 | M42: 3.1 | N42: 1431.666667 | O42: 2430 | P42: 3078.333333 | Q42: 4062.777778 | R42: 4760.555556 | S42: 5716.111111 | T42: 6665.555556 | U42: 6018.333333 | V42: 4302.222222 | W42: 2947.777778 | X42: 1521.666667 | Y42: 1156.666667 | Z42: 2158.491378 | AA42: 2996.066302 | AB42: 2618.404682 | AC42: 2446.141423 | AD42: 2283.321288 | AE42: 2404.862814 | AF42: 2763.147922 | AG42: 3165.691533 | AH42: 3287.939583 | AI42: 3344.967843 | AJ42: 2104.709349 | AK42: 1802.224953 | AL42: 1733.310543 | AM42: 2552.894563 | AN42: 2532.852972 | AO42: 2745.015603 | AP42: 2783.792081 | AQ42: 3098.390382 | AR42: 3690.024134 | AS42: 3880.129569 | AT42: 3399.765142 | AU42: 2941.119619 | AV42: 1722.334816 | AW42: 1434.445404 | AX42: 1081.617569 | AY42: 1792.513004 | AZ42: 2125.45935 | BA42: 2673.855842 | BB42: 3024.524726 | BC42: 3590.807027 | BD42: 4254.441314 | BE42: 3986.978285 | BF42: 2977.372777 | BG42: 2157.125182 | BH42: 1128.748722 | BI42: 873.3622551 | BJ42: 519.32548 | BK42: 789.0922593 | BL42: 1056.878795 | BM42: 1387.719099 | BN42: 1632.58637 | BO42: 1803.359106 | BP42: 1800.306747 | BQ42: 1593.357198 | BR42: 1257.665102 | BS42: 901.2824595 | BT42: 559.873238 | BU42: 440.6279363 | BV42: D2
A43: Sevilla | B43: 10.5 | C43: 12.3 | D43: 14.6 | E43: 17.2 | F43: 19.9 | G43: 24.8 | H43: 27.9 | I43: 27.8 | J43: 24.8 | K43: 19.8 | L43: 15 | M43: 11.4 | N43: 1988.888889 | O43: 3105 | P43: 4290.555556 | Q43: 5477.777778 | R43: 6222.222222 | S43: 6525 | T43: 6606.111111 | U43: 6013.333333 | V43: 4873.333333 | W43: 3350 | X43: 2313.888889 | Y43: 1884.444444 | Z43: 2916.770894 | AA43: 3677.80665 | AB43: 3589.954064 | AC43: 3050.463291 | AD43: 2593.721622 | AE43: 2415.096288 | AF43: 2532.927025 | AG43: 2920.261178 | AH43: 3476.781193 | AI43: 3526.952827 | AJ43: 3265.704781 | AK43: 3046.558402 | AL43: 2348.414386 | AM43: 3160.311908 | AN43: 3528.634082 | AO43: 3618.056327 | AP43: 3469.144572 | AQ43: 3362.300067 | AR43: 3512.924514 | AS43: 3694.635893 | AT43: 3689.81447 | AU43: 3151.157943 | AV43: 2660.23146 | AW43: 2404.093453 | AX43: 1478.965832 | AY43: 2247.521912 | AZ43: 2958.914909 | BA43: 3594.766117 | BB43: 3931.33153 | BC43: 4052.658159 | BD43: 4139.341679 | BE43: 3890.798013 | BF43: 3303.343652 | BG43: 2378.047991 | BH43: 1717.159281 | BI43: 1430.963851 | BJ43: 650.4691729 | BK43: 910.5973687 | BL43: 1214.513992 | BM43: 1527.666239 | BN43: 1747.120497 | BO43: 1837.681672 | BP43: 1795.845066 | BQ43: 1616.530179 | BR43: 1331.540315 | BS43: 991.745768 | BT43: 719.5218033 | BU43: 600.4893824 | BV43: B4
A44: Soria | B44: 2.3 | C44: 3.5 | D44: 6.6 | E44: 8.9 | F44: 11.9 | G44: 16.5 | H44: 19.6 | I44: 19.5 | J44: 16.4 | K44: 10.9 | L44: 6.2 | M44: 3.1 | N44: 1460.555556 | O44: 2196.111111 | P44: 2936.111111 | Q44: 3848.888889 | R44: 4944.444444 | S44: 5820 | T44: 6492.777778 | U44: 5515.555556 | V44: 3904.444444 | W44: 2516.666667 | X44: 1439.444444 | Y44: 1185.555556 | Z44: 2323.147815 | AA44: 2684.816177 | AB44: 2518.746465 | AC44: 2348.957018 | AD44: 2383.674537 | AE44: 2470.038692 | AF44: 2763.750585 | AG44: 2976.785089 | AH44: 2993.304106 | AI44: 2776.871319 | AJ44: 2018.841498 | AK44: 1963.353125 | AL44: 1850.575751 | AM44: 2290.19612 | AN44: 2428.435487 | AO44: 2612.890408 | AP44: 2911.725704 | AQ44: 3174.566037 | AR44: 3633.755321 | AS44: 3578.089381 | AT44: 3075.772726 | AU44: 2450.407246 | AV44: 1648.613252 | AW44: 1548.798839 | AX44: 1125.729173 | AY44: 1616.66974 | AZ44: 2033.064801 | BA44: 2536.130243 | BB44: 3159.751463 | BC44: 3672.285428 | BD44: 4157.647836 | BE44: 3652.043126 | BF44: 2696.441247 | BG44: 1823.4011 | BH44: 1074.144758 | BI44: 915.1314523 | BJ44: 514.2809416 | BK44: 747.7420938 | BL44: 1028.141673 | BM44: 1354.363736 | BN44: 1652.922494 | BO44: 1813.254164 | BP44: 1797.347276 | BQ44: 1574.250524 | BR44: 1218.006994 | BS44: 842.8676779 | BT44: 535.6642523 | BU44: 437.6939572 | BV44: E1
A45: Tarragona | B45: 9.4 | C45: 10.1 | D45: 11.7 | E45: 13.7 | F45: 16.6 | G45: 20.6 | H45: 23.1 | I45: 22.8 | J45: 21.4 | K45: 17.5 | L45: 13 | M45: 10.3 | N45: 2058.611111 | O45: 3206.944444 | P45: 3657.777778 | Q45: 4600.555556 | R45: 5124.444444 | S45: 5708.611111 | T45: 5897.777778 | U45: 5047.777778 | V45: 3861.388889 | W45: 3101.666667 | X45: 2040.833333 | Y45: 1655.833333 | Z45: 3690.190767 | AA45: 4415.373218 | AB45: 3248.129604 | AC45: 2773.687167 | AD45: 2420.095142 | AE45: 2405.06344 | AF45: 2548.170318 | AG45: 2705.272619 | AH45: 2903.925124 | AI45: 3589.166935 | AJ45: 3231.243678 | AK45: 3086.861316 | AL45: 2887.017788 | AM45: 3697.48493 | AN45: 3130.716716 | AO45: 3147.628769 | AP45: 2993.048277 | AQ45: 3096.185101 | AR45: 3291.944081 | AS45: 3227.694492 | AT45: 2995.595323 | AU45: 3146.242764 | AV45: 2587.401731 | AW45: 2392.250306 | AX45: 1655.909018 | AY45: 2466.168679 | AZ45: 2574.764411 | BA45: 3057.399599 | BB45: 3268.244732 | BC45: 3586.733638 | BD45: 3744.545663 | BE45: 3304.976718 | BF45: 2645.222377 | BG45: 2286.984868 | BH45: 1587.953511 | BI45: 1332.430112 | BJ45: 595.181954 | BK45: 843.599983 | BL45: 1119.4348 | BM45: 1444.264567 | BN45: 1672.174143 | BO45: 1802.893698 | BP45: 1772.249275 | BQ45: 1551.315007 | BR45: 1222.716246 | BS45: 912.6666326 | BT45: 631.4387983 | BU45: 516.2322642 | BV45: B3
A46: Teruel | B46: 1.6 | C46: 3.5 | D46: 6.7 | E46: 9.1 | F46: 12.9 | G46: 17.2 | H46: 19.2 | I46: 18.9 | J46: 16.7 | K46: 11.1 | L46: 6.6 | M46: 3.3 | N46: 1698.888889 | O46: 2677.222222 | P46: 3185 | Q46: 4002.222222 | R46: 5201.666667 | S46: 5678.888889 | T46: 6377.222222 | U46: 5632.222222 | V46: 3997.222222 | W46: 2925.555556 | X46: 1673.888889 | Y46: 1164.444444 | Z46: 2685.716335 | AA46: 3345.626176 | AB46: 2689.371092 | AC46: 2383.653014 | AD46: 2419.354499 | AE46: 2367.41235 | AF46: 2648.231596 | AG46: 2944.274596 | AH46: 2976.16223 | AI46: 3241.6694 | AJ46: 2346.499327 | AK46: 1756.13278 | AL46: 2139.759711 | AM46: 2845.217669 | AN46: 2608.57457 | AO46: 2679.870766 | AP46: 3016.480316 | AQ46: 3061.748494 | AR46: 3515.885872 | AS46: 3589.104604 | AT46: 3083.72216 | AU46: 2862.718911 | AV46: 1915.464917 | AW46: 1404.574815 | AX46: 1303.348453 | AY46: 1982.951937 | AZ46: 2193.718101 | BA46: 2620.730149 | BB46: 3308.813609 | BC46: 3556.783014 | BD46: 4048.801271 | BE46: 3698.229405 | BF46: 2730.882595 | BG46: 2120.560774 | BH46: 1246.056741 | BI46: 868.9926255 | BJ46: 569.0476263 | BK46: 824.8086991 | BL46: 1077.924893 | BM46: 1383.827444 | BN46: 1680.153928 | BO46: 1798.757971 | BP46: 1793.453287 | BQ46: 1588.099587 | BR46: 1242.720459 | BS46: 909.0863196 | BT46: 593.4421371 | BU46: 448.4852263 | BV46: D2
A47: Toledo | B47: 5.9 | C47: 7.4 | D47: 10.6 | E47: 13.4 | F47: 16.9 | G47: 22.1 | H47: 26.1 | I47: 25.3 | J47: 21.2 | K47: 15.2 | L47: 9.9 | M47: 6.4 | N47: 1772.777778 | O47: 2955.555556 | P47: 3428.333333 | Q47: 4773.333333 | R47: 5470.555556 | S47: 6119.444444 | T47: 6895 | U47: 6185 | V47: 4484.444444 | W47: 3071.666667 | X47: 1776.666667 | Y47: 1267.222222 | Z47: 2788.684686 | AA47: 3766.676837 | AB47: 2910.115848 | AC47: 2813.08111 | AD47: 2491.233029 | AE47: 2456.837703 | AF47: 2752.892184 | AG47: 3163.724165 | AH47: 3359.38888 | AI47: 3406.312364 | AJ47: 2501.621078 | AK47: 1939.902052 | AL47: 2222.936894 | AM47: 3193.866483 | AN47: 2826.496654 | AO47: 3226.57843 | AP47: 3152.13078 | AQ47: 3260.070354 | AR47: 3759.20677 | AS47: 3932.324795 | AT47: 3499.641038 | AU47: 3009.299261 | AV47: 2040.260936 | AW47: 1547.219156 | AX47: 1356.484794 | AY47: 2203.507251 | AZ47: 2368.486795 | BA47: 3155.548791 | BB47: 3479.897884 | BC47: 3834.617628 | BD47: 4381.304213 | BE47: 4073.488985 | BF47: 3084.11308 | BG47: 2226.315045 | BH47: 1323.49505 | BI47: 949.5934463 | BJ47: 585.7717777 | BK47: 855.2318796 | BL47: 1112.39159 | BM47: 1467.344351 | BN47: 1703.453885 | BO47: 1827.589963 | BP47: 1801.30779 | BQ47: 1602.373814 | BR47: 1282.230778 | BS47: 929.5340209 | BT47: 615.5862308 | BU47: 474.0235432 | BV47: C4
A48: Valencia | B48: 10.3 | C48: 11 | D48: 13.1 | E48: 14.8 | F48: 17.8 | G48: 21.9 | H48: 23.9 | I48: 24.5 | J48: 22.4 | K48: 18.3 | L48: 14.4 | M48: 11.1 | N48: 2593.888889 | O48: 3000.555556 | P48: 3848.888889 | Q48: 5128.888889 | R48: 6023.888889 | S48: 6070.555556 | T48: 6407.777778 | U48: 6675.555556 | V48: 4453.333333 | W48: 3117.222222 | X48: 2093.333333 | Y48: 1837.222222 | Z48: 4748.673089 | AA48: 3784.535662 | AB48: 3318.682045 | AC48: 2992.847822 | AD48: 2650.422041 | AE48: 2424.361898 | AF48: 2605.440441 | AG48: 3345.037144 | AH48: 3299.181408 | AI48: 3425.682868 | AJ48: 3106.136174 | AK48: 3281.951434 | AL48: 3700.725217 | AM48: 3215.001663 | AN48: 3225.294155 | AO48: 3468.56115 | AP48: 3443.074102 | AQ48: 3222.914503 | AR48: 3496.504241 | AS48: 4232.157301 | AT48: 3445.242875 | AU48: 3032.151393 | AV48: 2511.203834 | AW48: 2555.464124 | AX48: 2096.192437 | AY48: 2227.229836 | AZ48: 2679.737884 | BA48: 3398.280136 | BB48: 3840.63695 | BC48: 3795.834648 | BD48: 4050.535236 | BE48: 4406.233703 | BF48: 3048.969646 | BG48: 2250.974998 | BH48: 1586.590809 | BI48: 1450.788832 | BJ48: 652.1586289 | BK48: 866.0195952 | BL48: 1156.708381 | BM48: 1494.309327 | BN48: 1737.428141 | BO48: 1823.607514 | BP48: 1793.636008 | BQ48: 1598.379042 | BR48: 1286.064117 | BS48: 940.1190808 | BT48: 662.7436171 | BU48: 561.150629 | BV48: B3
A49: Valladolid | B49: 3.3 | C49: 5.1 | D49: 8.6 | E49: 11 | F49: 14.1 | G49: 18.5 | H49: 21.3 | I49: 20.4 | J49: 17.8 | K49: 12.9 | L49: 7.7 | M49: 4.4 | N49: 1241.111111 | O49: 2876.111111 | P49: 3594.444444 | Q49: 4710.555556 | R49: 5398.888889 | S49: 6333.333333 | T49: 6925.555556 | U49: 6322.222222 | V49: 4452.777778 | W49: 3034.444444 | X49: 1685.555556 | Y49: 1006.666667 | Z49: 1833.39311 | AA49: 3926.258823 | AB49: 3251.188904 | AC49: 2888.427052 | AD49: 2558.197433 | AE49: 2613.225296 | AF49: 2891.434753 | AG49: 3377.019338 | AH49: 3498.8358 | AI49: 3589.856066 | AJ49: 2553.408805 | AK49: 1542.647194 | AL49: 1477.846025 | AM49: 3290.959608 | AN49: 3119.723018 | AO49: 3268.607223 | AP49: 3177.603478 | AQ49: 3433.009957 | AR49: 3865.501145 | AS49: 4140.217923 | AT49: 3601.184308 | AU49: 3133.685757 | AV49: 2059.239061 | AW49: 1231.926492 | AX49: 932.4525352 | AY49: 2207.223662 | AZ49: 2548.773385 | BA49: 3155.876363 | BB49: 3467.800503 | BC49: 4011.864956 | BD49: 4451.373298 | BE49: 4231.918053 | BF49: 3120.114426 | BG49: 2258.508276 | BH49: 1292.487244 | BI49: 756.8746595 | BJ49: 473.4663503 | BK49: 812.3427501 | BL49: 1102.228483 | BM49: 1446.488147 | BN49: 1695.513067 | BO49: 1843.327917 | BP49: 1801.978284 | BQ49: 1586.144415 | BR49: 1253.41471 | BS49: 893.2569155 | BT49: 575.4268211 | BU49: 399.8205262 | BV49: D2
A50: Vitoria | B50: 4.6 | C50: 5.4 | D50: 8.6 | E50: 10.4 | F50: 13 | G50: 16.6 | H50: 18.8 | I50: 19.4 | J50: 16.8 | K50: 12.7 | L50: 8.3 | M50: 5.4 | N50: 1238.333333 | O50: 2339.444444 | P50: 2555 | Q50: 3166.666667 | R50: 4253.333333 | S50: 4688.333333 | T50: 4896.666667 | U50: 4065 | V50: 3210 | W50: 2575 | X50: 1365.555556 | Y50: 893.3333333 | Z50: 1934.175014 | AA50: 3064.877224 | AB50: 2173.98405 | AC50: 1958.16326 | AD50: 2145.769844 | AE50: 2165.133891 | AF50: 2300.838974 | AG50: 2287.070087 | AH50: 2438.194681 | AI50: 2976.129478 | AJ50: 1975.361634 | AK50: 1370.954389 | AL50: 1545.98577 | AM50: 2584.352251 | AN50: 2091.076718 | AO50: 2134.534806 | AP50: 2534.453715 | AQ50: 2624.030238 | AR50: 2808.884324 | AS50: 2623.882685 | AT50: 2484.730093 | AU50: 2604.719351 | AV50: 1605.421641 | AW50: 1095.334622 | AX50: 949.8928602 | AY50: 1769.645057 | AZ50: 1761.025868 | BA50: 2069.667126 | BB50: 2710.925714 | BC50: 2946.25673 | BD50: 3110.222629 | BE50: 2652.537515 | BF50: 2194.93488 | BG50: 1900.904371 | BH50: 1031.658972 | BI50: 672.8365572 | BJ50: 462.2889736 | BK50: 749.7912374 | BL50: 955.660335 | BM50: 1235.374683 | BN50: 1561.858836 | BO50: 1695.067627 | BP50: 1684.682165 | BQ50: 1438.226334 | BR50: 1126.492834 | BS50: 834.6503971 | BT50: 509.7519626 | BU50: 364.5387563 | BV50: D1
A51: Zamora | B51: 3.8 | C51: 5.3 | D51: 8.6 | E51: 11.2 | F51: 14.2 | G51: 18.6 | H51: 21.6 | I51: 21.2 | J51: 18 | K51: 12.8 | L51: 7.5 | M51: 4.3 | N51: 1204.444444 | O51: 2915.555556 | P51: 3606.111111 | Q51: 4839.444444 | R51: 5490.555556 | S51: 6395 | T51: 6982.777778 | U51: 6155.555556 | V51: 4441.666667 | W51: 2978.888889 | X51: 1735 | Y51: 996.1111111 | Z51: 1721.97486 | AA51: 3946.540007 | AB51: 3234.670574 | AC51: 2948.456449 | AD51: 2575.973184 | AE51: 2611.048236 | AF51: 2884.509288 | AG51: 3271.023109 | AH51: 3459.36787 | AI51: 3459.186339 | AJ51: 2618.274019 | AK51: 1487.974518 | AL51: 1395.397507 | AM51: 3312.666467 | AN51: 3109.617629 | AO51: 3351.523528 | AP51: 3219.055722 | AQ51: 3451.219315 | AR51: 3879.726758 | AS51: 4004.906506 | AT51: 3567.471117 | AU51: 3029.118304 | AV51: 2112.585098 | AW51: 1192.976987 | AX51: 894.5992837 | AY51: 2229.045481 | AZ51: 2548.386141 | BA51: 3241.086772 | BB51: 3523.401263 | BC51: 4045.671605 | BD51: 4481.118501 | BE51: 4101.35325 | BF51: 3100.843833 | BG51: 2200.422283 | BH51: 1327.824685 | BI51: 742.3371353 | BJ51: 469.1526935 | BK51: 821.1800644 | BL51: 1107.977546 | BM51: 1458.734003 | BN51: 1703.058073 | BO51: 1845.090116 | BP51: 1801.707566 | BQ51: 1589.905771 | BR51: 1257.663579 | BS51: 894.786108 | BT51: 587.1126024 | BU51: 400.3072903 | BV51: D2
A52: Zaragoza | B52: 6.1 | C52: 7.6 | D52: 11.3 | E52: 13.7 | F52: 17 | G52: 21.2 | H52: 23.1 | I52: 23.7 | J52: 20.6 | K52: 15.4 | L52: 10.2 | M52: 6.7 | N52: 1800 | O52: 3143.333333 | P52: 4064.444444 | Q52: 4962.222222 | R52: 6056.666667 | S52: 6518.333333 | T52: 6815.555556 | U52: 6196.666667 | V52: 4400 | W52: 3240 | X52: 1820 | Y52: 1359.444444 | Z52: 3337.85996 | AA52: 4611.238285 | AB52: 3889.188422 | AC52: 3099.620484 | AD52: 2844.313291 | AE52: 2708.630544 | AF52: 2915.449402 | AG52: 3380.24963 | AH52: 3523.999726 | AI52: 4049.721514 | AJ52: 2985.181557 | AK52: 2558.140027 | AL52: 2601.796707 | AM52: 3823.176444 | AN52: 3703.687808 | AO52: 3505.928902 | AP52: 3593.203286 | AQ52: 3556.613931 | AR52: 3845.948138 | AS52: 4103.021228 | AT52: 3608.809963 | AU52: 3503.804216 | AV52: 2379.205798 | AW52: 1982.678808 | AX52: 1471.730113 | AY52: 2485.730293 | AZ52: 2955.227195 | BA52: 3361.48013 | BB52: 3935.042467 | BC52: 4152.569286 | BD52: 4399.139283 | BE52: 4168.834501 | BF52: 3106.466053 | BG52: 2467.241059 | BH52: 1439.307317 | BI52: 1100.95467 | BJ52: 542.9340019 | BK52: 803.7830737 | BL52: 1117.630572 | BM52: 1455.85503 | BN52: 1733.212383 | BO52: 1852.296151 | BP52: 1801.864036 | BQ52: 1580.101805 | BR52: 1238.955354 | BS52: 889.2843431 | BT52: 580.3928793 | BU52: 454.35765 | BV52: D3
A53: Zona 1 a definir
A54: Zona 2 a definir
A55: Zona 3 a definir
A56: Zona 4 a definir
A57: Zona 5 a definir
A58: Zona 6 a definir
A59: Zona 7 a definir

Sheet LIMITES (hidden)
A2: INICIAL
A3: Epoca | B3: Valor Uo Muros | C3: Valor Uo Cubiertas | D3: Valor Uo huecos | E3: Tasa ventilacion | F3: F.solar | I3: Hermeticidad | L3: Refrigeracion
A4: Antes de 1979 | B4: 1.8 | C4: 2.5 | D4: 5.7 | E4: 2 | F4: 0.75 | G4: Sin rehabilitacion | I4: Sin Modificación | L4: Si
A5: Entre 1979 y 2006 | B5: 1.4 | C5: 1.8 | D5: 4.5 | E5: 1.5 | F5: 0.75 | G5: Rehab."mínima" | I5: Hermeticidad mejorada | J5: 0.75 | L5: No
G6: Rehab. "estándard" | I6: Hermeticidad muy buena | J6: 0.5
A7: Rehabilitacion Opacos | G7: Rehab. "elevada" | I7: PT
B8: Muros | F8: Cubiertas | I8: Sin Modificación | J8: 1.3
A9: Zona | B9: Rehab."basica" | C9: Rehab. "media" | D9: Rehab. "elevada" | E9: Zona | F9: Rehab."basica" | G9: Rehab. "media" | H9: Rehab. "elevada" | I9: Puentes térmicos reducidos | J9: 1.15
A10: A | B10: 0.7 | C10: 0.5 | D10: 0.15 | E10: A | F10: 0.5 | G10: 0.44 | H10: 0.15 | I10: Puentes termicos eliminados | J10: 1.05
A11: B | B11: 0.56 | C11: 0.38 | D11: 0.15 | E11: B | F11: 0.44 | G11: 0.33 | H11: 0.15
A12: C | B12: 0.49 | C12: 0.29 | D12: 0.15 | E12: C | F12: 0.4 | G12: 0.23 | H12: 0.15
A13: D | B13: 0.41 | C13: 0.27 | D13: 0.15 | E13: D | F13: 0.35 | G13: 0.22 | H13: 0.15
A14: E | B14: 0.37 | C14: 0.23 | D14: 0.15 | E14: E | F14: 0.33 | G14: 0.19 | H14: 0.15
A15: Huecos
A16: Zona | B16: Rehab. "basica" | C16: Rehab."media" | D16: Rehab."elevada"
A17: A | B17: 2.7 | C17: 2.7 | D17: 1
A18: B | B18: 2.3 | C18: 2 | D18: 1
A19: C | B19: 2.1 | C19: 2 | D19: 1
A20: D | B20: 1.8 | C20: 1.6 | D20: 1
A21: E | B21: 1.8 | C21: 1.5 | D21: 1
A23: Factor solar
A24: Sin tratamiento | B24: 0.75
A25: Prot. Solar "mejorada" | B25: 0.45
A28: Combustible | B28: Eficiencia | C28: Coste €/kWh | D28: Coef. a EPnr
A29: Calefaccion Gas Natural | B29: 0.85 | C29: =0.05*1.21 -> 0.0605 | D29: 1.195 | E29: Coste 0.05+21% Iva
A30: Refrigeracion Electrricidad | B30: 3 | C30: =0.17*1.21 -> 0.2057 | D30: 1.954 | E30: Coste 0.17+21%Iva
A31: --
B33: BI | C33: 1.1 | D33: %
B34: IVA | C34: 1.1 | D34: %
B35: Ejec.Mat | C35: Coste intervencion | D35: Coste aislamiento
A36: Sin intervención | B36: 0 | C36: =B36*$C$33*$C$34 -> 0 | D36: 0
A37: SATE/ETICS | B37: 75 | C37: =B37*$C$33*$C$34 -> 90.75 | D37: 9.7643*Rt+6.65
A38: Trasdosado Interior | B38: 27 | C38: 32.67 | D38: 4.9286*Rt+6
A39: Relleno de camaras | B39: 15 | C39: 18.15 | D39: 5.7143*Rt+5
A40: Fachada Ventilada | B40: 150 | C40: 181.5 | D40: 5.5714*Rt+7.5
A42: Sin intervención | B42: 0 | C42: 0 | D42: 0
A43: Invertida | B43: 85 | C43: 102.85 | D43: 10.357*Rt
A44: Trasdosado; falso techo | B44: 33 | C44: 39.93 | D44: 4.9286*Rt+6
A46: HUECOS | B46: Sin rehabilitacion | C46: Rehab."basica" | D46: Rehab. "media" | E46: Rehab. "elevada"
A47: Ejec.Mat | B47: 0 | C47: =45+355+6 -> 406 | D47: =74+355+6 -> 435 | E47: =80+355+6 -> 441
A48: Coste Intervencion | B48: =B47*$C$33*$C$34 -> 0 | C48: =C47*$C$33*$C$34 -> 491.26 | D48: =D47*$C$33*$C$34 -> 526.35 | E48: =E47*$C$33*$C$34 -> 533.61
C49: 2Vidrio+carpintALrp | D49: 2VidrioBE+carpintALrp | E49: 3VidrioBE+carpintALrp
A50: Proteccion solar | B50: Sin tratamiento | C50: Con tratamiento
A51: Ejec.Mat | B51: 0 | C51: 110.48
A52: Coste Intervencion | B52: 0 | C52: =C51*C33*C34 -> 133.6808
